Workbook

Sheet Main
B10: 2021-03-31
B12: Sheet No. | C12: Template Name | D12: Summary
B13: 1 | C13: Future Intra | D13: For Intraday trading in F&O segment
B14: 2 | C14: Cash Intra | D14: For Intraday trading in cash market segment
B15: 3 | C15: Mid-cap Intra | D15: For Intraday trading in Mid-cap stocks
B16: 4 | C16: Bulk Deals | D16: Reveals Bulk Deals carried on NSE & BSE
B17: 5 | C17: Call Tracker
K27: `

Sheet Future Intra
M5: Back to Main Page
A6: FOR INTRA DAY TRADING | L6: =Main!B10 -> 2021-03-31
A9: Sr.no | B9: Sector | C9: Scrip | D9: Expiry Date | E9: CLOSE RATE | F9: Pivot Point | G9: Supports | J9: Resistances
B10: Sector | E10: Point | F10: Point | G10: S1 | H10: S2 | I10: S3 | J10: R1 | K10: R2 | L10: R3 | M10: HIGH | N10: LOW | O10: OI | P10: % Change in OI
A11: 1 | B11: Index | C11: BANKNIFTY | D11: 2021-04-29 | E11: 34046.80 | F11: 33973.47 | G11: 33766.93 | H11: 33487.07 | I11: 33280.53 | J11: 34253.33 | K11: 34459.87 | L11: 34739.73 | M11: 34180 | N11: 33693.6 | O11: 3180500 | P11: 5.95%
A12: 2 | B12: Index | C12: NIFTY | D12: 2021-04-29 | E12: 14913.55 | F12: 14849.85 | G12: 14750.70 | H12: 14587.85 | I12: 14488.70 | J12: 15012.70 | K12: 15111.85 | L12: 15274.70 | M12: 14949 | N12: 14687 | O12: 12436350 | P12: 21.27%
A13: 3 | B13: Index | C13: FINNIFTY | D13: 2021-04-29 | E13: 16104.60 | F13: 16073.03 | G13: 15976.37 | H13: 15848.13 | I13: 15751.47 | J13: 16201.27 | K13: 16297.93 | L13: 16426.17 | M13: 16169.7 | N13: 15944.8 | O13: 14120 | P13: 8.95%
A14: 4 | B14: Chemical | C14: AARTIIND | D14: 2021-04-29 | E14: 1349.40 | F14: 1344.80 | G14: 1334.60 | H14: 1319.80 | I14: 1309.60 | J14: 1359.60 | K14: 1369.80 | L14: 1384.60 | M14: 1355 | N14: 1330 | O14: 415650 | P14: 3.16%
A15: 5 | B15: Cement | C15: ACC | D15: 2021-04-29 | E15: 1886.75 | F15: 1887.40 | G15: 1860.30 | H15: 1833.85 | I15: 1806.75 | J15: 1913.85 | K15: 1940.95 | L15: 1967.40 | M15: 1914.5 | N15: 1860.95 | O15: 3154500 | P15: 3.21%
A16: 6 | B16: Others | C16: ADANIENT | D16: 2021-04-29 | E16: 1036.65 | F16: 1024.90 | G16: 1004.80 | H16: 972.95 | I16: 952.85 | J16: 1056.75 | K16: 1076.85 | L16: 1108.70 | M16: 1045 | N16: 993.05 | O16: 16892000 | P16: 5.23%
A17: 7 | B17: Others | C17: ADANIPORTS | D17: 2021-04-29 | E17: 715.65 | F17: 713.77 | G17: 704.53 | H17: 693.42 | I17: 684.18 | J17: 724.88 | K17: 734.12 | L17: 745.23 | M17: 723 | N17: 702.65 | O17: 59345000 | P17: 1.11%
A18: 8 | B18: Pharma | C18: ALKEM | D18: 2021-04-29 | E18: 2751.65 | F18: 2729.77 | G18: 2697.08 | H18: 2642.52 | I18: 2609.83 | J18: 2784.33 | K18: 2817.02 | L18: 2871.58 | M18: 2762.45 | N18: 2675.2 | O18: 239200 | P18: 6.31%
A19: 9 | B19: Automobile | C19: AMARAJABAT | D19: 2021-04-29 | E19: 861.20 | F19: 857.47 | G19: 851.93 | H19: 842.67 | I19: 837.13 | J19: 866.73 | K19: 872.27 | L19: 881.53 | M19: 863 | N19: 848.2 | O19: 2299000 | P19: 1.68%
A20: 10 | B20: Cement | C20: AMBUJACEM | D20: 2021-04-29 | E20: 302.05 | F20: 301.43 | G20: 297.77 | H20: 293.48 | I20: 289.82 | J20: 305.72 | K20: 309.38 | L20: 313.67 | M20: 305.1 | N20: 297.15 | O20: 15405000 | P20: 5.14%
A21: 11 | B21: Pharma | C21: APLLTD | D21: 2021-04-29 | E21: 964.10 | F21: 960.67 | G21: 948.93 | H21: 933.77 | I21: 922.03 | J21: 975.83 | K21: 987.57 | L21: 1002.73 | M21: 972.4 | N21: 945.5 | O21: 790350 | P21: 8.45%
A22: 12 | B22: Others | C22: APOLLOHOSP | D22: 2021-04-29 | E22: 2942.90 | F22: 2936.57 | G22: 2894.18 | H22: 2845.47 | I22: 2803.08 | J22: 2985.28 | K22: 3027.67 | L22: 3076.38 | M22: 2978.95 | N22: 2887.85 | O22: 1826000 | P22: 10.30%
A23: 13 | B23: Automobile | C23: APOLLOTYRE | D23: 2021-04-29 | E23: 224.60 | F23: 224.93 | G23: 221.07 | H23: 217.53 | I23: 213.67 | J23: 228.47 | K23: 232.33 | L23: 235.87 | M23: 228.8 | N23: 221.4 | O23: 9675000 | P23: 4.88%
A24: 14 | B24: Automobile | C24: ASHOKLEY | D24: 2021-04-29 | E24: 114.15 | F24: 114.08 | G24: 112.22 | H24: 110.28 | I24: 108.42 | J24: 116.02 | K24: 117.88 | L24: 119.82 | M24: 115.95 | N24: 112.15 | O24: 43452000 | P24: 10.96%
A25: 15 | B25: FMCG | C25: ASIANPAINT | D25: 2021-04-29 | E25: 2588.85 | F25: 2572.45 | G25: 2550.05 | H25: 2511.25 | I25: 2488.85 | J25: 2611.25 | K25: 2633.65 | L25: 2672.45 | M25: 2594.85 | N25: 2533.65 | O25: 5919900 | P25: 5.72%
A26: 16 | B26: Banking | C26: AUBANK | D26: 2021-04-29 | E26: 1273.20 | F26: 1248.73 | G26: 1192.47 | H26: 1111.73 | I26: 1055.47 | J26: 1329.47 | K26: 1385.73 | L26: 1466.47 | M26: 1305 | N26: 1168 | O26: 2244500 | P26: 239.05%
A27: 17 | B27: Pharma | C27: AUROPHARMA | D27: 2021-04-29 | E27: 875.25 | F27: 869.75 | G27: 861.65 | H27: 848.05 | I27: 839.95 | J27: 883.35 | K27: 891.45 | L27: 905.05 | M27: 877.85 | N27: 856.15 | O27: 8616400 | P27: 0.69%
A28: 18 | B28: Banking | C28: AXISBANK | D28: 2021-04-29 | E28: 700.75 | F28: 704.75 | G28: 692.60 | H28: 684.45 | I28: 672.30 | J28: 712.90 | K28: 725.05 | L28: 733.20 | M28: 716.9 | N28: 696.6 | O28: 42199200 | P28: 20.00%
A29: 19 | B29: Automobile | C29: BAJAJ-AUTO | D29: 2021-04-29 | E29: 3680.05 | F29: 3657.15 | G29: 3625.10 | H29: 3570.15 | I29: 3538.10 | J29: 3712.10 | K29: 3744.15 | L29: 3799.10 | M29: 3689.2 | N29: 3602.2 | O29: 2214000 | P29: 4.07%
A30: 20 | B30: Finance | C30: BAJAJFINSV | D30: 2021-04-29 | E30: 9559.80 | F30: 9516.62 | G30: 9340.23 | H30: 9120.67 | I30: 8944.28 | J30: 9736.18 | K30: 9912.57 | L30: 10132.13 | M30: 9693 | N30: 9297.05 | O30: 610000 | P30: 5.10%
A31: 21 | B31: Finance | C31: BAJFINANCE | D31: 2021-04-29 | E31: 5234.90 | F31: 5238.92 | G31: 5178.83 | H31: 5122.77 | I31: 5062.68 | J31: 5294.98 | K31: 5355.07 | L31: 5411.13 | M31: 5299 | N31: 5182.85 | O31: 3710750 | P31: 6.62%
A32: 22 | B32: Automobile | C32: BALKRISIND | D32: 2021-04-29 | E32: 1668.40 | F32: 1667.93 | G32: 1656.47 | H32: 1644.53 | I32: 1633.07 | J32: 1679.87 | K32: 1691.33 | L32: 1703.27 | M32: 1679.4 | N32: 1656 | O32: 1731200 | P32: 0.46%
A33: 23 | B33: Banking | C33: BANDHANBNK | D33: 2021-04-29 | E33: 339.05 | F33: 343.87 | G33: 333.18 | H33: 327.32 | I33: 316.63 | J33: 349.73 | K33: 360.42 | L33: 366.28 | M33: 354.55 | N33: 338 | O33: 16707600 | P33: 9.70%
A34: 24 | B34: Banking | C34: BANKBARODA | D34: 2021-04-29 | E34: 72.95 | F34: 72.87 | G34: 71.28 | H34: 69.62 | I34: 68.03 | J34: 74.53 | K34: 76.12 | L34: 77.78 | M34: 74.45 | N34: 71.2 | O34: 126781200 | P34: 14.18%
A35: 25 | B35: FMCG | C35: BATAINDIA | D35: 2021-04-29 | E35: 1415.60 | F35: 1420.63 | G35: 1402.27 | H35: 1388.93 | I35: 1370.57 | J35: 1433.97 | K35: 1452.33 | L35: 1465.67 | M35: 1439 | N35: 1407.3 | O35: 1349700 | P35: 9.75%
A36: 26 | B36: Capital_Goods | C36: BEL | D36: 2021-04-29 | E36: 126.10 | F36: 125.65 | G36: 124.10 | H36: 122.10 | I36: 120.55 | J36: 127.65 | K36: 129.20 | L36: 131.20 | M36: 127.2 | N36: 123.65 | O36: 42590400 | P36: 8.50%
A37: 27 | B37: FMCG | C37: BERGEPAINT | D37: 2021-04-29 | E37: 766.00 | F37: 768.15 | G37: 761.30 | H37: 756.60 | I37: 749.75 | J37: 772.85 | K37: 779.70 | L37: 784.40 | M37: 775 | N37: 763.45 | O37: 3236200 | P37: 5.79%
A38: 28 | B38: Automobile | C38: BHARATFORG | D38: 2021-04-29 | E38: 594.25 | F38: 596.38 | G38: 590.27 | H38: 586.28 | I38: 580.17 | J38: 600.37 | K38: 606.48 | L38: 610.47 | M38: 602.5 | N38: 592.4 | O38: 5313000 | P38: 4.21%
A39: 29 | B39: Telecom | C39: BHARTIARTL | D39: 2021-04-29 | E39: 524.60 | F39: 525.25 | G39: 519.65 | H39: 514.70 | I39: 509.10 | J39: 530.20 | K39: 535.80 | L39: 540.75 | M39: 530.85 | N39: 520.3 | O39: 98669406 | P39: 1.90%
A40: 30 | B40: Capital_Goods | C40: BHEL | D40: 2021-04-29 | E40: 49.20 | F40: 49.17 | G40: 48.48 | H40: 47.77 | I40: 47.08 | J40: 49.88 | K40: 50.57 | L40: 51.28 | M40: 49.85 | N40: 48.45 | O40: 93660000 | P40: 2.46%
A41: 31 | B41: Pharma | C41: BIOCON | D41: 2021-04-29 | E41: 411.80 | F41: 408.22 | G41: 403.43 | H41: 395.07 | I41: 390.28 | J41: 416.58 | K41: 421.37 | L41: 429.73 | M41: 413 | N41: 399.85 | O41: 14416400 | P41: 13.63%
A42: 32 | B42: Automobile | C42: BOSCHLTD | D42: 2021-04-29 | E42: 14273.05 | F42: 14107.13 | G42: 13799.47 | H42: 13325.88 | I42: 13018.22 | J42: 14580.72 | K42: 14888.38 | L42: 15361.97 | M42: 14414.8 | N42: 13633.55 | O42: 100950 | P42: 11.79%
A43: 33 | B43: Oil_Gas | C43: BPCL | D43: 2021-04-29 | E43: 432.55 | F43: 430.40 | G43: 426.05 | H43: 419.55 | I43: 415.20 | J43: 436.90 | K43: 441.25 | L43: 447.75 | M43: 434.75 | N43: 423.9 | O43: 46657800 | P43: 1.55%
A44: 34 | B44: FMCG | C44: BRITANNIA | D44: 2021-04-29 | E44: 3597.45 | F44: 3574.92 | G44: 3541.88 | H44: 3486.32 | I44: 3453.28 | J44: 3630.48 | K44: 3663.52 | L44: 3719.08 | M44: 3607.95 | N44: 3519.35 | O44: 1879200 | P44: 4.55%
A45: 35 | B45: Pharma | C45: CADILAHC | D45: 2021-04-29 | E45: 437.20 | F45: 433.37 | G45: 428.53 | H45: 419.87 | I45: 415.03 | J45: 442.03 | K45: 446.87 | L45: 455.53 | M45: 438.2 | N45: 424.7 | O45: 10564400 | P45: 4.35%
A46: 36 | B46: Banking | C46: CANBK | D46: 2021-04-29 | E46: 148.20 | F46: 148.03 | G46: 145.77 | H46: 143.33 | I46: 141.07 | J46: 150.47 | K46: 152.73 | L46: 155.17 | M46: 150.3 | N46: 145.6 | O46: 55485000 | P46: 2.20%
A47: 37 | B47: Finance | C47: CHOLAFIN | D47: 2021-04-29 | E47: 553.25 | F47: 554.45 | G47: 546.00 | H47: 538.75 | I47: 530.30 | J47: 561.70 | K47: 570.15 | L47: 577.40 | M47: 562.9 | N47: 547.2 | O47: 4910000 | P47: 4.14%
A48: 38 | B48: Pharma | C48: CIPLA | D48: 2021-04-29 | E48: 817.45 | F48: 811.60 | G48: 801.20 | H48: 784.95 | I48: 774.55 | J48: 827.85 | K48: 838.25 | L48: 854.50 | M48: 822 | N48: 795.35 | O48: 11498500 | P48: 8.41%
A49: 39 | B49: Others | C49: COALINDIA | D49: 2021-04-29 | E49: 133.35 | F49: 132.78 | G49: 131.02 | H49: 128.68 | I49: 126.92 | J49: 135.12 | K49: 136.88 | L49: 139.22 | M49: 134.55 | N49: 130.45 | O49: 44343600 | P49: 6.96%
A50: 40 | B50: Technology | C50: COFORGE | D50: 2021-04-29 | E50: 2976.50 | F50: 2923.85 | G50: 2847.70 | H50: 2718.90 | I50: 2642.75 | J50: 3052.65 | K50: 3128.80 | L50: 3257.60 | M50: 3000 | N50: 2795.05 | O50: 582375 | P50: 20.76%
A51: 41 | B51: FMCG | C51: COLPAL | D51: 2021-04-29 | E51: 1565.30 | F51: 1556.70 | G51: 1543.60 | H51: 1521.90 | I51: 1508.80 | J51: 1578.40 | K51: 1591.50 | L51: 1613.20 | M51: 1569.8 | N51: 1535 | O51: 3543400 | P51: 2.20%
A52: 42 | B52: Others | C52: CONCOR | D52: 2021-04-29 | E52: 601.55 | F52: 601.28 | G52: 590.17 | H52: 578.78 | I52: 567.67 | J52: 612.67 | K52: 623.78 | L52: 635.17 | M52: 612.4 | N52: 589.9 | O52: 6172287 | P52: 6.07%
A53: 43 | B53: Banking | C53: CUB | D53: 2021-04-29 | E53: 155.50 | F53: 156.42 | G53: 150.33 | H53: 145.17 | I53: 139.08 | J53: 161.58 | K53: 167.67 | L53: 172.83 | M53: 162.5 | N53: 151.25 | O53: 8494000 | P53: 19.49%
A54: 44 | B54: Capital_Goods | C54: CUMMINSIND | D54: 2021-04-29 | E54: 887.85 | F54: 879.75 | G54: 867.50 | H54: 847.15 | I54: 834.90 | J54: 900.10 | K54: 912.35 | L54: 932.70 | M54: 892 | N54: 859.4 | O54: 1748400 | P54: 8.33%
A55: 45 | B55: FMCG | C55: DABUR | D55: 2021-04-29 | E55: 542.25 | F55: 540.12 | G55: 536.23 | H55: 530.22 | I55: 526.33 | J55: 546.13 | K55: 550.02 | L55: 556.03 | M55: 544 | N55: 534.1 | O55: 8560000 | P55: 4.42%
A56: 46 | B56: Chemical | C56: DEEPAKNTR | D56: 2021-04-29 | E56: 1637.05 | F56: 1612.80 | G56: 1576.80 | H56: 1516.55 | I56: 1480.55 | J56: 1673.05 | K56: 1709.05 | L56: 1769.30 | M56: 1648.8 | N56: 1552.55 | O56: 896000 | P56: 36.07%
A57: 47 | B57: Pharma | C57: DIVISLAB | D57: 2021-04-29 | E57: 3610.35 | F57: 3574.55 | G57: 3522.10 | H57: 3433.85 | I57: 3381.40 | J57: 3662.80 | K57: 3715.25 | L57: 3803.50 | M57: 3627 | N57: 3486.3 | O57: 2581800 | P57: 3.45%
A58: 48 | B58: Realty | C58: DLF | D58: 2021-04-29 | E58: 281.35 | F58: 281.47 | G58: 276.43 | H58: 271.52 | I58: 266.48 | J58: 286.38 | K58: 291.42 | L58: 296.33 | M58: 286.5 | N58: 276.55 | O58: 25588200 | P58: 6.28%
A59: 49 | B59: Pharma | C59: DRREDDY | D59: 2021-04-29 | E59: 4539.45 | F59: 4513.02 | G59: 4477.73 | H59: 4416.02 | I59: 4380.73 | J59: 4574.73 | K59: 4610.02 | L59: 4671.73 | M59: 4548.3 | N59: 4451.3 | O59: 3271000 | P59: 0.50%
A60: 50 | B60: Automobile | C60: EICHERMOT | D60: 2021-04-29 | E60: 2655.70 | F60: 2632.90 | G60: 2596.80 | H60: 2537.90 | I60: 2501.80 | J60: 2691.80 | K60: 2727.90 | L60: 2786.80 | M60: 2669 | N60: 2574 | O60: 2390850 | P60: 6.93%
A61: 51 | B61: Automobile | C61: ESCORTS | D61: 2021-04-29 | E61: 1282.00 | F61: 1282.97 | G61: 1268.03 | H61: 1254.07 | I61: 1239.13 | J61: 1296.93 | K61: 1311.87 | L61: 1325.83 | M61: 1297.9 | N61: 1269 | O61: 1848550 | P61: 3.38%
A62: 52 | B62: Automobile | C62: EXIDEIND | D62: 2021-04-29 | E62: 186.80 | F62: 185.82 | G62: 184.48 | H62: 182.17 | I62: 180.83 | J62: 188.13 | K62: 189.47 | L62: 191.78 | M62: 187.15 | N62: 183.5 | O62: 13330800 | P62: 3.49%
A63: 53 | B63: Banking | C63: FEDERALBNK | D63: 2021-04-29 | E63: 76.50 | F63: 77.12 | G63: 75.53 | H63: 74.57 | I63: 72.98 | J63: 78.08 | K63: 79.67 | L63: 80.63 | M63: 78.7 | N63: 76.15 | O63: 68920000 | P63: 4.39%
A64: 54 | B64: Oil_Gas | C64: GAIL | D64: 2021-04-29 | E64: 133.45 | F64: 134.42 | G64: 131.03 | H64: 128.62 | I64: 125.23 | J64: 136.83 | K64: 140.22 | L64: 142.63 | M64: 137.8 | N64: 132 | O64: 48190000 | P64: 91.47%
A65: 55 | B65: Pharma | C65: GLENMARK | D65: 2021-04-29 | E65: 465.40 | F65: 462.03 | G65: 457.57 | H65: 449.73 | I65: 445.27 | J65: 469.87 | K65: 474.33 | L65: 482.17 | M65: 466.5 | N65: 454.2 | O65: 5891450 | P65: 4.96%
A66: 56 | B66: Infrastructure | C66: GMRINFRA | D66: 2021-04-29 | E66: 24.50 | F66: 24.65 | G66: 24.20 | H66: 23.90 | I66: 23.45 | J66: 24.95 | K66: 25.40 | L66: 25.70 | M66: 25.1 | N66: 24.35 | O66: 154935000 | P66: 3.33%
A67: 57 | B67: FMCG | C67: GODREJCP | D67: 2021-04-29 | E67: 730.50 | F67: 727.28 | G67: 720.22 | H67: 709.93 | I67: 702.87 | J67: 737.57 | K67: 744.63 | L67: 754.92 | M67: 734.35 | N67: 717 | O67: 5516000 | P67: 3.22%
A68: 58 | B68: Realty | C68: GODREJPROP | D68: 2021-04-29 | E68: 1350.55 | F68: 1360.00 | G68: 1331.00 | H68: 1311.45 | I68: 1282.45 | J68: 1379.55 | K68: 1408.55 | L68: 1428.10 | M68: 1389 | N68: 1340.45 | O68: 1807650 | P68: 13.60%
A69: 59 | B69: Pharma | C69: GRANULES | D69: 2021-04-29 | E69: 311.60 | F69: 310.12 | G69: 307.23 | H69: 302.87 | I69: 299.98 | J69: 314.48 | K69: 317.37 | L69: 321.73 | M69: 313 | N69: 305.75 | O69: 6161250 | P69: 8.81%
A70: 60 | B70: Cement | C70: GRASIM | D70: 2021-04-29 | E70: 1428.60 | F70: 1426.37 | G70: 1404.73 | H70: 1380.87 | I70: 1359.23 | J70: 1450.23 | K70: 1471.87 | L70: 1495.73 | M70: 1448 | N70: 1402.5 | O70: 16145250 | P70: 5.82%
A71: 61 | B71: Oil_Gas | C71: GUJGASLTD | D71: 2021-04-29 | E71: 539.45 | F71: 533.23 | G71: 523.97 | H71: 508.48 | I71: 499.22 | J71: 548.72 | K71: 557.98 | L71: 573.47 | M71: 542.5 | N71: 517.75 | O71: 1100000 | P71: 2.33%
A72: 62 | B72: Capital_Goods | C72: HAVELLS | D72: 2021-04-29 | E72: 1059.20 | F72: 1065.00 | G72: 1048.10 | H72: 1037.00 | I72: 1020.10 | J72: 1076.10 | K72: 1093.00 | L72: 1104.10 | M72: 1081.9 | N72: 1053.9 | O72: 4965000 | P72: 3.22%
A73: 63 | B73: Technology | C73: HCLTECH | D73: 2021-04-29 | E73: 1002.40 | F73: 992.72 | G73: 978.83 | H73: 955.27 | I73: 941.38 | J73: 1016.28 | K73: 1030.17 | L73: 1053.73 | M73: 1006.6 | N73: 969.15 | O73: 17415300 | P73: 4.04%
A74: 64 | B74: Finance | C74: HDFC | D74: 2021-04-29 | E74: 2616.30 | F74: 2603.27 | G74: 2578.03 | H74: 2539.77 | I74: 2514.53 | J74: 2641.53 | K74: 2666.77 | L74: 2705.03 | M74: 2628.5 | N74: 2565 | O74: 15018600 | P74: 5.67%
A75: 65 | B75: Finance | C75: HDFCAMC | D75: 2021-04-29 | E75: 2920.05 | F75: 2913.25 | G75: 2895.80 | H75: 2871.55 | I75: 2854.10 | J75: 2937.50 | K75: 2954.95 | L75: 2979.20 | M75: 2930.7 | N75: 2889 | O75: 508000 | P75: 6.45%
A76: 66 | B76: Banking | C76: HDFCBANK | D76: 2021-04-29 | E76: 1549.95 | F76: 1538.90 | G76: 1521.00 | H76: 1492.05 | I76: 1474.15 | J76: 1567.85 | K76: 1585.75 | L76: 1614.70 | M76: 1556.8 | N76: 1509.95 | O76: 25715250 | P76: 13.24%
A77: 67 | B77: Finance | C77: HDFCLIFE | D77: 2021-04-29 | E77: 689.95 | F77: 687.52 | G77: 682.03 | H77: 674.12 | I77: 668.63 | J77: 695.43 | K77: 700.92 | L77: 708.83 | M77: 693 | N77: 679.6 | O77: 8646000 | P77: 7.82%
A78: 68 | B78: Automobile | C78: HEROMOTOCO | D78: 2021-04-29 | E78: 2957.50 | F78: 2953.60 | G78: 2923.45 | H78: 2889.40 | I78: 2859.25 | J78: 2987.65 | K78: 3017.80 | L78: 3051.85 | M78: 2983.75 | N78: 2919.55 | O78: 3957000 | P78: 8.63%
A79: 69 | B79: Metals | C79: HINDALCO | D79: 2021-04-29 | E79: 328.70 | F79: 330.38 | G79: 325.92 | H79: 323.13 | I79: 318.67 | J79: 333.17 | K79: 337.63 | L79: 340.42 | M79: 334.85 | N79: 327.6 | O79: 29966700 | P79: 5.74%
A80: 70 | B80: Oil_Gas | C80: HINDPETRO | D80: 2021-04-29 | E80: 231.80 | F80: 231.73 | G80: 230.47 | H80: 229.13 | I80: 227.87 | J80: 233.07 | K80: 234.33 | L80: 235.67 | M80: 233 | N80: 230.4 | O80: 27440100 | P80: 2.49%
A81: 71 | B81: FMCG | C81: HINDUNILVR | D81: 2021-04-29 | E81: 2408.45 | F81: 2387.98 | G81: 2360.12 | H81: 2311.78 | I81: 2283.92 | J81: 2436.32 | K81: 2464.18 | L81: 2512.52 | M81: 2415.85 | N81: 2339.65 | O81: 6042600 | P81: 12.61%
A82: 72 | B82: Finance | C82: IBULHSGFIN | D82: 2021-04-29 | E82: 197.05 | F82: 197.72 | G82: 193.38 | H82: 189.72 | I82: 185.38 | J82: 201.38 | K82: 205.72 | L82: 209.38 | M82: 202.05 | N82: 194.05 | O82: 30166100 | P82: 0.38%
A83: 73 | B83: Banking | C83: ICICIBANK | D83: 2021-04-29 | E83: 593.90 | F83: 591.38 | G83: 587.32 | H83: 580.73 | I83: 576.67 | J83: 597.97 | K83: 602.03 | L83: 608.62 | M83: 595.45 | N83: 584.8 | O83: 93935875 | P83: 3.76%
A84: 74 | B84: Finance | C84: ICICIGI | D84: 2021-04-29 | E84: 1438.95 | F84: 1430.65 | G84: 1415.30 | H84: 1391.65 | I84: 1376.30 | J84: 1454.30 | K84: 1469.65 | L84: 1493.30 | M84: 1446 | N84: 1407 | O84: 1018725 | P84: 3.27%
A85: 75 | B85: Finance | C85: ICICIPRULI | D85: 2021-04-29 | E85: 434.60 | F85: 435.83 | G85: 430.77 | H85: 426.93 | I85: 421.87 | J85: 439.67 | K85: 444.73 | L85: 448.57 | M85: 440.9 | N85: 432 | O85: 7746000 | P85: 5.62%
A86: 76 | B86: Telecom | C86: IDEA | D86: 2021-04-29 | E86: 9.30 | F86: 9.33 | G86: 9.07 | H86: 8.83 | I86: 8.57 | J86: 9.57 | K86: 9.83 | L86: 10.07 | M86: 9.6 | N86: 9.1 | O86: 505050000 | P86: 11.67%
A87: 77 | B87: Banking | C87: IDFCFIRSTB | D87: 2021-04-29 | E87: 58.50 | F87: 58.77 | G87: 57.63 | H87: 56.77 | I87: 55.63 | J87: 59.63 | K87: 60.77 | L87: 61.63 | M87: 59.9 | N87: 57.9 | O87: 160664000 | P87: 2.00%
A88: 78 | B88: Oil_Gas | C88: IGL | D88: 2021-04-29 | E88: 514.75 | F88: 515.33 | G88: 510.62 | H88: 506.48 | I88: 501.77 | J88: 519.47 | K88: 524.18 | L88: 528.32 | M88: 520.05 | N88: 511.2 | O88: 5511000 | P88: 3.73%
A89: 79 | B89: Others | C89: INDIGO | D89: 2021-04-29 | E89: 1589.45 | F89: 1598.92 | G89: 1568.13 | H89: 1546.82 | I89: 1516.03 | J89: 1620.23 | K89: 1651.02 | L89: 1672.33 | M89: 1629.7 | N89: 1577.6 | O89: 3658000 | P89: 5.07%
A90: 80 | B90: Banking | C90: INDUSINDBK | D90: 2021-04-29 | E90: 967.75 | F90: 970.32 | G90: 957.68 | H90: 947.62 | I90: 934.98 | J90: 980.38 | K90: 993.02 | L90: 1003.08 | M90: 982.95 | N90: 960.25 | O90: 22671900 | P90: 2.36%
A91: 81 | B91: Telecom | C91: INDUSTOWER | D91: 2021-04-29 | E91: 256.60 | F91: 254.38 | G91: 245.52 | H91: 234.43 | I91: 225.57 | J91: 265.47 | K91: 274.33 | L91: 285.42 | M91: 263.25 | N91: 243.3 | O91: 11342800 | P91: 7.25%
A92: 82 | B92: Technology | C92: INFY | D92: 2021-04-29 | E92: 1394.90 | F92: 1382.97 | G92: 1357.93 | H92: 1320.97 | I92: 1295.93 | J92: 1419.93 | K92: 1444.97 | L92: 1481.93 | M92: 1408 | N92: 1346 | O92: 29837400 | P92: 6.55%
A93: 83 | B93: Oil_Gas | C93: IOC | D93: 2021-04-29 | E93: 91.95 | F93: 91.72 | G93: 91.13 | H93: 90.32 | I93: 89.73 | J93: 92.53 | K93: 93.12 | L93: 93.93 | M93: 92.3 | N93: 90.9 | O93: 68393000 | P93: 6.27%
A94: 84 | B94: Others | C94: IRCTC | D94: 2021-04-29 | E94: 1768.35 | F94: 1767.68 | G94: 1748.72 | H94: 1729.08 | I94: 1710.12 | J94: 1787.32 | K94: 1806.28 | L94: 1825.92 | M94: 1786.65 | N94: 1748.05 | O94: 1781000 | P94: 1.41%
A95: 85 | B95: FMCG | C95: ITC | D95: 2021-04-29 | E95: 215.60 | F95: 214.53 | G95: 213.12 | H95: 210.63 | I95: 209.22 | J95: 217.02 | K95: 218.43 | L95: 220.92 | M95: 215.95 | N95: 212.05 | O95: 112220800 | P95: 2.82%
A96: 86 | B96: Metals | C96: JINDALSTEL | D96: 2021-04-29 | E96: 338.15 | F96: 337.00 | G96: 331.15 | H96: 324.15 | I96: 318.30 | J96: 344.00 | K96: 349.85 | L96: 356.85 | M96: 342.85 | N96: 330 | O96: 29285000 | P96: 3.35%
A97: 87 | B97: Metals | C97: JSWSTEEL | D97: 2021-04-29 | E97: 469.40 | F97: 464.60 | G97: 456.70 | H97: 444.00 | I97: 436.10 | J97: 477.30 | K97: 485.20 | L97: 497.90 | M97: 472.5 | N97: 451.9 | O97: 35777700 | P97: 5.88%
A98: 88 | B98: Others | C98: JUBLFOOD | D98: 2021-04-29 | E98: 2966.60 | F98: 2955.40 | G98: 2925.80 | H98: 2885.00 | I98: 2855.40 | J98: 2996.20 | K98: 3025.80 | L98: 3066.60 | M98: 2985 | N98: 2914.6 | O98: 1305500 | P98: 5.24%
A99: 89 | B99: Banking | C99: KOTAKBANK | D99: 2021-04-29 | E99: 1793.25 | F99: 1798.45 | G99: 1782.90 | H99: 1772.55 | I99: 1757.00 | J99: 1808.80 | K99: 1824.35 | L99: 1834.70 | M99: 1814 | N99: 1788.1 | O99: 12747200 | P99: 11.69%
A100: 90 | B100: Finance | C100: L&TFH | D100: 2021-04-29 | E100: 95.95 | F100: 95.80 | G100: 94.25 | H100: 92.55 | I100: 91.00 | J100: 97.50 | K100: 99.05 | L100: 100.75 | M100: 97.35 | N100: 94.1 | O100: 28369396 | P100: 2.85%
A101: 91 | B101: Others | C101: LALPATHLAB | D101: 2021-04-29 | E101: 2621.30 | F101: 2633.35 | G101: 2588.20 | H101: 2555.10 | I101: 2509.95 | J101: 2666.45 | K101: 2711.60 | L101: 2744.70 | M101: 2678.5 | N101: 2600.25 | O101: 165500 | P101: 20.36%
A102: 92 | B102: Finance | C102: LICHSGFIN | D102: 2021-04-29 | E102: 422.95 | F102: 423.32 | G102: 416.83 | H102: 410.72 | I102: 404.23 | J102: 429.43 | K102: 435.92 | L102: 442.03 | M102: 429.8 | N102: 417.2 | O102: 6944000 | P102: 8.98%
A103: 93 | B103: Capital_Goods | C103: LT | D103: 2021-04-29 | E103: 1431.65 | F103: 1424.38 | G103: 1412.67 | H103: 1393.68 | I103: 1381.97 | J103: 1443.37 | K103: 1455.08 | L103: 1474.07 | M103: 1436.1 | N103: 1405.4 | O103: 13693625 | P103: 3.98%
A104: 94 | B104: Technology | C104: LTI | D104: 2021-04-29 | E104: 4182.20 | F104: 4123.07 | G104: 3995.13 | H104: 3808.07 | I104: 3680.13 | J104: 4310.13 | K104: 4438.07 | L104: 4625.13 | M104: 4251 | N104: 3936 | O104: 274950 | P104: 14.49%
A105: 95 | B105: Technology | C105: LTTS | D105: 2021-04-29 | E105: 2655.75 | F105: 2631.12 | G105: 2588.23 | H105: 2520.72 | I105: 2477.83 | J105: 2698.63 | K105: 2741.52 | L105: 2809.03 | M105: 2674 | N105: 2563.6 | O105: 475000 | P105: 11.24%
A106: 96 | B106: Pharma | C106: LUPIN | D106: 2021-04-29 | E106: 1010.70 | F106: 1005.52 | G106: 996.63 | H106: 982.57 | I106: 973.68 | J106: 1019.58 | K106: 1028.47 | L106: 1042.53 | M106: 1014.4 | N106: 991.45 | O106: 6410700 | P106: 1.19%
A107: 97 | B107: Automobile | C107: M&M | D107: 2021-04-29 | E107: 801.05 | F107: 800.63 | G107: 789.17 | H107: 777.28 | I107: 765.82 | J107: 812.52 | K107: 823.98 | L107: 835.87 | M107: 812.1 | N107: 788.75 | O107: 9072000 | P107: 13.54%
A108: 98 | B108: Finance | C108: M&MFIN | D108: 2021-04-29 | E108: 199.15 | F108: 201.72 | G108: 195.18 | H108: 191.22 | I108: 184.68 | J108: 205.68 | K108: 212.22 | L108: 216.18 | M108: 208.25 | N108: 197.75 | O108: 15680000 | P108: 15.50%
A109: 99 | B109: Finance | C109: MANAPPURAM | D109: 2021-04-29 | E109: 150.55 | F109: 151.12 | G109: 148.83 | H109: 147.12 | I109: 144.83 | J109: 152.83 | K109: 155.12 | L109: 156.83 | M109: 153.4 | N109: 149.4 | O109: 21156000 | P109: 6.49%
A110: 100 | B110: FMCG | C110: MARICO | D110: 2021-04-29 | E110: 411.65 | F110: 410.40 | G110: 407.85 | H110: 404.05 | I110: 401.50 | J110: 414.20 | K110: 416.75 | L110: 420.55 | M110: 412.95 | N110: 406.6 | O110: 7262000 | P110: 2.48%
A111: 101 | B111: Automobile | C111: MARUTI | D111: 2021-04-29 | E111: 6902.50 | F111: 6870.72 | G111: 6818.13 | H111: 6733.77 | I111: 6681.18 | J111: 6955.08 | K111: 7007.67 | L111: 7092.03 | M111: 6923.3 | N111: 6786.35 | O111: 2571100 | P111: 8.56%
A112: 102 | B112: FMCG | C112: MCDOWELL-N | D112: 2021-04-29 | E112: 556.25 | F112: 557.68 | G112: 551.67 | H112: 547.08 | I112: 541.07 | J112: 562.27 | K112: 568.28 | L112: 572.87 | M112: 563.7 | N112: 553.1 | O112: 13465000 | P112: 2.00%
A113: 103 | B113: Finance | C113: MFSL | D113: 2021-04-29 | E113: 869.45 | F113: 872.82 | G113: 857.63 | H113: 845.82 | I113: 830.63 | J113: 884.63 | K113: 899.82 | L113: 911.63 | M113: 888 | N113: 861 | O113: 2216500 | P113: 3.77%
A114: 104 | B114: Oil_Gas | C114: MGL | D114: 2021-04-29 | E114: 1168.15 | F114: 1162.53 | G114: 1154.12 | H114: 1140.08 | I114: 1131.67 | J114: 1176.57 | K114: 1184.98 | L114: 1199.02 | M114: 1170.95 | N114: 1148.5 | O114: 1110000 | P114: 4.40%
A115: 105 | B115: Technology | C115: MINDTREE | D115: 2021-04-29 | E115: 2130.85 | F115: 2094.95 | G115: 2039.90 | H115: 1948.95 | I115: 1893.90 | J115: 2185.90 | K115: 2240.95 | L115: 2331.90 | M115: 2150 | N115: 2004 | O115: 1959200 | P115: 34.56%
A116: 106 | B116: Automobile | C116: MOTHERSUMI | D116: 2021-04-29 | E116: 203.65 | F116: 204.77 | G116: 200.83 | H116: 198.02 | I116: 194.08 | J116: 207.58 | K116: 211.52 | L116: 214.33 | M116: 208.7 | N116: 201.95 | O116: 29722000 | P116: 5.23%
A117: 107 | B117: Technology | C117: MPHASIS | D117: 2021-04-29 | E117: 1785.20 | F117: 1747.07 | G117: 1684.13 | H117: 1583.07 | I117: 1520.13 | J117: 1848.13 | K117: 1911.07 | L117: 2012.13 | M117: 1810 | N117: 1646 | O117: 418925 | P117: 20.69%
A118: 108 | B118: Automobile | C118: MRF | D118: 2021-04-29 | E118: 83677.40 | F118: 83294.13 | G118: 82338.27 | H118: 80999.13 | I118: 80043.27 | J118: 84633.27 | K118: 85589.13 | L118: 86928.27 | M118: 84250 | N118: 81955 | O118: 42060 | P118: 1.13%
A119: 109 | B119: Finance | C119: MUTHOOTFIN | D119: 2021-04-29 | E119: 1215.10 | F119: 1221.45 | G119: 1198.65 | H119: 1182.20 | I119: 1159.40 | J119: 1237.90 | K119: 1260.70 | L119: 1277.15 | M119: 1244.25 | N119: 1205 | O119: 2733000 | P119: 4.95%
A120: 110 | B120: Others | C120: NAM-INDIA | D120: 2021-04-29 | E120: 337.90 | F120: 336.87 | G120: 334.73 | H120: 331.57 | I120: 329.43 | J120: 340.03 | K120: 342.17 | L120: 345.33 | M120: 339 | N120: 333.7 | O120: 785600 | P120: 6.05%
A121: 111 | B121: Metals | C121: NATIONALUM | D121: 2021-04-29 | E121: 54.55 | F121: 54.72 | G121: 53.98 | H121: 53.42 | I121: 52.68 | J121: 55.28 | K121: 56.02 | L121: 56.58 | M121: 55.45 | N121: 54.15 | O121: 65467000 | P121: 2.89%
A122: 112 | B122: Others | C122: NAUKRI | D122: 2021-04-29 | E122: 4207.95 | F122: 4271.95 | G122: 3998.90 | H122: 3789.85 | I122: 3516.80 | J122: 4481.00 | K122: 4754.05 | L122: 4963.10 | M122: 4545 | N122: 4062.9 | O122: 1427250 | P122: 48.79%
A123: 113 | B123: Chemical | C123: NAVINFLUOR | D123: 2021-04-29 | E123: 2728.75 | F123: 2647.80 | G123: 2546.40 | H123: 2364.05 | I123: 2262.65 | J123: 2830.15 | K123: 2931.55 | L123: 3113.90 | M123: 2749.2 | N123: 2465.45 | O123: 198000 | P123: 23.42%
A124: 114 | B124: FMCG | C124: NESTLEIND | D124: 2021-04-29 | E124: 17162.35 | F124: 16990.10 | G124: 16782.25 | H124: 16402.15 | I124: 16194.30 | J124: 17370.20 | K124: 17578.05 | L124: 17958.15 | M124: 17197.95 | N124: 16610 | O124: 288700 | P124: 2.52%
A125: 115 | B125: Metals | C125: NMDC | D125: 2021-04-29 | E125: 132.95 | F125: 131.75 | G125: 129.50 | H125: 126.05 | I125: 123.80 | J125: 135.20 | K125: 137.45 | L125: 140.90 | M125: 134 | N125: 128.3 | O125: 43215000 | P125: 9.75%
A126: 116 | B126: Power | C126: NTPC | D126: 2021-04-29 | E126: 108.00 | F126: 107.47 | G126: 106.03 | H126: 104.07 | I126: 102.63 | J126: 109.43 | K126: 110.87 | L126: 112.83 | M126: 108.9 | N126: 105.5 | O126: 80558100 | P126: 6.04%
A127: 117 | B127: Oil_Gas | C127: ONGC | D127: 2021-04-29 | E127: 104.30 | F127: 104.92 | G127: 102.83 | H127: 101.37 | I127: 99.28 | J127: 106.38 | K127: 108.47 | L127: 109.93 | M127: 107 | N127: 103.45 | O127: 44675400 | P127: 7.25%
A128: 118 | B128: Textile | C128: PAGEIND | D128: 2021-04-29 | E128: 31137.85 | F128: 30952.42 | G128: 30615.13 | H128: 30092.42 | I128: 29755.13 | J128: 31475.13 | K128: 31812.42 | L128: 32335.13 | M128: 31289.7 | N128: 30429.7 | O128: 56280 | P128: 5.27%
A129: 119 | B129: Pharma | C129: PEL | D129: 2021-04-29 | E129: 1778.95 | F129: 1798.32 | G129: 1746.63 | H129: 1714.32 | I129: 1662.63 | J129: 1830.63 | K129: 1882.32 | L129: 1914.63 | M129: 1850 | N129: 1766 | O129: 3095950 | P129: 5.79%
A130: 120 | B130: Oil_Gas | C130: PETRONET | D130: 2021-04-29 | E130: 228.05 | F130: 228.77 | G130: 225.68 | H130: 223.32 | I130: 220.23 | J130: 231.13 | K130: 234.22 | L130: 236.58 | M130: 231.85 | N130: 226.4 | O130: 18696000 | P130: 3.09%
A131: 121 | B131: Finance | C131: PFC | D131: 2021-04-29 | E131: 112.10 | F131: 113.25 | G131: 110.25 | H131: 108.40 | I131: 105.40 | J131: 115.10 | K131: 118.10 | L131: 119.95 | M131: 116.25 | N131: 111.4 | O131: 38427600 | P131: 23.59%
A132: 122 | B132: Pharma | C132: PFIZER | D132: 2021-04-29 | E132: 4499.05 | F132: 4479.33 | G132: 4439.72 | H132: 4380.38 | I132: 4340.77 | J132: 4538.67 | K132: 4578.28 | L132: 4637.62 | M132: 4518.95 | N132: 4420 | O132: 62625 | P132: 1.83%
A133: 123 | B133: FMCG | C133: PIDILITIND | D133: 2021-04-29 | E133: 1839.05 | F133: 1834.27 | G133: 1824.78 | H133: 1810.52 | I133: 1801.03 | J133: 1848.53 | K133: 1858.02 | L133: 1872.28 | M133: 1843.75 | N133: 1820 | O133: 1921500 | P133: 2.89%
A134: 124 | B134: Chemical | C134: PIIND | D134: 2021-04-29 | E134: 2292.70 | F134: 2300.05 | G134: 2280.65 | H134: 2268.60 | I134: 2249.20 | J134: 2312.10 | K134: 2331.50 | L134: 2343.55 | M134: 2319.45 | N134: 2288 | O134: 302000 | P134: 5.13%
A135: 125 | B135: Banking | C135: PNB | D135: 2021-04-29 | E135: 36.35 | F135: 36.37 | G135: 35.83 | H135: 35.32 | I135: 34.78 | J135: 36.88 | K135: 37.42 | L135: 37.93 | M135: 36.9 | N135: 35.85 | O135: 212640000 | P135: 4.27%
A136: 126 | B136: Power | C136: POWERGRID | D136: 2021-04-29 | E136: 223.20 | F136: 221.68 | G136: 218.17 | H136: 213.13 | I136: 209.62 | J136: 226.72 | K136: 230.23 | L136: 235.27 | M136: 225.2 | N136: 216.65 | O136: 17520000 | P136: 23.14%
A137: 127 | B137: Media | C137: PVR | D137: 2021-04-29 | E137: 1241.05 | F137: 1230.75 | G137: 1209.70 | H137: 1178.35 | I137: 1157.30 | J137: 1262.10 | K137: 1283.15 | L137: 1314.50 | M137: 1251.8 | N137: 1199.4 | O137: 1618639 | P137: 12.15%
A138: 128 | B138: Cement | C138: RAMCOCEM | D138: 2021-04-29 | E138: 989.90 | F138: 985.63 | G138: 976.27 | H138: 962.63 | I138: 953.27 | J138: 999.27 | K138: 1008.63 | L138: 1022.27 | M138: 995 | N138: 972 | O138: 1761200 | P138: 3.39%
A139: 129 | B139: Banking | C139: RBLBANK | D139: 2021-04-29 | E139: 209.75 | F139: 210.68 | G139: 206.67 | H139: 203.58 | I139: 199.57 | J139: 213.77 | K139: 217.78 | L139: 220.87 | M139: 214.7 | N139: 207.6 | O139: 20972800 | P139: 6.24%
A140: 130 | B140: Power | C140: RECLTD | D140: 2021-04-29 | E140: 129.05 | F140: 130.28 | G140: 127.12 | H140: 125.18 | I140: 122.02 | J140: 132.22 | K140: 135.38 | L140: 137.32 | M140: 133.45 | N140: 128.35 | O140: 18300000 | P140: 22.44%
A141: 131 | B141: Oil_Gas | C141: RELIANCE | D141: 2021-04-29 | E141: 2040.50 | F141: 2033.00 | G141: 2008.50 | H141: 1976.50 | I141: 1952.00 | J141: 2065.00 | K141: 2089.50 | L141: 2121.50 | M141: 2057.5 | N141: 2001 | O141: 28017000 | P141: 3.21%
A142: 132 | B142: Metals | C142: SAIL | D142: 2021-04-29 | E142: 79.60 | F142: 79.90 | G142: 78.20 | H142: 76.80 | I142: 75.10 | J142: 81.30 | K142: 83.00 | L142: 84.40 | M142: 81.6 | N142: 78.5 | O142: 160360000 | P142: 15.35%
A143: 133 | B143: Finance | C143: SBILIFE | D143: 2021-04-29 | E143: 876.55 | F143: 877.72 | G143: 870.48 | H143: 864.42 | I143: 857.18 | J143: 883.78 | K143: 891.02 | L143: 897.08 | M143: 884.95 | N143: 871.65 | O143: 5448000 | P143: 9.25%
A144: 134 | B144: Banking | C144: SBIN | D144: 2021-04-29 | E144: 363.50 | F144: 362.65 | G144: 359.05 | H144: 354.60 | I144: 351.00 | J144: 367.10 | K144: 370.70 | L144: 375.15 | M144: 366.25 | N144: 358.2 | O144: 92478000 | P144: 5.32%
A145: 135 | B145: Cement | C145: SHREECEM | D145: 2021-04-29 | E145: 29262.10 | F145: 29109.38 | G145: 28718.77 | H145: 28175.43 | I145: 27784.82 | J145: 29652.72 | K145: 30043.33 | L145: 30586.67 | M145: 29500 | N145: 28566.05 | O145: 133700 | P145: 8.26%
A146: 136 | B146: Capital_Goods | C146: SIEMENS | D146: 2021-04-29 | E146: 1847.10 | F146: 1850.00 | G146: 1830.00 | H146: 1812.90 | I146: 1792.90 | J146: 1867.10 | K146: 1887.10 | L146: 1904.20 | M146: 1870 | N146: 1832.9 | O146: 666050 | P146: 8.22%
A147: 137 | B147: Textile | C147: SRF | D147: 2021-04-29 | E147: 5442.10 | F147: 5409.07 | G147: 5358.13 | H147: 5274.17 | I147: 5223.23 | J147: 5493.03 | K147: 5543.97 | L147: 5627.93 | M147: 5460 | N147: 5325.1 | O147: 340625 | P147: 10.06%
A148: 138 | B148: Finance | C148: SRTRANSFIN | D148: 2021-04-29 | E148: 1420.60 | F148: 1426.53 | G148: 1406.57 | H148: 1392.53 | I148: 1372.57 | J148: 1440.57 | K148: 1460.53 | L148: 1474.57 | M148: 1446.5 | N148: 1412.5 | O148: 3526400 | P148: 6.71%
A149: 139 | B149: Pharma | C149: SUNPHARMA | D149: 2021-04-29 | E149: 600.60 | F149: 597.82 | G149: 594.08 | H149: 587.57 | I149: 583.83 | J149: 604.33 | K149: 608.07 | L149: 614.58 | M149: 601.55 | N149: 591.3 | O149: 41907600 | P149: 1.13%
A150: 140 | B150: Media | C150: SUNTV | D150: 2021-04-29 | E150: 467.10 | F150: 466.52 | G150: 459.53 | H150: 451.97 | I150: 444.98 | J150: 474.08 | K150: 481.07 | L150: 488.63 | M150: 473.5 | N150: 458.95 | O150: 12063000 | P150: 0.47%
A151: 141 | B151: Chemical | C151: TATACHEM | D151: 2021-04-29 | E151: 758.25 | F151: 757.13 | G151: 748.37 | H151: 738.48 | I151: 729.72 | J151: 767.02 | K151: 775.78 | L151: 785.67 | M151: 765.9 | N151: 747.25 | O151: 9242000 | P151: 4.76%
A152: 142 | B152: FMCG | C152: TATACONSUM | D152: 2021-04-29 | E152: 631.45 | F152: 630.42 | G152: 621.83 | H152: 612.22 | I152: 603.63 | J152: 640.03 | K152: 648.62 | L152: 658.23 | M152: 639 | N152: 620.8 | O152: 15792300 | P152: 42.48%
A153: 143 | B153: Automobile | C153: TATAMOTORS | D153: 2021-04-29 | E153: 298.40 | F153: 298.52 | G153: 294.18 | H153: 289.97 | I153: 285.63 | J153: 302.73 | K153: 307.07 | L153: 311.28 | M153: 302.85 | N153: 294.3 | O153: 94300800 | P153: 4.19%
A154: 144 | B154: Power | C154: TATAPOWER | D154: 2021-04-29 | E154: 104.20 | F154: 104.40 | G154: 103.05 | H154: 101.90 | I154: 100.55 | J154: 105.55 | K154: 106.90 | L154: 108.05 | M154: 105.75 | N154: 103.25 | O154: 131652000 | P154: 3.20%
A155: 145 | B155: Metals | C155: TATASTEEL | D155: 2021-04-29 | E155: 803.50 | F155: 797.03 | G155: 784.17 | H155: 764.83 | I155: 751.97 | J155: 816.37 | K155: 829.23 | L155: 848.57 | M155: 809.9 | N155: 777.7 | O155: 45685800 | P155: 6.55%
A156: 146 | B156: Technology | C156: TCS | D156: 2021-04-29 | E156: 3181.80 | F156: 3155.12 | G156: 3107.68 | H156: 3033.57 | I156: 2986.13 | J156: 3229.23 | K156: 3276.67 | L156: 3350.78 | M156: 3202.55 | N156: 3081 | O156: 7817100 | P156: 6.52%
A157: 147 | B157: Technology | C157: TECHM | D157: 2021-04-29 | E157: 1023.65 | F157: 1017.05 | G157: 1007.10 | H157: 990.55 | I157: 980.60 | J157: 1033.60 | K157: 1043.55 | L157: 1060.10 | M157: 1027 | N157: 1000.5 | O157: 12001200 | P157: 9.35%
A158: 148 | B158: FMCG | C158: TITAN | D158: 2021-04-29 | E158: 1558.50 | F158: 1549.65 | G158: 1527.85 | H158: 1497.20 | I158: 1475.40 | J158: 1580.30 | K158: 1602.10 | L158: 1632.75 | M158: 1571.45 | N158: 1519 | O158: 6219000 | P158: 5.48%
A159: 149 | B159: Pharma | C159: TORNTPHARM | D159: 2021-04-29 | E159: 2550.35 | F159: 2532.70 | G159: 2493.40 | H159: 2436.45 | I159: 2397.15 | J159: 2589.65 | K159: 2628.95 | L159: 2685.90 | M159: 2572 | N159: 2475.75 | O159: 903750 | P159: 4.48%
A160: 150 | B160: Power | C160: TORNTPOWER | D160: 2021-04-29 | E160: 424.75 | F160: 422.47 | G160: 417.93 | H160: 411.12 | I160: 406.58 | J160: 429.28 | K160: 433.82 | L160: 440.63 | M160: 427 | N160: 415.65 | O160: 2517000 | P160: 7.70%
A161: 151 | B161: Others | C161: TRENT | D161: 2021-04-29 | E161: 764.70 | F161: 767.35 | G161: 753.70 | H161: 742.70 | I161: 729.05 | J161: 778.35 | K161: 792.00 | L161: 803.00 | M161: 781 | N161: 756.35 | O161: 845350 | P161: 15.45%
A162: 152 | B162: Automobile | C162: TVSMOTOR | D162: 2021-04-29 | E162: 569.55 | F162: 570.78 | G162: 560.22 | H162: 550.88 | I162: 540.32 | J162: 580.12 | K162: 590.68 | L162: 600.02 | M162: 581.35 | N162: 561.45 | O162: 3540600 | P162: 32.13%
A163: 153 | B163: FMCG | C163: UBL | D163: 2021-04-29 | E163: 1233.55 | F163: 1241.43 | G163: 1223.02 | H163: 1212.48 | I163: 1194.07 | J163: 1251.97 | K163: 1270.38 | L163: 1280.92 | M163: 1259.85 | N163: 1230.9 | O163: 1042300 | P163: 10.87%
A164: 154 | B164: Cement | C164: ULTRACEMCO | D164: 2021-04-29 | E164: 6836.10 | F164: 6852.95 | G164: 6776.00 | H164: 6715.90 | I164: 6638.95 | J164: 6913.05 | K164: 6990.00 | L164: 7050.10 | M164: 6929.9 | N164: 6792.85 | O164: 1628800 | P164: 3.72%
A165: 155 | B165: Chemical | C165: UPL | D165: 2021-04-29 | E165: 632.75 | F165: 621.03 | G165: 605.42 | H165: 578.08 | I165: 562.47 | J165: 648.37 | K165: 663.98 | L165: 691.32 | M165: 636.65 | N165: 593.7 | O165: 20495800 | P165: 8.49%
A166: 156 | B166: Metals | C166: VEDL | D166: 2021-04-29 | E166: 229.80 | F166: 229.08 | G166: 227.77 | H166: 225.73 | I166: 224.42 | J166: 231.12 | K166: 232.43 | L166: 234.47 | M166: 230.4 | N166: 227.05 | O166: 71957200 | P166: 1.37%
A167: 157 | B167: Capital_Goods | C167: VOLTAS | D167: 2021-04-29 | E167: 1001.35 | F167: 1000.37 | G167: 988.78 | H167: 976.22 | I167: 964.63 | J167: 1012.93 | K167: 1024.52 | L167: 1037.08 | M167: 1011.95 | N167: 987.8 | O167: 3439000 | P167: 13.46%
A168: 158 | B168: Technology | C168: WIPRO | D168: 2021-04-29 | E168: 420.85 | F168: 417.27 | G168: 412.23 | H168: 403.62 | I168: 398.58 | J168: 425.88 | K168: 430.92 | L168: 439.53 | M168: 422.3 | N168: 408.65 | O168: 33814400 | P168: 3.78%
A169: 159 | B169: Media | C169: ZEEL | D169: 2021-04-29 | E169: 201.85 | F169: 202.28 | G169: 198.57 | H169: 195.28 | I169: 191.57 | J169: 205.57 | K169: 209.28 | L169: 212.57 | M169: 206 | N169: 199 | O169: 49092000 | P169: 1.26%
A175: Pivot Point: This is trigger point for intra day buy/sell based on the price range of the previous day
A176: As per the tool,the trader should take BUY position just above Pivot and keep the stop loss of pivot point and the first target would be Resistance 1(R1)
A177: If R1 is crossed then R2 becomes the next target with stop loss of at R1
A178: Similarly if price goes below pivot point then the trader should sell and keep a stop loss of pivot point and the first target would be S1
A179: If S1 is crossed then S2 becomes the next target with stop loss of at S1
A181: Disclaimer:
A182: This document has been prepared by the Retail Research Desk of Asit C Mehta
A183: Investment Intermediates Ltd. and is meant for use of the recipient only
A184: and is not for circulation. This document is not to be reported or
A185: copied or made available to others. It should not be considered to be
A186: taken as an offer to sell or a solicitation to buy any security. The
A187: information contained herein is from sources believed reliable. We do
A188: not represent that it is accurate or complete and it should not be
A189: relied upon as such. We may from time to time have positions in and buy
A190: and sell securities referred to herein

Sheet Cash Intra
M5: Back to Main Page
A6: FOR INTRA DAY TRADING | K6: =Main!B10 -> 2021-03-31
A8: Sr.no | B8: Scrip | C8: CLOSE RATE | D8: Pivot Point | E8: Supports | H8: Resistances
C9: Point | E9: S1 | F9: S2 | G9: S3 | H9: R1 | I9: R2 | J9: R3 | K9: HIGH | L9: LOW | M9: Total Trade Quanity in Lakhs
A10: 1 | B10: Nifty 50 | C10: 14845.1 | D10: 14779.67 | E10: 14683.03 | F10: 14520.97 | G10: 14424.33 | H10: 14941.73 | I10: 15038.37 | J10: 15200.43 | K10: 14876.3 | L10: 14617.6
A11: 2 | B11: Nifty Bank | C11: 33875.1 | D11: 33810.15 | E11: 33629.50 | F11: 33383.90 | G11: 33203.25 | H11: 34055.75 | I11: 34236.40 | J11: 34482.00 | K11: 33990.8 | L11: 33564.55
A12: 3 | B12: Nifty CPSE | C12: 1798 | D12: 1788.50 | E12: 1770.35 | F12: 1742.70 | G12: 1724.55 | H12: 1816.15 | I12: 1834.30 | J12: 1861.95 | K12: 1806.65 | L12: 1760.85
A13: 4 | B13: Nifty Infra | C13: 4104.85 | D13: 4095.58 | E13: 4077.12 | F13: 4049.38 | G13: 4030.92 | H13: 4123.32 | I13: 4141.78 | J13: 4169.52 | K13: 4114.05 | L13: 4067.85
A14: 5 | B14: Nifty IT | C14: 26121.1 | D14: 25952.32 | E14: 25597.98 | F14: 25074.87 | G14: 24720.53 | H14: 26475.43 | I14: 26829.77 | J14: 27352.88 | K14: 26306.65 | L14: 25429.2
A15: 6 | B15: Nifty PSE | C15: 3115.7 | D15: 3112.13 | E15: 3091.97 | F15: 3068.23 | G15: 3048.07 | H15: 3135.87 | I15: 3156.03 | J15: 3179.77 | K15: 3132.3 | L15: 3088.4
A16: 7 | B16: Nifty Midcap 50 | C16: 6761.8 | D16: 6749.22 | E16: 6718.93 | F16: 6676.07 | G16: 6645.78 | H16: 6792.08 | I16: 6822.37 | J16: 6865.23 | K16: 6779.5 | L16: 6706.35
A17: 8 | B17: ACC | C17: 1874.05 | D17: 1879.07 | E17: 1853.13 | F17: 1832.22 | G17: 1806.28 | H17: 1899.98 | I17: 1925.92 | J17: 1946.83 | K17: 1905 | L17: 1858.15 | M17: 6.21135
A18: 9 | B18: AUBANK | C18: 1298.9 | D18: 1272.77 | E18: 1191.13 | F18: 1083.37 | G18: 1001.73 | H18: 1380.53 | I18: 1462.17 | J18: 1569.93 | K18: 1354.4 | L18: 1165 | M18: 76.5063
A19: 10 | B19: AARTIIND | C19: 1338.7 | D19: 1337.35 | E19: 1322.70 | F19: 1306.70 | G19: 1292.05 | H19: 1353.35 | I19: 1368.00 | J19: 1384.00 | K19: 1352 | L19: 1321.35 | M19: 2.65691
A20: 11 | B20: ABBOTINDIA | C20: 15086.55 | D20: 15084.72 | E20: 14901.63 | F20: 14716.72 | G20: 14533.63 | H20: 15269.63 | I20: 15452.72 | J20: 15637.63 | K20: 15267.8 | L20: 14899.8 | M20: 0.21091
A21: 12 | B21: ADANIENT | C21: 1031.55 | D21: 1020.67 | E21: 998.88 | F21: 966.22 | G21: 944.43 | H21: 1053.33 | I21: 1075.12 | J21: 1107.78 | K21: 1042.45 | L21: 988 | M21: 104.70731
A22: 13 | B22: ADANIGREEN | C22: 1157.65 | D22: 1179.80 | E22: 1129.60 | F22: 1101.55 | G22: 1051.35 | H22: 1207.85 | I22: 1258.05 | J22: 1286.10 | K22: 1230 | L22: 1151.75 | M22: 7.37621
A23: 14 | B23: ADANIPORTS | C23: 710.55 | D23: 708.62 | E23: 699.23 | F23: 687.92 | G23: 678.53 | H23: 719.93 | I23: 729.32 | J23: 740.63 | K23: 718 | L23: 697.3 | M23: 91.09505
A24: 15 | B24: ATGL | C24: 910.9 | D24: 906.97 | E24: 888.93 | F24: 866.97 | G24: 848.93 | H24: 928.93 | I24: 946.97 | J24: 968.93 | K24: 925 | L24: 885 | M24: 14.17318
A25: 16 | B25: ADANITRANS | C25: 877.55 | D25: 880.30 | E25: 842.60 | F25: 807.65 | G25: 769.95 | H25: 915.25 | I25: 952.95 | J25: 987.90 | K25: 918 | L25: 845.35 | M25: 15.14205
A26: 17 | B26: ABCAPITAL | C26: 119.05 | D26: 120.58 | E26: 116.97 | F26: 114.88 | G26: 111.27 | H26: 122.67 | I26: 126.28 | J26: 128.37 | K26: 124.2 | L26: 118.5 | M26: 27.45079
A27: 18 | B27: ABFRL | C27: 203.6 | D27: 203.13 | E27: 198.62 | F27: 193.63 | G27: 189.12 | H27: 208.12 | I27: 212.63 | J27: 217.62 | K27: 207.65 | L27: 198.15 | M27: 19.1889
A28: 19 | B28: AJANTPHARM | C28: 1862.65 | D28: 1834.05 | E28: 1783.55 | F28: 1704.45 | G28: 1653.95 | H28: 1913.15 | I28: 1963.65 | J28: 2042.75 | K28: 1884.55 | L28: 1754.95 | M28: 1.13308
A29: 20 | B29: APLLTD | C29: 955.5 | D29: 954.10 | E29: 941.20 | F29: 926.90 | G29: 914.00 | H29: 968.40 | I29: 981.30 | J29: 995.60 | K29: 967 | L29: 939.8 | M29: 4.08354
A30: 21 | B30: ALKEM | C30: 2739.65 | D30: 2716.83 | E30: 2677.87 | F30: 2616.08 | G30: 2577.12 | H30: 2778.62 | I30: 2817.58 | J30: 2879.37 | K30: 2755.8 | L30: 2655.05 | M30: 1.74143
A31: 22 | B31: AMARAJABAT | C31: 855.35 | D31: 851.83 | E31: 845.67 | F31: 835.98 | G31: 829.82 | H31: 861.52 | I31: 867.68 | J31: 877.37 | K31: 858 | L31: 842.15 | M31: 4.51465
A32: 23 | B32: AMBUJACEM | C32: 299.85 | D32: 299.57 | E32: 295.63 | F32: 291.42 | G32: 287.48 | H32: 303.78 | I32: 307.72 | J32: 311.93 | K32: 303.5 | L32: 295.35 | M32: 60.89054
A33: 24 | B33: APOLLOHOSP | C33: 2925.6 | D33: 2923.83 | E33: 2876.77 | F33: 2827.93 | G33: 2780.87 | H33: 2972.67 | I33: 3019.73 | J33: 3068.57 | K33: 2970.9 | L33: 2875 | M33: 14.20415
A34: 25 | B34: APOLLOTYRE | C34: 222.95 | D34: 223.48 | E34: 219.17 | F34: 215.38 | G34: 211.07 | H34: 227.27 | I34: 231.58 | J34: 235.37 | K34: 227.8 | L34: 219.7 | M34: 44.19367
A35: 26 | B35: ASHOKLEY | C35: 113.65 | D35: 113.70 | E35: 111.65 | F35: 109.65 | G35: 107.60 | H35: 115.70 | I35: 117.75 | J35: 119.75 | K35: 115.75 | L35: 111.7 | M35: 169.85618
A36: 27 | B36: ASIANPAINT | C36: 2578.05 | D36: 2561.00 | E36: 2538.55 | F36: 2499.05 | G36: 2476.60 | H36: 2600.50 | I36: 2622.95 | J36: 2662.45 | K36: 2583.45 | L36: 2521.5 | M36: 23.3341
A37: 28 | B37: AUROPHARMA | C37: 870.4 | D37: 865.25 | E37: 857.45 | F37: 844.50 | G37: 836.70 | H37: 878.20 | I37: 886.00 | J37: 898.95 | K37: 873.05 | L37: 852.3 | M37: 16.46609
A38: 29 | B38: DMART | C38: 2837.55 | D38: 2854.18 | E38: 2790.37 | F38: 2743.18 | G38: 2679.37 | H38: 2901.37 | I38: 2965.18 | J38: 3012.37 | K38: 2918 | L38: 2807 | M38: 6.96633
A39: 30 | B39: AXISBANK | C39: 695.35 | D39: 699.88 | E39: 686.47 | F39: 677.58 | G39: 664.17 | H39: 708.77 | I39: 722.18 | J39: 731.07 | K39: 713.3 | L39: 691 | M39: 259.65742
A40: 31 | B40: BAJAJ-AUTO | C40: 3666.7 | D40: 3640.93 | E40: 3607.12 | F40: 3547.53 | G40: 3513.72 | H40: 3700.52 | I40: 3734.33 | J40: 3793.92 | K40: 3674.75 | L40: 3581.35 | M40: 7.4923
A41: 32 | B41: BAJFINANCE | C41: 5193.55 | D41: 5201.18 | E41: 5142.37 | F41: 5091.18 | G41: 5032.37 | H41: 5252.37 | I41: 5311.18 | J41: 5362.37 | K41: 5260 | L41: 5150 | M41: 18.45391
A42: 33 | B42: BAJAJFINSV | C42: 9502.35 | D42: 9529.13 | E42: 9413.27 | F42: 9324.18 | G42: 9208.32 | H42: 9618.22 | I42: 9734.08 | J42: 9823.17 | K42: 9645 | L42: 9440.05 | M42: 3.56516
A43: 34 | B43: BAJAJHLDNG | C43: 3197.2 | D43: 3235.15 | E43: 3103.05 | F43: 3008.90 | G43: 2876.80 | H43: 3329.30 | I43: 3461.40 | J43: 3555.55 | K43: 3367.25 | L43: 3141 | M43: 1.45669
A44: 35 | B44: BALKRISIND | C44: 1658.1 | D44: 1657.47 | E44: 1644.93 | F44: 1631.77 | G44: 1619.23 | H44: 1670.63 | I44: 1683.17 | J44: 1696.33 | K44: 1670 | L44: 1644.3 | M44: 2.87038
A45: 36 | B45: BANDHANBNK | C45: 336.45 | D45: 341.30 | E45: 330.30 | F45: 324.15 | G45: 313.15 | H45: 347.45 | I45: 358.45 | J45: 364.60 | K45: 352.3 | L45: 335.15 | M45: 82.37822
A46: 37 | B46: BANKBARODA | C46: 72.25 | D46: 72.43 | E46: 70.67 | F46: 69.08 | G46: 67.32 | H46: 74.02 | I46: 75.78 | J46: 77.37 | K46: 74.2 | L46: 70.85 | M46: 837.91986
A47: 38 | B47: BANKINDIA | C47: 69.75 | D47: 69.72 | E47: 69.13 | F47: 68.52 | G47: 67.93 | H47: 70.33 | I47: 70.92 | J47: 71.53 | K47: 70.3 | L47: 69.1 | M47: 31.78425
A48: 39 | B48: BATAINDIA | C48: 1404.25 | D48: 1410.92 | E48: 1389.83 | F48: 1375.42 | G48: 1354.33 | H48: 1425.33 | I48: 1446.42 | J48: 1460.83 | K48: 1432 | L48: 1396.5 | M48: 4.78319
A49: 40 | B49: BERGEPAINT | C49: 759.8 | D49: 762.93 | E49: 753.87 | F49: 747.93 | G49: 738.87 | H49: 768.87 | I49: 777.93 | J49: 783.87 | K49: 772 | L49: 757 | M49: 16.25617
A50: 41 | B50: BEL | C50: 125.8 | D50: 125.22 | E50: 123.48 | F50: 121.17 | G50: 119.43 | H50: 127.53 | I50: 129.27 | J50: 131.58 | K50: 126.95 | L50: 122.9 | M50: 142.3272
A51: 42 | B51: BHARATFORG | C51: 590.65 | D51: 593.15 | E51: 585.85 | F51: 581.05 | G51: 573.75 | H51: 597.95 | I51: 605.25 | J51: 610.05 | K51: 600.45 | L51: 588.35 | M51: 9.33525
A52: 43 | B52: BHEL | C52: 48.95 | D52: 48.95 | E52: 48.30 | F52: 47.65 | G52: 47.00 | H52: 49.60 | I52: 50.25 | J52: 50.90 | K52: 49.6 | L52: 48.3 | M52: 417.00664
A53: 44 | B53: BPCL | C53: 430.8 | D53: 428.73 | E53: 423.57 | F53: 416.33 | G53: 411.17 | H53: 435.97 | I53: 441.13 | J53: 448.37 | K53: 433.9 | L53: 421.5 | M53: 85.76904
A54: 45 | B54: BHARTIARTL | C54: 521.5 | D54: 521.88 | E54: 515.87 | F54: 510.23 | G54: 504.22 | H54: 527.52 | I54: 533.53 | J54: 539.17 | K54: 527.9 | L54: 516.25 | M54: 104.94794
A55: 46 | B55: BIOCON | C55: 408.45 | D55: 405.67 | E55: 401.83 | F55: 395.22 | G55: 391.38 | H55: 412.28 | I55: 416.12 | J55: 422.73 | K55: 409.5 | L55: 399.05 | M55: 41.93149
A56: 47 | B56: BBTC | C56: 1121.7 | D56: 1121.23 | E56: 1114.47 | F56: 1107.23 | G56: 1100.47 | H56: 1128.47 | I56: 1135.23 | J56: 1142.47 | K56: 1128 | L56: 1114 | M56: 0.35399
A57: 48 | B57: BOSCHLTD | C57: 14256.6 | D57: 14131.47 | E57: 13891.08 | F57: 13525.57 | G57: 13285.18 | H57: 14496.98 | I57: 14737.37 | J57: 15102.88 | K57: 14371.85 | L57: 13765.95 | M57: 0.55183
A58: 49 | B58: BRITANNIA | C58: 3616 | D58: 3583.68 | E58: 3542.37 | F58: 3468.73 | G58: 3427.42 | H58: 3657.32 | I58: 3698.63 | J58: 3772.27 | K58: 3625 | L58: 3510.05 | M58: 5.6745
A59: 50 | B59: CESC | C59: 595.8 | D59: 599.95 | E59: 586.95 | F59: 578.10 | G59: 565.10 | H59: 608.80 | I59: 621.80 | J59: 630.65 | K59: 612.95 | L59: 591.1 | M59: 2.99563
A60: 51 | B60: CADILAHC | C60: 434.55 | D60: 431.03 | E60: 425.77 | F60: 416.98 | G60: 411.72 | H60: 439.82 | I60: 445.08 | J60: 453.87 | K60: 436.3 | L60: 422.25 | M60: 19.97389
A61: 52 | B61: CANBK | C61: 147.05 | D61: 147.12 | E61: 144.73 | F61: 142.42 | G61: 140.03 | H61: 149.43 | I61: 151.82 | J61: 154.13 | K61: 149.5 | L61: 144.8 | M61: 130.91155
A62: 53 | B62: CASTROLIND | C62: 124.8 | D62: 124.37 | E62: 123.38 | F62: 121.97 | G62: 120.98 | H62: 125.78 | I62: 126.77 | J62: 128.18 | K62: 125.35 | L62: 122.95 | M62: 6.61055
A63: 54 | B63: CHOLAFIN | C63: 555.3 | D63: 556.33 | E63: 548.37 | F63: 541.43 | G63: 533.47 | H63: 563.27 | I63: 571.23 | J63: 578.17 | K63: 564.3 | L63: 549.4 | M63: 19.5677
A64: 55 | B64: CIPLA | C64: 812.2 | D64: 806.12 | E64: 796.33 | F64: 780.47 | G64: 770.68 | H64: 821.98 | I64: 831.77 | J64: 847.63 | K64: 815.9 | L64: 790.25 | M64: 44.53933
A65: 56 | B65: CUB | C65: 153.9 | D65: 155.30 | E65: 148.60 | F65: 143.30 | G65: 136.60 | H65: 160.60 | I65: 167.30 | J65: 172.60 | K65: 162 | L65: 150 | M65: 55.10475
A66: 57 | B66: COALINDIA | C66: 132.95 | D66: 132.52 | E66: 130.58 | F66: 128.22 | G66: 126.28 | H66: 134.88 | I66: 136.82 | J66: 139.18 | K66: 134.45 | L66: 130.15 | M66: 205.84678
A67: 58 | B67: COFORGE | C67: 2960.1 | D67: 2908.13 | E67: 2828.27 | F67: 2696.43 | G67: 2616.57 | H67: 3039.97 | I67: 3119.83 | J67: 3251.67 | K67: 2988 | L67: 2776.3 | M67: 7.06485
A68: 59 | B68: COLPAL | C68: 1552.7 | D68: 1548.10 | E68: 1534.45 | F68: 1516.20 | G68: 1502.55 | H68: 1566.35 | I68: 1580.00 | J68: 1598.25 | K68: 1561.75 | L68: 1529.85 | M68: 5.09875
A69: 60 | B69: CONCOR | C69: 597.8 | D69: 598.48 | E69: 586.82 | F69: 575.83 | G69: 564.17 | H69: 609.47 | I69: 621.13 | J69: 632.12 | K69: 610.15 | L69: 587.5 | M69: 68.13463
A70: 61 | B70: COROMANDEL | C70: 769.7 | D70: 765.92 | E70: 758.78 | F70: 747.87 | G70: 740.73 | H70: 776.83 | I70: 783.97 | J70: 794.88 | K70: 773.05 | L70: 755 | M70: 2.81205
A71: 62 | B71: CROMPTON | C71: 385.85 | D71: 383.48 | E71: 377.97 | F71: 370.08 | G71: 364.57 | H71: 391.37 | I71: 396.88 | J71: 404.77 | K71: 389 | L71: 375.6 | M71: 14.97268
A72: 63 | B72: CUMMINSIND | C72: 897.9 | D72: 891.18 | E72: 874.47 | F72: 851.03 | G72: 834.32 | H72: 914.62 | I72: 931.33 | J72: 954.77 | K72: 907.9 | L72: 867.75 | M72: 14.13577
A73: 64 | B73: DLF | C73: 279.3 | D73: 279.42 | E73: 274.38 | F73: 269.47 | G73: 264.43 | H73: 284.33 | I73: 289.37 | J73: 294.28 | K73: 284.45 | L73: 274.5 | M73: 77.3036
A74: 65 | B74: DABUR | C74: 538 | D74: 537.07 | E74: 532.93 | F74: 527.87 | G74: 523.73 | H74: 542.13 | I74: 546.27 | J74: 551.33 | K74: 541.2 | L74: 532 | M74: 26.43994
A75: 66 | B75: DALBHARAT | C75: 1584 | D75: 1575.68 | E75: 1545.47 | F75: 1506.93 | G75: 1476.72 | H75: 1614.22 | I75: 1644.43 | J75: 1682.97 | K75: 1605.9 | L75: 1537.15 | M75: 1.24486
A76: 67 | B76: DHANI | C76: 186.75 | D76: 195.58 | E76: 171.47 | F76: 156.18 | G76: 132.07 | H76: 210.87 | I76: 234.98 | J76: 250.27 | K76: 219.7 | L76: 180.3 | M76: 70.78719
A77: 68 | B77: DIVISLAB | C77: 3584.25 | D77: 3554.77 | E77: 3509.53 | F77: 3434.82 | G77: 3389.58 | H77: 3629.48 | I77: 3674.72 | J77: 3749.43 | K77: 3600 | L77: 3480.05 | M77: 7.32609
A78: 69 | B78: LALPATHLAB | C78: 2614.8 | D78: 2631.23 | E78: 2572.97 | F78: 2531.13 | G78: 2472.87 | H78: 2673.07 | I78: 2731.33 | J78: 2773.17 | K78: 2689.5 | L78: 2589.4 | M78: 3.55517
A79: 70 | B79: DRREDDY | C79: 4518.2 | D79: 4488.90 | E79: 4450.35 | F79: 4382.50 | G79: 4343.95 | H79: 4556.75 | I79: 4595.30 | J79: 4663.15 | K79: 4527.45 | L79: 4421.05 | M79: 8.6635
A80: 71 | B80: EDELWEISS | C80: 66.6 | D80: 67.90 | E80: 65.30 | F80: 64.00 | G80: 61.40 | H80: 69.20 | I80: 71.80 | J80: 73.10 | K80: 70.5 | L80: 66.6 | M80: 21.96913
A81: 72 | B81: EICHERMOT | C81: 2639.95 | D81: 2618.33 | E81: 2582.97 | F81: 2525.98 | G81: 2490.62 | H81: 2675.32 | I81: 2710.68 | J81: 2767.67 | K81: 2653.7 | L81: 2561.35 | M81: 9.80341
A82: 73 | B82: EMAMILTD | C82: 493.35 | D82: 489.15 | E82: 477.20 | F82: 461.05 | G82: 449.10 | H82: 505.30 | I82: 517.25 | J82: 533.40 | K82: 501.1 | L82: 473 | M82: 7.85314
A83: 74 | B83: ENDURANCE | C83: 1464.15 | D83: 1457.40 | E83: 1434.80 | F83: 1405.45 | G83: 1382.85 | H83: 1486.75 | I83: 1509.35 | J83: 1538.70 | K83: 1480 | L83: 1428.05 | M83: 1.10596
A84: 75 | B84: ESCORTS | C84: 1274.35 | D84: 1276.25 | E84: 1260.55 | F84: 1246.75 | G84: 1231.05 | H84: 1290.05 | I84: 1305.75 | J84: 1319.55 | K84: 1291.95 | L84: 1262.45 | M84: 5.5308
A85: 76 | B85: EXIDEIND | C85: 186.2 | D85: 185.30 | E85: 183.75 | F85: 181.30 | G85: 179.75 | H85: 187.75 | I85: 189.30 | J85: 191.75 | K85: 186.85 | L85: 182.85 | M85: 39.11551
A86: 77 | B86: FEDERALBNK | C86: 75.8 | D86: 76.52 | E86: 74.83 | F86: 73.87 | G86: 72.18 | H86: 77.48 | I86: 79.17 | J86: 80.13 | K86: 78.2 | L86: 75.55 | M86: 207.29627
A87: 78 | B87: FORTIS | C87: 200.6 | D87: 201.25 | E87: 196.85 | F87: 193.10 | G87: 188.70 | H87: 205.00 | I87: 209.40 | J87: 213.15 | K87: 205.65 | L87: 197.5 | M87: 26.51307
A88: 79 | B88: FRETAIL | C88: 44.85 | D88: 45.73 | E88: 43.97 | F88: 43.08 | G88: 41.32 | H88: 46.62 | I88: 48.38 | J88: 49.27 | K88: 47.5 | L88: 44.85 | M88: 38.35506
A89: 80 | B89: GAIL | C89: 132.35 | D89: 133.47 | E89: 129.68 | F89: 127.02 | G89: 123.23 | H89: 136.13 | I89: 139.92 | J89: 142.58 | K89: 137.25 | L89: 130.8 | M89: 718.584
A90: 81 | B90: GMRINFRA | C90: 24.4 | D90: 25.10 | E90: 23.60 | F90: 22.80 | G90: 21.30 | H90: 25.90 | I90: 27.40 | J90: 28.20 | K90: 26.6 | L90: 24.3 | M90: 171.58582
A91: 82 | B91: GICRE | C91: 183.7 | D91: 190.73 | E91: 175.57 | F91: 167.43 | G91: 152.27 | H91: 198.87 | I91: 214.03 | J91: 222.17 | K91: 205.9 | L91: 182.6 | M91: 23.89997
A92: 83 | B92: GLENMARK | C92: 461.9 | D92: 459.05 | E92: 454.85 | F92: 447.80 | G92: 443.60 | H92: 466.10 | I92: 470.30 | J92: 477.35 | K92: 463.25 | L92: 452 | M92: 10.86346
A93: 84 | B93: GODREJAGRO | C93: 513 | D93: 508.60 | E93: 493.20 | F93: 473.40 | G93: 458.00 | H93: 528.40 | I93: 543.80 | J93: 563.60 | K93: 524 | L93: 488.8 | M93: 3.1566
A94: 85 | B94: GODREJCP | C94: 726.5 | D94: 723.78 | E94: 716.27 | F94: 706.03 | G94: 698.52 | H94: 734.02 | I94: 741.53 | J94: 751.77 | K94: 731.3 | L94: 713.55 | M94: 24.62785
A95: 86 | B95: GODREJIND | C95: 545.8 | D95: 542.27 | E95: 534.53 | F95: 523.27 | G95: 515.53 | H95: 553.53 | I95: 561.27 | J95: 572.53 | K95: 550 | L95: 531 | M95: 4.60165
A96: 87 | B96: GODREJPROP | C96: 1352.2 | D96: 1361.30 | E96: 1333.45 | F96: 1314.70 | G96: 1286.85 | H96: 1380.05 | I96: 1407.90 | J96: 1426.65 | K96: 1389.15 | L96: 1342.55 | M96: 6.9522
A97: 88 | B97: GRASIM | C97: 1422.6 | D97: 1420.00 | E97: 1398.35 | F97: 1374.10 | G97: 1352.45 | H97: 1444.25 | I97: 1465.90 | J97: 1490.15 | K97: 1441.65 | L97: 1395.75 | M97: 25.74303
A98: 89 | B98: GUJGASLTD | C98: 537.6 | D98: 530.87 | E98: 521.73 | F98: 505.87 | G98: 496.73 | H98: 546.73 | I98: 555.87 | J98: 571.73 | K98: 540 | L98: 515 | M98: 12.26159
A99: 90 | B99: GSPL | C99: 267.2 | D99: 265.80 | E99: 261.80 | F99: 256.40 | G99: 252.40 | H99: 271.20 | I99: 275.20 | J99: 280.60 | K99: 269.8 | L99: 260.4 | M99: 5.50455
A100: 91 | B100: HCLTECH | C100: 995.8 | D100: 987.02 | E100: 973.23 | F100: 950.67 | G100: 936.88 | H100: 1009.58 | I100: 1023.37 | J100: 1045.93 | K100: 1000.8 | L100: 964.45 | M100: 54.75051
A101: 92 | B101: HDFCAMC | C101: 2892.25 | D101: 2888.08 | E101: 2864.17 | F101: 2836.08 | G101: 2812.17 | H101: 2916.17 | I101: 2940.08 | J101: 2968.17 | K101: 2912 | L101: 2860 | M101: 1.80923
A102: 93 | B102: HDFCBANK | C102: 1553.7 | D102: 1539.27 | E102: 1515.98 | F102: 1478.27 | G102: 1454.98 | H102: 1576.98 | I102: 1600.27 | J102: 1637.98 | K102: 1562.55 | L102: 1501.55 | M102: 128.04032
A103: 94 | B103: HDFCLIFE | C103: 687.75 | D103: 685.35 | E103: 677.40 | F103: 667.05 | G103: 659.10 | H103: 695.70 | I103: 703.65 | J103: 714.00 | K103: 693.3 | L103: 675 | M103: 34.67886
A104: 95 | B104: HAVELLS | C104: 1050.55 | D104: 1058.70 | E104: 1039.40 | F104: 1028.25 | G104: 1008.95 | H104: 1069.85 | I104: 1089.15 | J104: 1100.30 | K104: 1078 | L104: 1047.55 | M104: 12.97976
A105: 96 | B105: HEROMOTOCO | C105: 2963.85 | D105: 2952.27 | E105: 2928.18 | F105: 2892.52 | G105: 2868.43 | H105: 2987.93 | I105: 3012.02 | J105: 3047.68 | K105: 2976.35 | L105: 2916.6 | M105: 8.99494
A106: 97 | B106: HINDALCO | C106: 326.3 | D106: 328.05 | E106: 323.20 | F106: 320.10 | G106: 315.25 | H106: 331.15 | I106: 336.00 | J106: 339.10 | K106: 332.9 | L106: 324.95 | M106: 91.59364
A107: 98 | B107: HINDPETRO | C107: 230 | D107: 230.22 | E107: 228.53 | F107: 227.07 | G107: 225.38 | H107: 231.68 | I107: 233.37 | J107: 234.83 | K107: 231.9 | L107: 228.75 | M107: 35.72153
A108: 99 | B108: HINDUNILVR | C108: 2398.75 | D108: 2376.58 | E108: 2347.17 | F108: 2295.58 | G108: 2266.17 | H108: 2428.17 | I108: 2457.58 | J108: 2509.17 | K108: 2406 | L108: 2325 | M108: 33.27205
A109: 100 | B109: HINDZINC | C109: 262.25 | D109: 267.42 | E109: 251.83 | F109: 241.42 | G109: 225.83 | H109: 277.83 | I109: 293.42 | J109: 303.83 | K109: 283 | L109: 257 | M109: 27.86711
A110: 101 | B110: HUDCO | C110: 44.1 | D110: 44.25 | E110: 43.70 | F110: 43.30 | G110: 42.75 | H110: 44.65 | I110: 45.20 | J110: 45.60 | K110: 44.8 | L110: 43.85 | M110: 13.86013
A111: 102 | B111: HDFC | C111: 2605.65 | D111: 2592.63 | E111: 2568.27 | F111: 2530.88 | G111: 2506.52 | H111: 2630.02 | I111: 2654.38 | J111: 2691.77 | K111: 2617 | L111: 2555.25 | M111: 43.49089
A112: 103 | B112: ICICIBANK | C112: 591.45 | D112: 588.85 | E112: 584.60 | F112: 577.75 | G112: 573.50 | H112: 595.70 | I112: 599.95 | J112: 606.80 | K112: 593.1 | L112: 582 | M112: 280.12288
A113: 104 | B113: ICICIGI | C113: 1432.95 | D113: 1424.68 | E113: 1409.37 | F113: 1385.78 | G113: 1370.47 | H113: 1448.27 | I113: 1463.58 | J113: 1487.17 | K113: 1440 | L113: 1401.1 | M113: 5.59402
A114: 105 | B114: ICICIPRULI | C114: 431.75 | D114: 434.28 | E114: 427.77 | F114: 423.78 | G114: 417.27 | H114: 438.27 | I114: 444.78 | J114: 448.77 | K114: 440.8 | L114: 430.3 | M114: 22.27776
A115: 106 | B115: ISEC | C115: 387.35 | D115: 391.87 | E115: 381.48 | F115: 375.62 | G115: 365.23 | H115: 397.73 | I115: 408.12 | J115: 413.98 | K115: 402.25 | L115: 386 | M115: 7.12755
A116: 107 | B116: IDFCFIRSTB | C116: 58.25 | D116: 58.75 | E116: 57.50 | F116: 56.75 | G116: 55.50 | H116: 59.50 | I116: 60.75 | J116: 61.50 | K116: 60 | L116: 58 | M116: 386.80457
A117: 108 | B117: ITC | C117: 214.55 | D117: 213.32 | E117: 211.63 | F117: 208.72 | G117: 207.03 | H117: 216.23 | I117: 217.92 | J117: 220.83 | K117: 215 | L117: 210.4 | M117: 277.92437
A118: 109 | B118: IBULHSGFIN | C118: 196.05 | D118: 196.72 | E118: 192.43 | F118: 188.82 | G118: 184.53 | H118: 200.33 | I118: 204.62 | J118: 208.23 | K118: 201 | L118: 193.1 | M118: 106.56553
A119: 110 | B119: INDHOTEL | C119: 105.7 | D119: 106.90 | E119: 103.80 | F119: 101.90 | G119: 98.80 | H119: 108.80 | I119: 111.90 | J119: 113.80 | K119: 110 | L119: 105 | M119: 16.60627
A120: 111 | B120: IOC | C120: 91.55 | D120: 91.20 | E120: 90.45 | F120: 89.35 | G120: 88.60 | H120: 92.30 | I120: 93.05 | J120: 94.15 | K120: 91.95 | L120: 90.1 | M120: 205.91828
A121: 112 | B121: IRCTC | C121: 1755.25 | D121: 1756.55 | E121: 1739.10 | F121: 1722.95 | G121: 1705.50 | H121: 1772.70 | I121: 1790.15 | J121: 1806.30 | K121: 1774 | L121: 1740.4 | M121: 14.73085
A122: 113 | B122: IGL | C122: 510.85 | D122: 511.45 | E122: 504.90 | F122: 498.95 | G122: 492.40 | H122: 517.40 | I122: 523.95 | J122: 529.90 | K122: 518 | L122: 505.5 | M122: 23.08845
A123: 114 | B123: INDUSTOWER | C123: 254.6 | D123: 252.23 | E123: 242.67 | F123: 230.73 | G123: 221.17 | H123: 264.17 | I123: 273.73 | J123: 285.67 | K123: 261.8 | L123: 240.3 | M123: 80.67414
A124: 115 | B124: INDUSINDBK | C124: 961.05 | D124: 964.82 | E124: 951.23 | F124: 941.42 | G124: 927.83 | H124: 974.63 | I124: 988.22 | J124: 998.03 | K124: 978.4 | L124: 955 | M124: 58.32348
A125: 116 | B125: NAUKRI | C125: 4158.45 | D125: 4237.90 | E125: 3944.45 | F125: 3730.45 | G125: 3437.00 | H125: 4451.90 | I125: 4745.35 | J125: 4959.35 | K125: 4531.35 | L125: 4023.9 | M125: 17.48909
A126: 117 | B126: INFY | C126: 1385.3 | D126: 1373.82 | E126: 1347.63 | F126: 1309.97 | G126: 1283.78 | H126: 1411.48 | I126: 1437.67 | J126: 1475.33 | K126: 1400 | L126: 1336.15 | M126: 105.46919
A127: 118 | B127: INDIGO | C127: 1585.4 | D127: 1596.77 | E127: 1563.83 | F127: 1542.27 | G127: 1509.33 | H127: 1618.33 | I127: 1651.27 | J127: 1672.83 | K127: 1629.7 | L127: 1575.2 | M127: 12.29662
A128: 119 | B128: IPCALAB | C128: 1890 | D128: 1900.33 | E128: 1855.67 | F128: 1821.33 | G128: 1776.67 | H128: 1934.67 | I128: 1979.33 | J128: 2013.67 | K128: 1945 | L128: 1866 | M128: 2.77545
A129: 120 | B129: JSWENERGY | C129: 87.3 | D129: 88.10 | E129: 85.80 | F129: 84.30 | G129: 82.00 | H129: 89.60 | I129: 91.90 | J129: 93.40 | K129: 90.4 | L129: 86.6 | M129: 65.97444
A130: 121 | B130: JSWSTEEL | C130: 467.45 | D130: 463.28 | E130: 456.37 | F130: 445.28 | G130: 438.37 | H130: 474.37 | I130: 481.28 | J130: 492.37 | K130: 470.2 | L130: 452.2 | M130: 176.46211
A131: 122 | B131: JINDALSTEL | C131: 336.45 | D131: 335.18 | E131: 329.47 | F131: 322.48 | G131: 316.77 | H131: 342.17 | I131: 347.88 | J131: 354.87 | K131: 340.9 | L131: 328.2 | M131: 93.79731
A132: 123 | B132: JUBLFOOD | C132: 2955.7 | D132: 2946.25 | E132: 2910.05 | F132: 2864.40 | G132: 2828.20 | H132: 2991.90 | I132: 3028.10 | J132: 3073.75 | K132: 2982.45 | L132: 2900.6 | M132: 9.64329
A133: 124 | B133: KOTAKBANK | C133: 1781.25 | D133: 1786.07 | E133: 1770.18 | F133: 1759.12 | G133: 1743.23 | H133: 1797.13 | I133: 1813.02 | J133: 1824.08 | K133: 1801.95 | L133: 1775 | M133: 55.75571
A134: 125 | B134: L&TFH | C134: 95.65 | D134: 95.43 | E134: 93.97 | F134: 92.28 | G134: 90.82 | H134: 97.12 | I134: 98.58 | J134: 100.27 | K134: 96.9 | L134: 93.75 | M134: 86.46654
A135: 126 | B135: LTTS | C135: 2640.65 | D135: 2615.55 | E135: 2575.10 | F135: 2509.55 | G135: 2469.10 | H135: 2681.10 | I135: 2721.55 | J135: 2787.10 | K135: 2656 | L135: 2550 | M135: 2.6849
A136: 127 | B136: LICHSGFIN | C136: 420.55 | D136: 420.92 | E136: 414.43 | F136: 408.32 | G136: 401.83 | H136: 427.03 | I136: 433.52 | J136: 439.63 | K136: 427.4 | L136: 414.8 | M136: 24.78626
A137: 128 | B137: LTI | C137: 4163 | D137: 4108.67 | E137: 3973.33 | F137: 3783.67 | G137: 3648.33 | H137: 4298.33 | I137: 4433.67 | J137: 4623.33 | K137: 4244 | L137: 3919 | M137: 3.5436
A138: 129 | B138: LT | C138: 1423.55 | D138: 1415.77 | E138: 1403.33 | F138: 1383.12 | G138: 1370.68 | H138: 1435.98 | I138: 1448.42 | J138: 1468.63 | K138: 1428.2 | L138: 1395.55 | M138: 28.01283
A139: 130 | B139: LUPIN | C139: 1005.9 | D139: 1000.25 | E139: 990.65 | F139: 975.40 | G139: 965.80 | H139: 1015.50 | I139: 1025.10 | J139: 1040.35 | K139: 1009.85 | L139: 985 | M139: 18.75762
A140: 131 | B140: MRF | C140: 83185.3 | D140: 82818.78 | E140: 81691.57 | F140: 80197.83 | G140: 79070.62 | H140: 84312.52 | I140: 85439.73 | J140: 86933.47 | K140: 83946 | L140: 81325.05 | M140: 0.34009
A141: 132 | B141: MGL | C141: 1160.8 | D141: 1154.23 | E141: 1143.62 | F141: 1126.43 | G141: 1115.82 | H141: 1171.42 | I141: 1182.03 | J141: 1199.22 | K141: 1164.85 | L141: 1137.05 | M141: 2.5721
A142: 133 | B142: M&MFIN | C142: 199.9 | D142: 202.52 | E142: 196.08 | F142: 192.27 | G142: 185.83 | H142: 206.33 | I142: 212.77 | J142: 216.58 | K142: 208.95 | L142: 198.7 | M142: 81.41329
A143: 134 | B143: M&M | C143: 795 | D143: 794.52 | E143: 783.48 | F143: 771.97 | G143: 760.93 | H143: 806.03 | I143: 817.07 | J143: 828.58 | K143: 805.55 | L143: 783 | M143: 56.7114
A144: 135 | B144: MANAPPURAM | C144: 149.85 | D144: 150.63 | E144: 147.87 | F144: 145.88 | G144: 143.12 | H144: 152.62 | I144: 155.38 | J144: 157.37 | K144: 153.4 | L144: 148.65 | M144: 26.36487
A145: 136 | B145: MARICO | C145: 408.2 | D145: 407.08 | E145: 404.22 | F145: 400.23 | G145: 397.37 | H145: 411.07 | I145: 413.93 | J145: 417.92 | K145: 409.95 | L145: 403.1 | M145: 14.67853
A146: 137 | B146: MARUTI | C146: 6851.8 | D146: 6822.27 | E146: 6769.53 | F146: 6687.27 | G146: 6634.53 | H146: 6904.53 | I146: 6957.27 | J146: 7039.53 | K146: 6875 | L146: 6740 | M146: 10.88917
A147: 138 | B147: MFSL | C147: 867.15 | D147: 869.85 | E147: 854.80 | F147: 842.45 | G147: 827.40 | H147: 882.20 | I147: 897.25 | J147: 909.60 | K147: 884.9 | L147: 857.5 | M147: 5.75841
A148: 139 | B148: MINDTREE | C148: 2130 | D148: 2092.98 | E148: 2027.02 | F148: 1924.03 | G148: 1858.07 | H148: 2195.97 | I148: 2261.93 | J148: 2364.92 | K148: 2158.95 | L148: 1990 | M148: 23.39287
A149: 140 | B149: MOTHERSUMI | C149: 202.1 | D149: 203.35 | E149: 198.95 | F149: 195.80 | G149: 191.40 | H149: 206.50 | I149: 210.90 | J149: 214.05 | K149: 207.75 | L149: 200.2 | M149: 152.31406
A150: 141 | B150: MPHASIS | C150: 1778.85 | D150: 1738.20 | E150: 1677.65 | F150: 1576.45 | G150: 1515.90 | H150: 1839.40 | I150: 1899.95 | J150: 2001.15 | K150: 1798.75 | L150: 1637 | M150: 8.45092
A151: 142 | B151: MUTHOOTFIN | C151: 1210.05 | D151: 1219.85 | E151: 1188.55 | F151: 1167.05 | G151: 1135.75 | H151: 1241.35 | I151: 1272.65 | J151: 1294.15 | K151: 1251.15 | L151: 1198.35 | M151: 9.73544
A152: 143 | B152: NATCOPHARM | C152: 821.4 | D152: 818.65 | E152: 808.20 | F152: 795.00 | G152: 784.55 | H152: 831.85 | I152: 842.30 | J152: 855.50 | K152: 829.1 | L152: 805.45 | M152: 2.50711
A153: 144 | B153: NMDC | C153: 132.55 | D153: 131.37 | E153: 128.88 | F153: 125.22 | G153: 122.73 | H153: 135.03 | I153: 137.52 | J153: 141.18 | K153: 133.85 | L153: 127.7 | M153: 199.86524
A154: 145 | B154: NTPC | C154: 107.7 | D154: 107.00 | E154: 105.30 | F154: 102.90 | G154: 101.20 | H154: 109.40 | I154: 111.10 | J154: 113.50 | K154: 108.7 | L154: 104.6 | M154: 361.3021
A155: 146 | B155: NATIONALUM | C155: 54.2 | D155: 54.45 | E155: 53.65 | F155: 53.10 | G155: 52.30 | H155: 55.00 | I155: 55.80 | J155: 56.35 | K155: 55.25 | L155: 53.9 | M155: 123.85176
A156: 147 | B156: NAVINFLUOR | C156: 2718.45 | D156: 2637.48 | E156: 2530.97 | F156: 2343.48 | G156: 2236.97 | H156: 2824.97 | I156: 2931.48 | J156: 3118.97 | K156: 2744 | L156: 2450 | M156: 6.07828
A157: 148 | B157: NESTLEIND | C157: 17165 | D157: 17009.52 | E157: 16765.48 | F157: 16365.97 | G157: 16121.93 | H157: 17409.03 | I157: 17653.07 | J157: 18052.58 | K157: 17253.55 | L157: 16610 | M157: 1.48903
A158: 149 | B158: NAM-INDIA | C158: 336.2 | D158: 334.87 | E158: 331.93 | F158: 327.67 | G158: 324.73 | H158: 339.13 | I158: 342.07 | J158: 346.33 | K158: 337.8 | L158: 330.6 | M158: 5.00186
A159: 150 | B159: OBEROIRLTY | C159: 555.95 | D159: 557.97 | E159: 544.98 | F159: 534.02 | G159: 521.03 | H159: 568.93 | I159: 581.92 | J159: 592.88 | K159: 570.95 | L159: 547 | M159: 8.58395
A160: 151 | B160: ONGC | C160: 103.5 | D160: 104.13 | E160: 101.97 | F160: 100.43 | G160: 98.27 | H160: 105.67 | I160: 107.83 | J160: 109.37 | K160: 106.3 | L160: 102.6 | M160: 318.43605
A161: 152 | B161: OIL | C161: 124 | D161: 123.90 | E161: 118.80 | F161: 113.60 | G161: 108.50 | H161: 129.10 | I161: 134.20 | J161: 139.40 | K161: 129 | L161: 118.7 | M161: 28.83594
A162: 153 | B162: OFSS | C162: 3356.75 | D162: 3403.07 | E162: 3059.13 | F162: 2761.52 | G162: 2417.58 | H162: 3700.68 | I162: 4044.62 | J162: 4342.23 | K162: 3747 | L162: 3105.45 | M162: 3.8137
A163: 154 | B163: PIIND | C163: 2275.2 | D163: 2282.83 | E163: 2262.47 | F163: 2249.73 | G163: 2229.37 | H163: 2295.57 | I163: 2315.93 | J163: 2328.67 | K163: 2303.2 | L163: 2270.1 | M163: 2.31739
A164: 155 | B164: PAGEIND | C164: 30984.4 | D164: 30804.62 | E164: 30429.78 | F164: 29875.17 | G164: 29500.33 | H164: 31359.23 | I164: 31734.07 | J164: 32288.68 | K164: 31179.45 | L164: 30250 | M164: 0.56267
A165: 156 | B165: PETRONET | C165: 226.95 | D165: 227.87 | E165: 224.83 | F165: 222.72 | G165: 219.68 | H165: 229.98 | I165: 233.02 | J165: 235.13 | K165: 230.9 | L165: 225.75 | M165: 39.15487
A166: 157 | B166: PFIZER | C166: 4470 | D166: 4448.65 | E166: 4406.35 | F166: 4342.70 | G166: 4300.40 | H166: 4512.30 | I166: 4554.60 | J166: 4618.25 | K166: 4490.95 | L166: 4385 | M166: 0.36556
A167: 158 | B167: PIDILITIND | C167: 1826.45 | D167: 1824.95 | E167: 1811.60 | F167: 1796.75 | G167: 1783.40 | H167: 1839.80 | I167: 1853.15 | J167: 1868.00 | K167: 1838.3 | L167: 1810.1 | M167: 6.24454
A168: 159 | B168: PEL | C168: 1764.7 | D168: 1788.15 | E168: 1734.50 | F168: 1704.30 | G168: 1650.65 | H168: 1818.35 | I168: 1872.00 | J168: 1902.20 | K168: 1841.8 | L168: 1757.95 | M168: 10.19808
A169: 160 | B169: POLYCAB | C169: 1377.65 | D169: 1384.15 | E169: 1358.50 | F169: 1339.35 | G169: 1313.70 | H169: 1403.30 | I169: 1428.95 | J169: 1448.10 | K169: 1409.8 | L169: 1365 | M169: 4.49575
A170: 161 | B170: PFC | C170: 111.1 | D170: 112.57 | E170: 108.73 | F170: 106.37 | G170: 102.53 | H170: 114.93 | I170: 118.77 | J170: 121.13 | K170: 116.4 | L170: 110.2 | M170: 126.62131
A171: 162 | B171: POWERGRID | C171: 221.35 | D171: 220.15 | E171: 216.60 | F171: 211.85 | G171: 208.30 | H171: 224.90 | I171: 228.45 | J171: 233.20 | K171: 223.7 | L171: 215.4 | M171: 299.9755
A172: 163 | B172: PRESTIGE | C172: 309.15 | D172: 305.22 | E172: 298.43 | F172: 287.72 | G172: 280.93 | H172: 315.93 | I172: 322.72 | J172: 333.43 | K172: 312 | L172: 294.5 | M172: 4.27081
A173: 164 | B173: PGHH | C173: 12383.1 | D173: 12472.70 | E173: 12020.40 | F173: 11657.70 | G173: 11205.40 | H173: 12835.40 | I173: 13287.70 | J173: 13650.40 | K173: 12925 | L173: 12110 | M173: 0.17584
A174: 165 | B174: PNB | C174: 36.15 | D174: 36.22 | E174: 35.73 | F174: 35.32 | G174: 34.83 | H174: 36.63 | I174: 37.12 | J174: 37.53 | K174: 36.7 | L174: 35.8 | M174: 948.92266
A175: 166 | B175: RBLBANK | C175: 208.05 | D175: 209.80 | E175: 205.20 | F175: 202.35 | G175: 197.75 | H175: 212.65 | I175: 217.25 | J175: 220.10 | K175: 214.4 | L175: 206.95 | M175: 102.98178
A176: 167 | B176: RECLTD | C176: 128.55 | D176: 129.82 | E176: 126.53 | F176: 124.52 | G176: 121.23 | H176: 131.83 | I176: 135.12 | J176: 137.13 | K176: 133.1 | L176: 127.8 | M176: 51.97773
A177: 168 | B177: RAJESHEXPO | C177: 477.6 | D177: 477.87 | E177: 472.73 | F177: 467.87 | G177: 462.73 | H177: 482.73 | I177: 487.87 | J177: 492.73 | K177: 483 | L177: 473 | M177: 2.29716
A178: 169 | B178: RELIANCE | C178: 2029.3 | D178: 2023.25 | E178: 1997.60 | F178: 1965.90 | G178: 1940.25 | H178: 2054.95 | I178: 2080.60 | J178: 2112.30 | K178: 2048.9 | L178: 1991.55 | M178: 94.3385
A179: 170 | B179: SBICARD | C179: 940.7 | D179: 942.92 | E179: 930.88 | F179: 921.07 | G179: 909.03 | H179: 952.73 | I179: 964.77 | J179: 974.58 | K179: 954.95 | L179: 933.1 | M179: 13.65204
A180: 171 | B180: SBILIFE | C180: 872.15 | D180: 873.72 | E180: 866.43 | F180: 860.72 | G180: 853.43 | H180: 879.43 | I180: 886.72 | J180: 892.43 | K180: 881 | L180: 868 | M180: 12.76847
A181: 172 | B181: SRF | C181: 5402.25 | D181: 5369.60 | E181: 5318.25 | F181: 5234.25 | G181: 5182.90 | H181: 5453.60 | I181: 5504.95 | J181: 5588.95 | K181: 5420.95 | L181: 5285.6 | M181: 1.53794
A182: 173 | B182: SANOFI | C182: 7877.35 | D182: 7905.43 | E182: 7820.92 | F182: 7764.48 | G182: 7679.97 | H182: 7961.87 | I182: 8046.38 | J182: 8102.82 | K182: 7989.95 | L182: 7849 | M182: 0.49557
A183: 174 | B183: SHREECEM | C183: 29094.45 | D183: 28965.42 | E183: 28430.83 | F183: 27767.22 | G183: 27232.63 | H183: 29629.03 | I183: 30163.62 | J183: 30827.23 | K183: 29500 | L183: 28301.8 | M183: 0.9457
A184: 175 | B184: SRTRANSFIN | C184: 1420.6 | D184: 1425.57 | E184: 1406.13 | F184: 1391.67 | G184: 1372.23 | H184: 1440.03 | I184: 1459.47 | J184: 1473.93 | K184: 1445 | L184: 1411.1 | M184: 22.34811
A185: 176 | B185: SIEMENS | C185: 1832.7 | D185: 1835.87 | E185: 1812.03 | F185: 1791.37 | G185: 1767.53 | H185: 1856.53 | I185: 1880.37 | J185: 1901.03 | K185: 1859.7 | L185: 1815.2 | M185: 2.2958
A186: 177 | B186: SBIN | C186: 360.8 | D186: 360.47 | E186: 356.63 | F186: 352.47 | G186: 348.63 | H186: 364.63 | I186: 368.47 | J186: 372.63 | K186: 364.3 | L186: 356.3 | M186: 394.07496
A187: 178 | B187: SAIL | C187: 79.15 | D187: 79.38 | E187: 77.77 | F187: 76.38 | G187: 74.77 | H187: 80.77 | I187: 82.38 | J187: 83.77 | K187: 81 | L187: 78 | M187: 907.02901
A188: 179 | B188: SUNPHARMA | C188: 597.7 | D188: 594.65 | E188: 590.30 | F188: 582.90 | G188: 578.55 | H188: 602.05 | I188: 606.40 | J188: 613.80 | K188: 599 | L188: 587.25 | M188: 46.37898
A189: 180 | B189: SUNTV | C189: 463.9 | D189: 463.33 | E189: 456.67 | F189: 449.43 | G189: 442.77 | H189: 470.57 | I189: 477.23 | J189: 484.47 | K189: 470 | L189: 456.1 | M189: 15.44634
A190: 181 | B190: SYNGENE | C190: 534.55 | D190: 534.85 | E190: 526.75 | F190: 518.95 | G190: 510.85 | H190: 542.65 | I190: 550.75 | J190: 558.55 | K190: 542.95 | L190: 527.05 | M190: 3.36498
A191: 182 | B191: TVSMOTOR | C191: 575.2 | D191: 573.58 | E191: 565.32 | F191: 555.43 | G191: 547.17 | H191: 583.47 | I191: 591.73 | J191: 601.62 | K191: 581.85 | L191: 563.7 | M191: 21.00267
A192: 183 | B192: TATACHEM | C192: 752.25 | D192: 752.35 | E192: 742.95 | F192: 733.65 | G192: 724.25 | H192: 761.65 | I192: 771.05 | J192: 780.35 | K192: 761.75 | L192: 743.05 | M192: 41.61789
A193: 184 | B193: TCS | C193: 3158.55 | D193: 3135.97 | E193: 3083.48 | F193: 3008.42 | G193: 2955.93 | H193: 3211.03 | I193: 3263.52 | J193: 3338.58 | K193: 3188.45 | L193: 3060.9 | M193: 46.94261
A194: 185 | B194: TATACONSUM | C194: 628.9 | D194: 628.02 | E194: 618.43 | F194: 607.97 | G194: 598.38 | H194: 638.48 | I194: 648.07 | J194: 658.53 | K194: 637.6 | L194: 617.55 | M194: 198.95352
A195: 186 | B195: TATAMOTORS | C195: 297.05 | D195: 297.02 | E195: 292.73 | F195: 288.42 | G195: 284.13 | H195: 301.33 | I195: 305.62 | J195: 309.93 | K195: 301.3 | L195: 292.7 | M195: 452.57627
A196: 187 | B196: TATAPOWER | C196: 103.6 | D196: 103.92 | E196: 102.48 | F196: 101.37 | G196: 99.93 | H196: 105.03 | I196: 106.47 | J196: 107.58 | K196: 105.35 | L196: 102.8 | M196: 474.53372
A197: 188 | B197: TATASTEEL | C197: 800 | D197: 795.97 | E197: 781.93 | F197: 763.87 | G197: 749.83 | H197: 814.03 | I197: 828.07 | J197: 846.13 | K197: 810 | L197: 777.9 | M197: 284.80338
A198: 189 | B198: TECHM | C198: 1016.9 | D198: 1009.40 | E198: 999.00 | F198: 981.10 | G198: 970.70 | H198: 1027.30 | I198: 1037.70 | J198: 1055.60 | K198: 1019.8 | L198: 991.5 | M198: 43.03081
A199: 190 | B199: RAMCOCEM | C199: 985.7 | D199: 978.83 | E199: 965.67 | F199: 945.63 | G199: 932.47 | H199: 998.87 | I199: 1012.03 | J199: 1032.07 | K199: 992 | L199: 958.8 | M199: 4.31068
A200: 191 | B200: TITAN | C200: 1552.2 | D200: 1541.73 | E200: 1520.47 | F200: 1488.73 | G200: 1467.47 | H200: 1573.47 | I200: 1594.73 | J200: 1626.47 | K200: 1563 | L200: 1510 | M200: 34.66049
A201: 192 | B201: TORNTPHARM | C201: 2529.3 | D201: 2512.27 | E201: 2469.53 | F201: 2409.77 | G201: 2367.03 | H201: 2572.03 | I201: 2614.77 | J201: 2674.53 | K201: 2555 | L201: 2452.5 | M201: 3.52924
A202: 193 | B202: TORNTPOWER | C202: 421.65 | D202: 420.32 | E202: 415.13 | F202: 408.62 | G202: 403.43 | H202: 426.83 | I202: 432.02 | J202: 438.53 | K202: 425.5 | L202: 413.8 | M202: 9.49709
A203: 194 | B203: TRENT | C203: 760.65 | D203: 762.62 | E203: 748.08 | F203: 735.52 | G203: 720.98 | H203: 775.18 | I203: 789.72 | J203: 802.28 | K203: 777.15 | L203: 750.05 | M203: 6.28414
A204: 195 | B204: UPL | C204: 627.95 | D204: 617.87 | E204: 601.08 | F204: 574.22 | G204: 557.43 | H204: 644.73 | I204: 661.52 | J204: 688.38 | K204: 634.65 | L204: 591 | M204: 146.63831
A205: 196 | B205: ULTRACEMCO | C205: 6785.6 | D205: 6802.20 | E205: 6729.40 | F205: 6673.20 | G205: 6600.40 | H205: 6858.40 | I205: 6931.20 | J205: 6987.40 | K205: 6875 | L205: 6746 | M205: 4.22442
... 29 more rows

Sheet MidCap Intra
L5: Back To Main Page
A6: FOR INTRA DAY TRADING | K6: =Main!B10 -> 2021-03-31
A9: Sr.no | B9: Scrip | C9: CLOSE RATE | D9: Pivot Point | E9: Supports | H9: Resistances
C10: Point | E10: S1 | F10: S2 | G10: S3 | H10: R1 | I10: R2 | J10: R3 | K10: HIGH | L10: LOW | M10: Total Trade Quanity in Lakhs
A11: 1 | B11: 3MINDIA | C11: 29723.7 | D11: 29591.42 | E11: 29152.83 | F11: 28581.97 | G11: 28143.38 | H11: 30162.28 | I11: 30600.87 | J11: 31171.73 | K11: 30030 | L11: 29020.55 | M11: 0.10407
A12: 2 | B12: ABB | C12: 1439.35 | D12: 1450.65 | E12: 1419.75 | F12: 1400.15 | G12: 1369.25 | H12: 1470.25 | I12: 1501.15 | J12: 1520.75 | K12: 1481.55 | L12: 1431.05 | M12: 1.35595
A13: 3 | B13: POWERINDIA | C13: 1365.5 | D13: 1362.22 | E13: 1344.38 | F13: 1323.27 | G13: 1305.43 | H13: 1383.33 | I13: 1401.17 | J13: 1422.28 | K13: 1380.05 | L13: 1341.1 | M13: 0.17391
A14: 4 | B14: ACC | C14: 1874.05 | D14: 1879.07 | E14: 1853.13 | F14: 1832.22 | G14: 1806.28 | H14: 1899.98 | I14: 1925.92 | J14: 1946.83 | K14: 1905 | L14: 1858.15 | M14: 6.21135
A15: 5 | B15: AIAENG | C15: 1974.6 | D15: 1964.88 | E15: 1929.77 | F15: 1884.93 | G15: 1849.82 | H15: 2009.72 | I15: 2044.83 | J15: 2089.67 | K15: 2000 | L15: 1920.05 | M15: 0.6006
A16: 6 | B16: APLAPOLLO | C16: 1394.1 | D16: 1387.02 | E16: 1364.03 | F16: 1333.97 | G16: 1310.98 | H16: 1417.08 | I16: 1440.07 | J16: 1470.13 | K16: 1410 | L16: 1356.95 | M16: 2.44711
A17: 7 | B17: AUBANK | C17: 1298.9 | D17: 1272.77 | E17: 1191.13 | F17: 1083.37 | G17: 1001.73 | H17: 1380.53 | I17: 1462.17 | J17: 1569.93 | K17: 1354.4 | L17: 1165 | M17: 76.5063
A18: 8 | B18: AARTIDRUGS | C18: 708.2 | D18: 714.05 | E18: 700.10 | F18: 692.00 | G18: 678.05 | H18: 722.15 | I18: 736.10 | J18: 744.20 | K18: 728 | L18: 705.95 | M18: 4.93898
A19: 9 | B19: AARTIIND | C19: 1338.7 | D19: 1337.35 | E19: 1322.70 | F19: 1306.70 | G19: 1292.05 | H19: 1353.35 | I19: 1368.00 | J19: 1384.00 | K19: 1352 | L19: 1321.35 | M19: 2.65691
A20: 10 | B20: AAVAS | C20: 2395.95 | D20: 2377.15 | E20: 2316.95 | F20: 2237.95 | G20: 2177.75 | H20: 2456.15 | I20: 2516.35 | J20: 2595.35 | K20: 2437.35 | L20: 2298.15 | M20: 0.54613
A21: 11 | B21: ABBOTINDIA | C21: 15086.55 | D21: 15084.72 | E21: 14901.63 | F21: 14716.72 | G21: 14533.63 | H21: 15269.63 | I21: 15452.72 | J21: 15637.63 | K21: 15267.8 | L21: 14899.8 | M21: 0.21091
A22: 12 | B22: ADANIENT | C22: 1031.55 | D22: 1020.67 | E22: 998.88 | F22: 966.22 | G22: 944.43 | H22: 1053.33 | I22: 1075.12 | J22: 1107.78 | K22: 1042.45 | L22: 988 | M22: 104.70731
A23: 13 | B23: ADANIGREEN | C23: 1157.65 | D23: 1179.80 | E23: 1129.60 | F23: 1101.55 | G23: 1051.35 | H23: 1207.85 | I23: 1258.05 | J23: 1286.10 | K23: 1230 | L23: 1151.75 | M23: 7.37621
A24: 14 | B24: ADANIPORTS | C24: 710.55 | D24: 708.62 | E24: 699.23 | F24: 687.92 | G24: 678.53 | H24: 719.93 | I24: 729.32 | J24: 740.63 | K24: 718 | L24: 697.3 | M24: 91.09505
A25: 15 | B25: ATGL | C25: 910.9 | D25: 906.97 | E25: 888.93 | F25: 866.97 | G25: 848.93 | H25: 928.93 | I25: 946.97 | J25: 968.93 | K25: 925 | L25: 885 | M25: 14.17318
A26: 16 | B26: ADANITRANS | C26: 877.55 | D26: 880.30 | E26: 842.60 | F26: 807.65 | G26: 769.95 | H26: 915.25 | I26: 952.95 | J26: 987.90 | K26: 918 | L26: 845.35 | M26: 15.14205
A27: 17 | B27: ABCAPITAL | C27: 119.05 | D27: 120.58 | E27: 116.97 | F27: 114.88 | G27: 111.27 | H27: 122.67 | I27: 126.28 | J27: 128.37 | K27: 124.2 | L27: 118.5 | M27: 27.45079
A28: 18 | B28: ABFRL | C28: 203.6 | D28: 203.13 | E28: 198.62 | F28: 193.63 | G28: 189.12 | H28: 208.12 | I28: 212.63 | J28: 217.62 | K28: 207.65 | L28: 198.15 | M28: 19.1889
A29: 19 | B29: ADVENZYMES | C29: 351.95 | D29: 353.98 | E29: 345.97 | F29: 339.98 | G29: 331.97 | H29: 359.97 | I29: 367.98 | J29: 373.97 | K29: 362 | L29: 348 | M29: 1.54258
A30: 20 | B30: AEGISCHEM | C30: 289.25 | D30: 296.40 | E30: 280.10 | F30: 270.95 | G30: 254.65 | H30: 305.55 | I30: 321.85 | J30: 331.00 | K30: 312.7 | L30: 287.25 | M30: 3.36107
A31: 21 | B31: AFFLE | C31: 5287.35 | D31: 5274.33 | E31: 5223.67 | F31: 5159.98 | G31: 5109.32 | H31: 5338.02 | I31: 5388.68 | J31: 5452.37 | K31: 5325 | L31: 5210.65 | M31: 0.39399
A32: 22 | B32: AJANTPHARM | C32: 1862.65 | D32: 1834.05 | E32: 1783.55 | F32: 1704.45 | G32: 1653.95 | H32: 1913.15 | I32: 1963.65 | J32: 2042.75 | K32: 1884.55 | L32: 1754.95 | M32: 1.13308
A33: 23 | B33: AKZOINDIA | C33: 2282.7 | D33: 2261.23 | E33: 2217.47 | F33: 2152.23 | G33: 2108.47 | H33: 2326.47 | I33: 2370.23 | J33: 2435.47 | K33: 2305 | L33: 2196 | M33: 0.36784
A34: 24 | B34: ALEMBICLTD | C34: 101.55 | D34: 102.50 | E34: 100.30 | F34: 99.05 | G34: 96.85 | H34: 103.75 | I34: 105.95 | J34: 107.20 | K34: 104.7 | L34: 101.25 | M34: 4.9458
A35: 25 | B35: APLLTD | C35: 955.5 | D35: 954.10 | E35: 941.20 | F35: 926.90 | G35: 914.00 | H35: 968.40 | I35: 981.30 | J35: 995.60 | K35: 967 | L35: 939.8 | M35: 4.08354
A36: 26 | B36: ALKEM | C36: 2739.65 | D36: 2716.83 | E36: 2677.87 | F36: 2616.08 | G36: 2577.12 | H36: 2778.62 | I36: 2817.58 | J36: 2879.37 | K36: 2755.8 | L36: 2655.05 | M36: 1.74143
A37: 27 | B37: ALKYLAMINE | C37: 5653.95 | D37: 5614.33 | E37: 5489.67 | F37: 5325.38 | G37: 5200.72 | H37: 5778.62 | I37: 5903.28 | J37: 6067.57 | K37: 5739 | L37: 5450.05 | M37: 0.78035
A38: 28 | B38: ALOKINDS | C38: 20.3 | D38: 20.37 | E38: 20.03 | F38: 19.77 | G38: 19.43 | H38: 20.63 | I38: 20.97 | J38: 21.23 | K38: 20.7 | L38: 20.1 | M38: 63.72414
A39: 29 | B39: AMARAJABAT | C39: 855.35 | D39: 851.83 | E39: 845.67 | F39: 835.98 | G39: 829.82 | H39: 861.52 | I39: 867.68 | J39: 877.37 | K39: 858 | L39: 842.15 | M39: 4.51465
A40: 30 | B40: AMBER | C40: 3249.15 | D40: 3216.38 | E40: 3137.77 | F40: 3026.38 | G40: 2947.77 | H40: 3327.77 | I40: 3406.38 | J40: 3517.77 | K40: 3295 | L40: 3105 | M40: 0.73498
A41: 31 | B41: AMBUJACEM | C41: 299.85 | D41: 299.57 | E41: 295.63 | F41: 291.42 | G41: 287.48 | H41: 303.78 | I41: 307.72 | J41: 311.93 | K41: 303.5 | L41: 295.35 | M41: 60.89054
A42: 32 | B42: APOLLOHOSP | C42: 2925.6 | D42: 2923.83 | E42: 2876.77 | F42: 2827.93 | G42: 2780.87 | H42: 2972.67 | I42: 3019.73 | J42: 3068.57 | K42: 2970.9 | L42: 2875 | M42: 14.20415
A43: 33 | B43: APOLLOTYRE | C43: 222.95 | D43: 223.48 | E43: 219.17 | F43: 215.38 | G43: 211.07 | H43: 227.27 | I43: 231.58 | J43: 235.37 | K43: 227.8 | L43: 219.7 | M43: 44.19367
A44: 34 | B44: ASHOKLEY | C44: 113.65 | D44: 113.70 | E44: 111.65 | F44: 109.65 | G44: 107.60 | H44: 115.70 | I44: 117.75 | J44: 119.75 | K44: 115.75 | L44: 111.7 | M44: 169.85618
A45: 35 | B45: ASHOKA | C45: 101 | D45: 99.77 | E45: 96.73 | F45: 92.47 | G45: 89.43 | H45: 104.03 | I45: 107.07 | J45: 111.33 | K45: 102.8 | L45: 95.5 | M45: 16.17052
A46: 36 | B46: ASIANPAINT | C46: 2578.05 | D46: 2561.00 | E46: 2538.55 | F46: 2499.05 | G46: 2476.60 | H46: 2600.50 | I46: 2622.95 | J46: 2662.45 | K46: 2583.45 | L46: 2521.5 | M46: 23.3341
A47: 37 | B47: ASTERDM | C47: 136.8 | D47: 136.42 | E47: 134.33 | F47: 131.87 | G47: 129.78 | H47: 138.88 | I47: 140.97 | J47: 143.43 | K47: 138.5 | L47: 133.95 | M47: 1.20474
A48: 38 | B48: ASTRAZEN | C48: 3040.7 | D48: 3064.85 | E48: 3009.85 | F48: 2979.00 | G48: 2924.00 | H48: 3095.70 | I48: 3150.70 | J48: 3181.55 | K48: 3119.85 | L48: 3034 | M48: 0.35629
A49: 39 | B49: ASTRAL | C49: 1591.65 | D49: 1597.50 | E49: 1540.00 | F49: 1488.35 | G49: 1430.85 | H49: 1649.15 | I49: 1706.65 | J49: 1758.30 | K49: 1655 | L49: 1545.85 | M49: 6.90471
A50: 40 | B50: ATUL | C50: 7053.1 | D50: 7044.35 | E50: 6995.45 | F50: 6937.80 | G50: 6888.90 | H50: 7102.00 | I50: 7150.90 | J50: 7208.55 | K50: 7093.25 | L50: 6986.7 | M50: 0.17008
A51: 41 | B51: AUROPHARMA | C51: 870.4 | D51: 865.25 | E51: 857.45 | F51: 844.50 | G51: 836.70 | H51: 878.20 | I51: 886.00 | J51: 898.95 | K51: 873.05 | L51: 852.3 | M51: 16.46609
A52: 42 | B52: AVANTIFEED | C52: 418.8 | D52: 423.43 | E52: 410.87 | F52: 402.93 | G52: 390.37 | H52: 431.37 | I52: 443.93 | J52: 451.87 | K52: 436 | L52: 415.5 | M52: 4.45635
A53: 43 | B53: DMART | C53: 2837.55 | D53: 2854.18 | E53: 2790.37 | F53: 2743.18 | G53: 2679.37 | H53: 2901.37 | I53: 2965.18 | J53: 3012.37 | K53: 2918 | L53: 2807 | M53: 6.96633
A54: 44 | B54: AXISBANK | C54: 695.35 | D54: 699.88 | E54: 686.47 | F54: 677.58 | G54: 664.17 | H54: 708.77 | I54: 722.18 | J54: 731.07 | K54: 713.3 | L54: 691 | M54: 259.65742
A55: 45 | B55: BASF | C55: 2030.3 | D55: 2017.43 | E55: 1994.82 | F55: 1959.33 | G55: 1936.72 | H55: 2052.92 | I55: 2075.53 | J55: 2111.02 | K55: 2040.05 | L55: 1981.95 | M55: 0.27135
A56: 46 | B56: BEML | C56: 1277.75 | D56: 1283.40 | E56: 1259.80 | F56: 1241.85 | G56: 1218.25 | H56: 1301.35 | I56: 1324.95 | J56: 1342.90 | K56: 1307 | L56: 1265.45 | M56: 3.44081
A57: 47 | B57: BSE | C57: 566.15 | D57: 564.75 | E57: 553.75 | F57: 541.35 | G57: 530.35 | H57: 577.15 | I57: 588.15 | J57: 600.55 | K57: 575.75 | L57: 552.35 | M57: 4.05295
A58: 48 | B58: BAJAJ-AUTO | C58: 3666.7 | D58: 3640.93 | E58: 3607.12 | F58: 3547.53 | G58: 3513.72 | H58: 3700.52 | I58: 3734.33 | J58: 3793.92 | K58: 3674.75 | L58: 3581.35 | M58: 7.4923
A59: 49 | B59: BAJAJCON | C59: 261.6 | D59: 262.38 | E59: 257.92 | F59: 254.23 | G59: 249.77 | H59: 266.07 | I59: 270.53 | J59: 274.22 | K59: 266.85 | L59: 258.7 | M59: 4.94136
A60: 50 | B60: BAJAJELEC | C60: 987.9 | D60: 981.98 | E60: 966.97 | F60: 946.03 | G60: 931.02 | H60: 1002.92 | I60: 1017.93 | J60: 1038.87 | K60: 997 | L60: 961.05 | M60: 1.36886
A61: 51 | B61: BAJFINANCE | C61: 5193.55 | D61: 5201.18 | E61: 5142.37 | F61: 5091.18 | G61: 5032.37 | H61: 5252.37 | I61: 5311.18 | J61: 5362.37 | K61: 5260 | L61: 5150 | M61: 18.45391
A62: 52 | B62: BAJAJFINSV | C62: 9502.35 | D62: 9529.13 | E62: 9413.27 | F62: 9324.18 | G62: 9208.32 | H62: 9618.22 | I62: 9734.08 | J62: 9823.17 | K62: 9645 | L62: 9440.05 | M62: 3.56516
A63: 53 | B63: BAJAJHLDNG | C63: 3197.2 | D63: 3235.15 | E63: 3103.05 | F63: 3008.90 | G63: 2876.80 | H63: 3329.30 | I63: 3461.40 | J63: 3555.55 | K63: 3367.25 | L63: 3141 | M63: 1.45669
A64: 54 | B64: BALKRISIND | C64: 1658.1 | D64: 1657.47 | E64: 1644.93 | F64: 1631.77 | G64: 1619.23 | H64: 1670.63 | I64: 1683.17 | J64: 1696.33 | K64: 1670 | L64: 1644.3 | M64: 2.87038
A65: 55 | B65: BALMLAWRIE | C65: 126.2 | D65: 127.23 | E65: 124.47 | F65: 122.73 | G65: 119.97 | H65: 128.97 | I65: 131.73 | J65: 133.47 | K65: 130 | L65: 125.5 | M65: 3.69371
A66: 56 | B66: BALRAMCHIN | C66: 206.15 | D66: 208.17 | E66: 201.98 | F66: 197.82 | G66: 191.63 | H66: 212.33 | I66: 218.52 | J66: 222.68 | K66: 214.35 | L66: 204 | M66: 18.23074
A67: 57 | B67: BANDHANBNK | C67: 336.45 | D67: 341.30 | E67: 330.30 | F67: 324.15 | G67: 313.15 | H67: 347.45 | I67: 358.45 | J67: 364.60 | K67: 352.3 | L67: 335.15 | M67: 82.37822
A68: 58 | B68: BANKBARODA | C68: 72.25 | D68: 72.43 | E68: 70.67 | F68: 69.08 | G68: 67.32 | H68: 74.02 | I68: 75.78 | J68: 77.37 | K68: 74.2 | L68: 70.85 | M68: 837.91986
A69: 59 | B69: BANKINDIA | C69: 69.75 | D69: 69.72 | E69: 69.13 | F69: 68.52 | G69: 67.93 | H69: 70.33 | I69: 70.92 | J69: 71.53 | K69: 70.3 | L69: 69.1 | M69: 31.78425
A70: 60 | B70: MAHABANK | C70: 20.75 | D70: 20.70 | E70: 20.20 | F70: 19.65 | G70: 19.15 | H70: 21.25 | I70: 21.75 | J70: 22.30 | K70: 21.2 | L70: 20.15 | M70: 45.0303
A71: 61 | B71: BATAINDIA | C71: 1404.25 | D71: 1410.92 | E71: 1389.83 | F71: 1375.42 | G71: 1354.33 | H71: 1425.33 | I71: 1446.42 | J71: 1460.83 | K71: 1432 | L71: 1396.5 | M71: 4.78319
A72: 62 | B72: BAYERCROP | C72: 5191.85 | D72: 5127.28 | E72: 5029.57 | F72: 4867.28 | G72: 4769.57 | H72: 5289.57 | I72: 5387.28 | J72: 5549.57 | K72: 5225 | L72: 4965 | M72: 0.31083
A73: 63 | B73: BERGEPAINT | C73: 759.8 | D73: 762.93 | E73: 753.87 | F73: 747.93 | G73: 738.87 | H73: 768.87 | I73: 777.93 | J73: 783.87 | K73: 772 | L73: 757 | M73: 16.25617
A74: 64 | B74: BDL | C74: 336.45 | D74: 338.67 | E74: 332.33 | F74: 328.22 | G74: 321.88 | H74: 342.78 | I74: 349.12 | J74: 353.23 | K74: 345 | L74: 334.55 | M74: 1.9789
A75: 65 | B75: BEL | C75: 125.8 | D75: 125.22 | E75: 123.48 | F75: 121.17 | G75: 119.43 | H75: 127.53 | I75: 129.27 | J75: 131.58 | K75: 126.95 | L75: 122.9 | M75: 142.3272
A76: 66 | B76: BHARATFORG | C76: 590.65 | D76: 593.15 | E76: 585.85 | F76: 581.05 | G76: 573.75 | H76: 597.95 | I76: 605.25 | J76: 610.05 | K76: 600.45 | L76: 588.35 | M76: 9.33525
A77: 67 | B77: BHEL | C77: 48.95 | D77: 48.95 | E77: 48.30 | F77: 47.65 | G77: 47.00 | H77: 49.60 | I77: 50.25 | J77: 50.90 | K77: 49.6 | L77: 48.3 | M77: 417.00664
A78: 68 | B78: BPCL | C78: 430.8 | D78: 428.73 | E78: 423.57 | F78: 416.33 | G78: 411.17 | H78: 435.97 | I78: 441.13 | J78: 448.37 | K78: 433.9 | L78: 421.5 | M78: 85.76904
A79: 69 | B79: BHARATRAS | C79: 9330.75 | D79: 9339.52 | E79: 9264.53 | F79: 9198.32 | G79: 9123.33 | H79: 9405.73 | I79: 9480.72 | J79: 9546.93 | K79: 9414.5 | L79: 9273.3 | M79: 0.01309
A80: 70 | B80: BHARTIARTL | C80: 521.5 | D80: 521.88 | E80: 515.87 | F80: 510.23 | G80: 504.22 | H80: 527.52 | I80: 533.53 | J80: 539.17 | K80: 527.9 | L80: 516.25 | M80: 104.94794
A81: 71 | B81: BIOCON | C81: 408.45 | D81: 405.67 | E81: 401.83 | F81: 395.22 | G81: 391.38 | H81: 412.28 | I81: 416.12 | J81: 422.73 | K81: 409.5 | L81: 399.05 | M81: 41.93149
A82: 72 | B82: BIRLACORPN | C82: 899.4 | D82: 903.85 | E82: 884.55 | F82: 869.70 | G82: 850.40 | H82: 918.70 | I82: 938.00 | J82: 952.85 | K82: 923.15 | L82: 889 | M82: 1.89177
A83: 73 | B83: BSOFT | C83: 252.75 | D83: 252.33 | E83: 249.77 | F83: 246.78 | G83: 244.22 | H83: 255.32 | I83: 257.88 | J83: 260.87 | K83: 254.9 | L83: 249.35 | M83: 13.06713
A84: 74 | B84: BLISSGVS | C84: 100.4 | D84: 101.37 | E84: 98.93 | F84: 97.47 | G84: 95.03 | H84: 102.83 | I84: 105.27 | J84: 106.73 | K84: 103.8 | L84: 99.9 | M84: 2.9674
A85: 75 | B85: BLUEDART | C85: 5589.95 | D85: 5523.28 | E85: 5306.57 | F85: 5023.18 | G85: 4806.47 | H85: 5806.67 | I85: 6023.38 | J85: 6306.77 | K85: 5740 | L85: 5239.9 | M85: 0.82882
A86: 76 | B86: BLUESTARCO | C86: 909.9 | D86: 911.30 | E86: 897.60 | F86: 885.30 | G86: 871.60 | H86: 923.60 | I86: 937.30 | J86: 949.60 | K86: 925 | L86: 899 | M86: 1.4363
A87: 77 | B87: BBTC | C87: 1121.7 | D87: 1121.23 | E87: 1114.47 | F87: 1107.23 | G87: 1100.47 | H87: 1128.47 | I87: 1135.23 | J87: 1142.47 | K87: 1128 | L87: 1114 | M87: 0.35399
A88: 78 | B88: BOMDYEING | C88: 71.3 | D88: 71.72 | E88: 70.63 | F88: 69.97 | G88: 68.88 | H88: 72.38 | I88: 73.47 | J88: 74.13 | K88: 72.8 | L88: 71.05 | M88: 14.43945
A89: 79 | B89: BOSCHLTD | C89: 14256.6 | D89: 14131.47 | E89: 13891.08 | F89: 13525.57 | G89: 13285.18 | H89: 14496.98 | I89: 14737.37 | J89: 15102.88 | K89: 14371.85 | L89: 13765.95 | M89: 0.55183
A90: 80 | B90: BRIGADE | C90: 282.45 | D90: 279.28 | E90: 255.27 | F90: 228.08 | G90: 204.07 | H90: 306.47 | I90: 330.48 | J90: 357.67 | K90: 303.3 | L90: 252.1 | M90: 3.18216
A91: 81 | B91: BRITANNIA | C91: 3616 | D91: 3583.68 | E91: 3542.37 | F91: 3468.73 | G91: 3427.42 | H91: 3657.32 | I91: 3698.63 | J91: 3772.27 | K91: 3625 | L91: 3510.05 | M91: 5.6745
A92: 82 | B92: CARERATING | C92: 415.65 | D92: 419.07 | E92: 411.08 | F92: 406.52 | G92: 398.53 | H92: 423.63 | I92: 431.62 | J92: 436.18 | K92: 427.05 | L92: 414.5 | M92: 1.26796
A93: 83 | B93: CCL | C93: 238.7 | D93: 239.13 | E93: 233.37 | F93: 228.03 | G93: 222.27 | H93: 244.47 | I93: 250.23 | J93: 255.57 | K93: 244.9 | L93: 233.8 | M93: 1.64648
A94: 84 | B94: CESC | C94: 595.8 | D94: 599.95 | E94: 586.95 | F94: 578.10 | G94: 565.10 | H94: 608.80 | I94: 621.80 | J94: 630.65 | K94: 612.95 | L94: 591.1 | M94: 2.99563
A95: 85 | B95: CRISIL | C95: 1888.7 | D95: 1885.98 | E95: 1873.92 | F95: 1859.13 | G95: 1847.07 | H95: 1900.77 | I95: 1912.83 | J95: 1927.62 | K95: 1898.05 | L95: 1871.2 | M95: 0.19071
A96: 86 | B96: CSBBANK | C96: 237.5 | D96: 237.88 | E96: 233.17 | F96: 228.83 | G96: 224.12 | H96: 242.22 | I96: 246.93 | J96: 251.27 | K96: 242.6 | L96: 233.55 | M96: 2.27779
A97: 87 | B97: CADILAHC | C97: 434.55 | D97: 431.03 | E97: 425.77 | F97: 416.98 | G97: 411.72 | H97: 439.82 | I97: 445.08 | J97: 453.87 | K97: 436.3 | L97: 422.25 | M97: 19.97389
A98: 88 | B98: CANFINHOME | C98: 600.4 | D98: 594.90 | E98: 585.50 | F98: 570.60 | G98: 561.20 | H98: 609.80 | I98: 619.20 | J98: 634.10 | K98: 604.3 | L98: 580 | M98: 4.24229
A99: 89 | B99: CANBK | C99: 147.05 | D99: 147.12 | E99: 144.73 | F99: 142.42 | G99: 140.03 | H99: 149.43 | I99: 151.82 | J99: 154.13 | K99: 149.5 | L99: 144.8 | M99: 130.91155
A100: 90 | B100: CAPLIPOINT | C100: 411.1 | D100: 414.03 | E100: 407.07 | F100: 403.03 | G100: 396.07 | H100: 418.07 | I100: 425.03 | J100: 429.07 | K100: 421 | L100: 410 | M100: 1.20931
A101: 91 | B101: CGCL | C101: 381.7 | D101: 373.78 | E101: 360.07 | F101: 338.43 | G101: 324.72 | H101: 395.42 | I101: 409.13 | J101: 430.77 | K101: 387.5 | L101: 352.15 | M101: 1.70121
A102: 92 | B102: CARBORUNIV | C102: 489.55 | D102: 486.18 | E102: 478.37 | F102: 467.18 | G102: 459.37 | H102: 497.37 | I102: 505.18 | J102: 516.37 | K102: 494 | L102: 475 | M102: 2.13853
A103: 93 | B103: CASTROLIND | C103: 124.8 | D103: 124.37 | E103: 123.38 | F103: 121.97 | G103: 120.98 | H103: 125.78 | I103: 126.77 | J103: 128.18 | K103: 125.35 | L103: 122.95 | M103: 6.61055
A104: 94 | B104: CEATLTD | C104: 1548.3 | D104: 1540.50 | E104: 1506.00 | F104: 1463.70 | G104: 1429.20 | H104: 1582.80 | I104: 1617.30 | J104: 1659.60 | K104: 1575 | L104: 1498.2 | M104: 1.05817
A105: 95 | B105: CENTRALBK | C105: 16.25 | D105: 16.27 | E105: 15.98 | F105: 15.72 | G105: 15.43 | H105: 16.53 | I105: 16.82 | J105: 17.08 | K105: 16.55 | L105: 16 | M105: 51.62815
A106: 96 | B106: CDSL | C106: 653.4 | D106: 653.47 | E106: 644.93 | F106: 636.47 | G106: 627.93 | H106: 661.93 | I106: 670.47 | J106: 678.93 | K106: 662 | L106: 645 | M106: 6.40186
A107: 97 | B107: CENTURYPLY | C107: 314.55 | D107: 311.50 | E107: 306.10 | F107: 297.65 | G107: 292.25 | H107: 319.95 | I107: 325.35 | J107: 333.80 | K107: 316.9 | L107: 303.05 | M107: 2.01533
A108: 98 | B108: CENTURYTEX | C108: 459.4 | D108: 462.70 | E108: 451.20 | F108: 443.00 | G108: 431.50 | H108: 470.90 | I108: 482.40 | J108: 490.60 | K108: 474.2 | L108: 454.5 | M108: 5.50473
A109: 99 | B109: CERA | C109: 3915.75 | D109: 3903.27 | E109: 3866.53 | F109: 3817.32 | G109: 3780.58 | H109: 3952.48 | I109: 3989.22 | J109: 4038.43 | K109: 3940 | L109: 3854.05 | M109: 0.15683
A110: 100 | B110: CHALET | C110: 149.5 | D110: 150.25 | E110: 146.40 | F110: 143.30 | G110: 139.45 | H110: 153.35 | I110: 157.20 | J110: 160.30 | K110: 154.1 | L110: 147.15 | M110: 1.84358
A111: 101 | B111: CHAMBLFERT | C111: 225.85 | D111: 225.62 | E111: 221.23 | F111: 216.62 | G111: 212.23 | H111: 230.23 | I111: 234.62 | J111: 239.23 | K111: 230 | L111: 221 | M111: 5.29316
A112: 102 | B112: CHENNPETRO | C112: 96.45 | D112: 97.02 | E112: 95.43 | F112: 94.42 | G112: 92.83 | H112: 98.03 | I112: 99.62 | J112: 100.63 | K112: 98.6 | L112: 96 | M112: 4.08005
A113: 103 | B113: CHOLAHLDNG | C113: 597.3 | D113: 596.13 | E113: 589.27 | F113: 581.23 | G113: 574.37 | H113: 604.17 | I113: 611.03 | J113: 619.07 | K113: 603 | L113: 588.1 | M113: 0.51001
A114: 104 | B114: CHOLAFIN | C114: 555.3 | D114: 556.33 | E114: 548.37 | F114: 541.43 | G114: 533.47 | H114: 563.27 | I114: 571.23 | J114: 578.17 | K114: 564.3 | L114: 549.4 | M114: 19.5677
A115: 105 | B115: CIPLA | C115: 812.2 | D115: 806.12 | E115: 796.33 | F115: 780.47 | G115: 770.68 | H115: 821.98 | I115: 831.77 | J115: 847.63 | K115: 815.9 | L115: 790.25 | M115: 44.53933
A116: 106 | B116: CUB | C116: 153.9 | D116: 155.30 | E116: 148.60 | F116: 143.30 | G116: 136.60 | H116: 160.60 | I116: 167.30 | J116: 172.60 | K116: 162 | L116: 150 | M116: 55.10475
A117: 107 | B117: COALINDIA | C117: 132.95 | D117: 132.52 | E117: 130.58 | F117: 128.22 | G117: 126.28 | H117: 134.88 | I117: 136.82 | J117: 139.18 | K117: 134.45 | L117: 130.15 | M117: 205.84678
A118: 108 | B118: COCHINSHIP | C118: 369.3 | D118: 367.62 | E118: 353.68 | F118: 338.07 | G118: 324.13 | H118: 383.23 | I118: 397.17 | J118: 412.78 | K118: 381.55 | L118: 352 | M118: 3.33571
A119: 109 | B119: COFORGE | C119: 2960.1 | D119: 2908.13 | E119: 2828.27 | F119: 2696.43 | G119: 2616.57 | H119: 3039.97 | I119: 3119.83 | J119: 3251.67 | K119: 2988 | L119: 2776.3 | M119: 7.06485
A120: 110 | B120: COLPAL | C120: 1552.7 | D120: 1548.10 | E120: 1534.45 | F120: 1516.20 | G120: 1502.55 | H120: 1566.35 | I120: 1580.00 | J120: 1598.25 | K120: 1561.75 | L120: 1529.85 | M120: 5.09875
A121: 111 | B121: CONCOR | C121: 597.8 | D121: 598.48 | E121: 586.82 | F121: 575.83 | G121: 564.17 | H121: 609.47 | I121: 621.13 | J121: 632.12 | K121: 610.15 | L121: 587.5 | M121: 68.13463
A122: 112 | B122: COROMANDEL | C122: 769.7 | D122: 765.92 | E122: 758.78 | F122: 747.87 | G122: 740.73 | H122: 776.83 | I122: 783.97 | J122: 794.88 | K122: 773.05 | L122: 755 | M122: 2.81205
A123: 113 | B123: CREDITACC | C123: 679.6 | D123: 668.88 | E123: 650.77 | F123: 621.93 | G123: 603.82 | H123: 697.72 | I123: 715.83 | J123: 744.67 | K123: 687 | L123: 640.05 | M123: 1.92231
A124: 114 | B124: CROMPTON | C124: 385.85 | D124: 383.48 | E124: 377.97 | F124: 370.08 | G124: 364.57 | H124: 391.37 | I124: 396.88 | J124: 404.77 | K124: 389 | L124: 375.6 | M124: 14.97268
A125: 115 | B125: CUMMINSIND | C125: 897.9 | D125: 891.18 | E125: 874.47 | F125: 851.03 | G125: 834.32 | H125: 914.62 | I125: 931.33 | J125: 954.77 | K125: 907.9 | L125: 867.75 | M125: 14.13577
A126: 116 | B126: CYIENT | C126: 643.6 | D126: 637.93 | E126: 626.92 | F126: 610.23 | G126: 599.22 | H126: 654.62 | I126: 665.63 | J126: 682.32 | K126: 648.95 | L126: 621.25 | M126: 4.2491
A127: 117 | B127: DBCORP | C127: 92.4 | D127: 92.25 | E127: 90.25 | F127: 88.10 | G127: 86.10 | H127: 94.40 | I127: 96.40 | J127: 98.55 | K127: 94.25 | L127: 90.1 | M127: 3.28567
A128: 118 | B128: DCBBANK | C128: 105.9 | D128: 105.05 | E128: 103.60 | F128: 101.30 | G128: 99.85 | H128: 107.35 | I128: 108.80 | J128: 111.10 | K128: 106.5 | L128: 102.75 | M128: 12.13973
A129: 119 | B129: DCMSHRIRAM | C129: 493.4 | D129: 495.70 | E129: 485.70 | F129: 478.00 | G129: 468.00 | H129: 503.40 | I129: 513.40 | J129: 521.10 | K129: 505.7 | L129: 488 | M129: 0.77723
A130: 120 | B130: DLF | C130: 279.3 | D130: 279.42 | E130: 274.38 | F130: 269.47 | G130: 264.43 | H130: 284.33 | I130: 289.37 | J130: 294.28 | K130: 284.45 | L130: 274.5 | M130: 77.3036
A131: 121 | B131: DABUR | C131: 538 | D131: 537.07 | E131: 532.93 | F131: 527.87 | G131: 523.73 | H131: 542.13 | I131: 546.27 | J131: 551.33 | K131: 541.2 | L131: 532 | M131: 26.43994
A132: 122 | B132: DALBHARAT | C132: 1584 | D132: 1575.68 | E132: 1545.47 | F132: 1506.93 | G132: 1476.72 | H132: 1614.22 | I132: 1644.43 | J132: 1682.97 | K132: 1605.9 | L132: 1537.15 | M132: 1.24486
A133: 123 | B133: DEEPAKNTR | C133: 1626.1 | D133: 1603.38 | E133: 1568.82 | F133: 1511.53 | G133: 1476.97 | H133: 1660.67 | I133: 1695.23 | J133: 1752.52 | K133: 1637.95 | L133: 1546.1 | M133: 19.48347
A134: 124 | B134: DELTACORP | C134: 165.15 | D134: 169.05 | E134: 160.10 | F134: 155.05 | G134: 146.10 | H134: 174.10 | I134: 183.05 | J134: 188.10 | K134: 178 | L134: 164 | M134: 53.98234
A135: 125 | B135: DHANI | C135: 186.75 | D135: 195.58 | E135: 171.47 | F135: 156.18 | G135: 132.07 | H135: 210.87 | I135: 234.98 | J135: 250.27 | K135: 219.7 | L135: 180.3 | M135: 70.78719
A136: 126 | B136: DHANUKA | C136: 679.05 | D136: 682.38 | E136: 668.77 | F136: 658.48 | G136: 644.87 | H136: 692.67 | I136: 706.28 | J136: 716.57 | K136: 696 | L136: 672.1 | M136: 0.56449
A137: 127 | B137: DBL | C137: 584.15 | D137: 579.72 | E137: 568.43 | F137: 552.72 | G137: 541.43 | H137: 595.43 | I137: 606.72 | J137: 622.43 | K137: 591 | L137: 564 | M137: 4.07892
A138: 128 | B138: DISHTV | C138: 9.35 | D138: 9.42 | E138: 9.18 | F138: 9.02 | G138: 8.78 | H138: 9.58 | I138: 9.82 | J138: 9.98 | K138: 9.65 | L138: 9.25 | M138: 76.64805
A139: 129 | B139: DCAL | C139: 108.35 | D139: 108.98 | E139: 106.17 | F139: 103.98 | G139: 101.17 | H139: 111.17 | I139: 113.98 | J139: 116.17 | K139: 111.8 | L139: 106.8 | M139: 5.51347
A140: 130 | B140: DIVISLAB | C140: 3584.25 | D140: 3554.77 | E140: 3509.53 | F140: 3434.82 | G140: 3389.58 | H140: 3629.48 | I140: 3674.72 | J140: 3749.43 | K140: 3600 | L140: 3480.05 | M140: 7.32609
A141: 131 | B141: DIXON | C141: 3635.55 | D141: 3673.52 | E141: 3582.03 | F141: 3528.52 | G141: 3437.03 | H141: 3727.03 | I141: 3818.52 | J141: 3872.03 | K141: 3765 | L141: 3620 | M141: 4.21867
A142: 132 | B142: LALPATHLAB | C142: 2614.8 | D142: 2631.23 | E142: 2572.97 | F142: 2531.13 | G142: 2472.87 | H142: 2673.07 | I142: 2731.33 | J142: 2773.17 | K142: 2689.5 | L142: 2589.4 | M142: 3.55517
A143: 133 | B143: DRREDDY | C143: 4518.2 | D143: 4488.90 | E143: 4450.35 | F143: 4382.50 | G143: 4343.95 | H143: 4556.75 | I143: 4595.30 | J143: 4663.15 | K143: 4527.45 | L143: 4421.05 | M143: 8.6635
A144: 134 | B144: EIDPARRY | C144: 324.5 | D144: 325.97 | E144: 319.98 | F144: 315.47 | G144: 309.48 | H144: 330.48 | I144: 336.47 | J144: 340.98 | K144: 331.95 | L144: 321.45 | M144: 1.19898
A145: 135 | B145: EIHOTEL | C145: 92.95 | D145: 93.32 | E145: 90.08 | F145: 87.22 | G145: 83.98 | H145: 96.18 | I145: 99.42 | J145: 102.28 | K145: 96.55 | L145: 90.45 | M145: 7.24256
A146: 136 | B146: EPL | C146: 230.75 | D146: 228.97 | E146: 225.93 | F146: 221.12 | G146: 218.08 | H146: 233.78 | I146: 236.82 | J146: 241.63 | K146: 232 | L146: 224.15 | M146: 13.62461
A147: 137 | B147: ESABINDIA | C147: 1795.3 | D147: 1802.88 | E147: 1772.42 | F147: 1749.53 | G147: 1719.07 | H147: 1825.77 | I147: 1856.23 | J147: 1879.12 | K147: 1833.35 | L147: 1780 | M147: 0.05679
A148: 138 | B148: EDELWEISS | C148: 66.6 | D148: 67.90 | E148: 65.30 | F148: 64.00 | G148: 61.40 | H148: 69.20 | I148: 71.80 | J148: 73.10 | K148: 70.5 | L148: 66.6 | M148: 21.96913
A149: 139 | B149: EICHERMOT | C149: 2639.95 | D149: 2618.33 | E149: 2582.97 | F149: 2525.98 | G149: 2490.62 | H149: 2675.32 | I149: 2710.68 | J149: 2767.67 | K149: 2653.7 | L149: 2561.35 | M149: 9.80341
A150: 140 | B150: ELGIEQUIP | C150: 183.8 | D150: 183.97 | E150: 181.23 | F150: 178.67 | G150: 175.93 | H150: 186.53 | I150: 189.27 | J150: 191.83 | K150: 186.7 | L150: 181.4 | M150: 0.4485
A151: 141 | B151: EMAMILTD | C151: 493.35 | D151: 489.15 | E151: 477.20 | F151: 461.05 | G151: 449.10 | H151: 505.30 | I151: 517.25 | J151: 533.40 | K151: 501.1 | L151: 473 | M151: 7.85314
A152: 142 | B152: ENDURANCE | C152: 1464.15 | D152: 1457.40 | E152: 1434.80 | F152: 1405.45 | G152: 1382.85 | H152: 1486.75 | I152: 1509.35 | J152: 1538.70 | K152: 1480 | L152: 1428.05 | M152: 1.10596
A153: 143 | B153: ENGINERSIN | C153: 76.85 | D153: 76.32 | E153: 73.93 | F153: 71.02 | G153: 68.63 | H153: 79.23 | I153: 81.62 | J153: 84.53 | K153: 78.7 | L153: 73.4 | M153: 65.60526
A154: 144 | B154: EQUITAS | C154: 85.9 | D154: 86.83 | E154: 83.87 | F154: 81.83 | G154: 78.87 | H154: 88.87 | I154: 91.83 | J154: 93.87 | K154: 89.8 | L154: 84.8 | M154: 23.99077
A155: 145 | B155: ERIS | C155: 609.85 | D155: 608.37 | E155: 596.73 | F155: 583.62 | G155: 571.98 | H155: 621.48 | I155: 633.12 | J155: 646.23 | K155: 620 | L155: 595.25 | M155: 1.61429
A156: 146 | B156: ESCORTS | C156: 1274.35 | D156: 1276.25 | E156: 1260.55 | F156: 1246.75 | G156: 1231.05 | H156: 1290.05 | I156: 1305.75 | J156: 1319.55 | K156: 1291.95 | L156: 1262.45 | M156: 5.5308
A157: 147 | B157: EXIDEIND | C157: 186.2 | D157: 185.30 | E157: 183.75 | F157: 181.30 | G157: 179.75 | H157: 187.75 | I157: 189.30 | J157: 191.75 | K157: 186.85 | L157: 182.85 | M157: 39.11551
A158: 148 | B158: FDC | C158: 281 | D158: 280.08 | E158: 276.92 | F158: 272.83 | G158: 269.67 | H158: 284.17 | I158: 287.33 | J158: 291.42 | K158: 283.25 | L158: 276 | M158: 1.29065
A159: 149 | B159: FEDERALBNK | C159: 75.8 | D159: 76.52 | E159: 74.83 | F159: 73.87 | G159: 72.18 | H159: 77.48 | I159: 79.17 | J159: 80.13 | K159: 78.2 | L159: 75.55 | M159: 207.29627
A160: 150 | B160: FINEORG | C160: 2279.1 | D160: 2285.38 | E160: 2254.77 | F160: 2230.43 | G160: 2199.82 | H160: 2309.72 | I160: 2340.33 | J160: 2364.67 | K160: 2316 | L160: 2261.05 | M160: 0.42792
A161: 151 | B161: FINCABLES | C161: 389.25 | D161: 387.25 | E161: 382.75 | F161: 376.25 | G161: 371.75 | H161: 393.75 | I161: 398.25 | J161: 404.75 | K161: 391.75 | L161: 380.75 | M161: 3.14955
A162: 152 | B162: FINPIPE | C162: 613.05 | D162: 613.83 | E162: 605.67 | F162: 598.28 | G162: 590.12 | H162: 621.22 | I162: 629.38 | J162: 636.77 | K162: 622 | L162: 606.45 | M162: 0.84023
A163: 153 | B163: FSL | C163: 110.8 | D163: 110.00 | E163: 108.10 | F163: 105.40 | G163: 103.50 | H163: 112.70 | I163: 114.60 | J163: 117.30 | K163: 111.9 | L163: 107.3 | M163: 27.48991
A164: 154 | B164: FORTIS | C164: 200.6 | D164: 201.25 | E164: 196.85 | F164: 193.10 | G164: 188.70 | H164: 205.00 | I164: 209.40 | J164: 213.15 | K164: 205.65 | L164: 197.5 | M164: 26.51307
A165: 155 | B165: FCONSUMER | C165: 6.1 | D165: 6.27 | E165: 5.83 | F165: 5.57 | G165: 5.13 | H165: 6.53 | I165: 6.97 | J165: 7.23 | K165: 6.7 | L165: 6 | M165: 96.14433
A166: 156 | B166: FRETAIL | C166: 44.85 | D166: 45.73 | E166: 43.97 | F166: 43.08 | G166: 41.32 | H166: 46.62 | I166: 48.38 | J166: 49.27 | K166: 47.5 | L166: 44.85 | M166: 38.35506
A167: 157 | B167: GAIL | C167: 132.35 | D167: 133.47 | E167: 129.68 | F167: 127.02 | G167: 123.23 | H167: 136.13 | I167: 139.92 | J167: 142.58 | K167: 137.25 | L167: 130.8 | M167: 718.584
A168: 158 | B168: GEPIL | C168: 279.95 | D168: 278.20 | E168: 272.35 | F168: 264.75 | G168: 258.90 | H168: 285.80 | I168: 291.65 | J168: 299.25 | K168: 284.05 | L168: 270.6 | M168: 1.00952
A169: 159 | B169: GHCL | C169: 226.55 | D169: 223.97 | E169: 219.93 | F169: 213.32 | G169: 209.28 | H169: 230.58 | I169: 234.62 | J169: 241.23 | K169: 228 | L169: 217.35 | M169: 1.98416
A170: 160 | B170: GMMPFAUDLR | C170: 4188.8 | D170: 4176.27 | E170: 4122.53 | F170: 4056.27 | G170: 4002.53 | H170: 4242.53 | I170: 4296.27 | J170: 4362.53 | K170: 4230 | L170: 4110 | M170: 0.33825
A171: 161 | B171: GMRINFRA | C171: 24.4 | D171: 25.10 | E171: 23.60 | F171: 22.80 | G171: 21.30 | H171: 25.90 | I171: 27.40 | J171: 28.20 | K171: 26.6 | L171: 24.3 | M171: 171.58582
A172: 162 | B172: GALAXYSURF | C172: 2446.2 | D172: 2436.42 | E172: 2412.83 | F172: 2379.47 | G172: 2355.88 | H172: 2469.78 | I172: 2493.37 | J172: 2526.73 | K172: 2460 | L172: 2403.05 | M172: 0.19023
A173: 163 | B173: GRSE | C173: 186.55 | D173: 188.45 | E173: 183.80 | F173: 181.05 | G173: 176.40 | H173: 191.20 | I173: 195.85 | J173: 198.60 | K173: 193.1 | L173: 185.7 | M173: 1.19482
A174: 164 | B174: GARFIBRES | C174: 2496.9 | D174: 2481.53 | E174: 2415.37 | F174: 2333.83 | G174: 2267.67 | H174: 2563.07 | I174: 2629.23 | J174: 2710.77 | K174: 2547.7 | L174: 2400 | M174: 0.20785
A175: 165 | B175: GICRE | C175: 183.7 | D175: 190.73 | E175: 175.57 | F175: 167.43 | G175: 152.27 | H175: 198.87 | I175: 214.03 | J175: 222.17 | K175: 205.9 | L175: 182.6 | M175: 23.89997
A176: 166 | B176: GILLETTE | C176: 5835.7 | D176: 5768.57 | E176: 5638.13 | F176: 5440.57 | G176: 5310.13 | H176: 5966.13 | I176: 6096.57 | J176: 6294.13 | K176: 5899 | L176: 5571 | M176: 0.19515
A177: 167 | B177: GLAXO | C177: 1426.2 | D177: 1422.12 | E177: 1414.53 | F177: 1402.87 | G177: 1395.28 | H177: 1433.78 | I177: 1441.37 | J177: 1453.03 | K177: 1429.7 | L177: 1410.45 | M177: 0.23836
A178: 168 | B178: GLENMARK | C178: 461.9 | D178: 459.05 | E178: 454.85 | F178: 447.80 | G178: 443.60 | H178: 466.10 | I178: 470.30 | J178: 477.35 | K178: 463.25 | L178: 452 | M178: 10.86346
A179: 169 | B179: GODFRYPHLP | C179: 895.75 | D179: 892.37 | E179: 884.83 | F179: 873.92 | G179: 866.38 | H179: 903.28 | I179: 910.82 | J179: 921.73 | K179: 899.9 | L179: 881.45 | M179: 0.72874
A180: 170 | B180: GODREJAGRO | C180: 513 | D180: 508.60 | E180: 493.20 | F180: 473.40 | G180: 458.00 | H180: 528.40 | I180: 543.80 | J180: 563.60 | K180: 524 | L180: 488.8 | M180: 3.1566
A181: 171 | B181: GODREJCP | C181: 726.5 | D181: 723.78 | E181: 716.27 | F181: 706.03 | G181: 698.52 | H181: 734.02 | I181: 741.53 | J181: 751.77 | K181: 731.3 | L181: 713.55 | M181: 24.62785
A182: 172 | B182: GODREJIND | C182: 545.8 | D182: 542.27 | E182: 534.53 | F182: 523.27 | G182: 515.53 | H182: 553.53 | I182: 561.27 | J182: 572.53 | K182: 550 | L182: 531 | M182: 4.60165
A183: 173 | B183: GODREJPROP | C183: 1352.2 | D183: 1361.30 | E183: 1333.45 | F183: 1314.70 | G183: 1286.85 | H183: 1380.05 | I183: 1407.90 | J183: 1426.65 | K183: 1389.15 | L183: 1342.55 | M183: 6.9522
A184: 174 | B184: GRANULES | C184: 309.1 | D184: 307.58 | E184: 304.62 | F184: 300.13 | G184: 297.17 | H184: 312.07 | I184: 315.03 | J184: 319.52 | K184: 310.55 | L184: 303.1 | M184: 27.94951
A185: 175 | B185: GRAPHITE | C185: 484.65 | D185: 488.22 | E185: 477.03 | F185: 469.42 | G185: 458.23 | H185: 495.83 | I185: 507.02 | J185: 514.63 | K185: 499.4 | L185: 480.6 | M185: 9.2167
A186: 176 | B186: GRASIM | C186: 1422.6 | D186: 1420.00 | E186: 1398.35 | F186: 1374.10 | G186: 1352.45 | H186: 1444.25 | I186: 1465.90 | J186: 1490.15 | K186: 1441.65 | L186: 1395.75 | M186: 25.74303
A187: 177 | B187: GESHIP | C187: 316.7 | D187: 315.07 | E187: 310.63 | F187: 304.57 | G187: 300.13 | H187: 321.13 | I187: 325.57 | J187: 331.63 | K187: 319.5 | L187: 309 | M187: 1.82923
A188: 178 | B188: GREAVESCOT | C188: 131.05 | D188: 129.55 | E188: 125.95 | F188: 120.85 | G188: 117.25 | H188: 134.65 | I188: 138.25 | J188: 143.35 | K188: 133.15 | L188: 124.45 | M188: 14.97089
A189: 179 | B189: GRINDWELL | C189: 930.35 | D189: 926.57 | E189: 898.13 | F189: 865.92 | G189: 837.48 | H189: 958.78 | I189: 987.22 | J189: 1019.43 | K189: 955 | L189: 894.35 | M189: 0.29581
A190: 180 | B190: GUJALKALI | C190: 338.65 | D190: 338.55 | E190: 335.10 | F190: 331.55 | G190: 328.10 | H190: 342.10 | I190: 345.55 | J190: 349.10 | K190: 342 | L190: 335 | M190: 0.86776
A191: 181 | B191: GAEL | C191: 128.3 | D191: 129.10 | E191: 126.75 | F191: 125.20 | G191: 122.85 | H191: 130.65 | I191: 133.00 | J191: 134.55 | K191: 131.45 | L191: 127.55 | M191: 1.45693
A192: 182 | B192: FLUOROCHEM | C192: 581.4 | D192: 582.13 | E192: 574.27 | F192: 567.13 | G192: 559.27 | H192: 589.27 | I192: 597.13 | J192: 604.27 | K192: 590 | L192: 575 | M192: 0.26153
A193: 183 | B193: GUJGASLTD | C193: 537.6 | D193: 530.87 | E193: 521.73 | F193: 505.87 | G193: 496.73 | H193: 546.73 | I193: 555.87 | J193: 571.73 | K193: 540 | L193: 515 | M193: 12.26159
A194: 184 | B194: GMDCLTD | C194: 55.9 | D194: 56.08 | E194: 54.37 | F194: 52.83 | G194: 51.12 | H194: 57.62 | I194: 59.33 | J194: 60.87 | K194: 57.8 | L194: 54.55 | M194: 15.95245
A195: 185 | B195: GNFC | C195: 295.55 | D195: 292.30 | E195: 287.25 | F195: 278.95 | G195: 273.90 | H195: 300.60 | I195: 305.65 | J195: 313.95 | K195: 297.35 | L195: 284 | M195: 11.27442
A196: 186 | B196: GPPL | C196: 98.25 | D196: 98.03 | E196: 96.42 | F196: 94.58 | G196: 92.97 | H196: 99.87 | I196: 101.48 | J196: 103.32 | K196: 99.65 | L196: 96.2 | M196: 2.62649
A197: 187 | B197: GSFC | C197: 81.8 | D197: 82.40 | E197: 80.90 | F197: 80.00 | G197: 78.50 | H197: 83.30 | I197: 84.80 | J197: 85.70 | K197: 83.9 | L197: 81.5 | M197: 14.61727
A198: 188 | B198: GSPL | C198: 267.2 | D198: 265.80 | E198: 261.80 | F198: 256.40 | G198: 252.40 | H198: 271.20 | I198: 275.20 | J198: 280.60 | K198: 269.8 | L198: 260.4 | M198: 5.50455
A199: 189 | B199: GULFOILLUB | C199: 733.5 | D199: 729.47 | E199: 714.03 | F199: 694.57 | G199: 679.13 | H199: 748.93 | I199: 764.37 | J199: 783.83 | K199: 744.9 | L199: 710 | M199: 0.16667
A200: 190 | B200: HEG | C200: 1442.35 | D200: 1451.45 | E200: 1422.90 | F200: 1403.45 | G200: 1374.90 | H200: 1470.90 | I200: 1499.45 | J200: 1518.90 | K200: 1480 | L200: 1432 | M200: 3.02176
A201: 191 | B201: HCLTECH | C201: 995.8 | D201: 987.02 | E201: 973.23 | F201: 950.67 | G201: 936.88 | H201: 1009.58 | I201: 1023.37 | J201: 1045.93 | K201: 1000.8 | L201: 964.45 | M201: 54.75051
A202: 192 | B202: HDFCAMC | C202: 2892.25 | D202: 2888.08 | E202: 2864.17 | F202: 2836.08 | G202: 2812.17 | H202: 2916.17 | I202: 2940.08 | J202: 2968.17 | K202: 2912 | L202: 2860 | M202: 1.80923
A203: 193 | B203: HDFCBANK | C203: 1553.7 | D203: 1539.27 | E203: 1515.98 | F203: 1478.27 | G203: 1454.98 | H203: 1576.98 | I203: 1600.27 | J203: 1637.98 | K203: 1562.55 | L203: 1501.55 | M203: 128.04032
A204: 194 | B204: HDFCLIFE | C204: 687.75 | D204: 685.35 | E204: 677.40 | F204: 667.05 | G204: 659.10 | H204: 695.70 | I204: 703.65 | J204: 714.00 | K204: 693.3 | L204: 675 | M204: 34.67886
A205: 195 | B205: HFCL | C205: 25.5 | D205: 25.60 | E205: 25.25 | F205: 25.00 | G205: 24.65 | H205: 25.85 | I205: 26.20 | J205: 26.45 | K205: 25.95 | L205: 25.35 | M205: 27.12276
A206: 196 | B206: HATHWAY | C206: 25.15 | D206: 25.22 | E206: 24.93 | F206: 24.72 | G206: 24.43 | H206: 25.43 | I206: 25.72 | J206: 25.93 | K206: 25.5 | L206: 25 | M206: 22.91645
... 321 more rows

Sheet Bulk Deals
E6: Back To Main Page
A7: Subject : | B7: BULK DEAL | D7: =Main!B10 -> 2021-03-31
A9: Date | B9: Scrip code | C9: Scrip Name | D9: Client Name | E9: Buy / Sell | F9: Quantity Traded | G9: Trade Price / Wt.Avg.trade price | H9: Exchange
A10: 2021-03-30 | B10: 539544 | C10: ABHIINFRA | D10: SIVA KUMARI DANDAMUDI | E10: SELL | F10: 18,280 | G10: 4.48 | H10: BSE
A11: 2021-03-30 | B11: 539544 | C11: ABHIINFRA | D11: PRIYADARSINI DWARAMPUDI | E11: BUY | F11: 35,252 | G11: 4.48 | H11: BSE
A12: 2021-03-30 | B12: 539544 | C12: ABHIINFRA | D12: SESHAGIRI RAO GOLLAPUDI | E12: SELL | F12: 30,588 | G12: 4.48 | H12: BSE
A13: 2021-03-30 | B13: 517546 | C13: ALFATRAN | D13: FRONTLINE VENTURE SERVICES PRIVATE LIMITED | E13: SELL | F13: 78,262 | G13: 9.31 | H13: BSE
A14: 2021-03-30 | B14: 517546 | C14: ALFATRAN | D14: ANIL YADAV | E14: BUY | F14: 75,000 | G14: 9.3 | H14: BSE
A15: 2021-03-30 | B15: 539017 | C15: ASHFL | D15: KALU LAL JAIN | E15: SELL | F15: 104,160 | G15: 73.56 | H15: BSE
A16: 2021-03-30 | B16: 530723 | C16: ASITCFIN | D16: DEENA ASIT MEHTA | E16: BUY | F16: 414,370 | G16: 71.5 | H16: BSE
A17: 2021-03-30 | B17: 530723 | C17: ASITCFIN | D17: ASIT MEHTA COMDEX SERVICES PVT LTD | E17: SELL | F17: 400,470 | G17: 71.5 | H17: BSE
A18: 2021-03-30 | B18: 524516 | C18: BACPHAR | D18: KHEM SUM APPARELS OVERSEAS LTD | E18: SELL | F18: 143,800 | G18: 3.11 | H18: BSE
A19: 2021-03-30 | B19: 524516 | C19: BACPHAR | D19: PARIKSHIT K NOTARIA | E19: BUY | F19: 140,000 | G19: 3.11 | H19: BSE
A20: 2021-03-30 | B20: 531591 | C20: BAMPSL | D20: NAYNA GUPTA | E20: BUY | F20: 300,000 | G20: 2.86 | H20: BSE
A21: 2021-03-30 | B21: 531591 | C21: BAMPSL | D21: KAJAL GUPTA | E21: BUY | F21: 500,000 | G21: 2.82 | H21: BSE
A22: 2021-03-30 | B22: 531591 | C22: BAMPSL | D22: ASHLAR SECURITIES PRIVATE LIMITED | E22: SELL | F22: 789,950 | G22: 2.84 | H22: BSE
A23: 2021-03-30 | B23: 539198 | C23: CAPFIN | D23: SARITA MANTRY | E23: BUY | F23: 16,478 | G23: 4.76 | H23: BSE
A24: 2021-03-30 | B24: 539198 | C24: CAPFIN | D24: KIRTIARORA | E24: SELL | F24: 17,437 | G24: 4.76 | H24: BSE
A25: 2021-03-30 | B25: 540829 | C25: CHANDRIMA | D25: ARUMUGASUNDARAMSORNAMUTHU | E25: SELL | F25: 19,796 | G25: 3.65 | H25: BSE
A26: 2021-03-30 | B26: 540829 | C26: CHANDRIMA | D26: PRITI KHANDELWAL | E26: BUY | F26: 24,600 | G26: 3.65 | H26: BSE
A27: 2021-03-30 | B27: 541299 | C27: DLCL | D27: DHRUVAPANDEY | E27: BUY | F27: 32,000 | G27: 12.65 | H27: BSE
A28: 2021-03-30 | B28: 508954 | C28: FINKURVE | D28: DEVKUMARI MANEKCHAND KOTHARI | E28: SELL | F28: 700,000 | G28: 42.5 | H28: BSE
A29: 2021-03-30 | B29: 508954 | C29: FINKURVE | D29: NEXPACT LIMITED | E29: BUY | F29: 700,000 | G29: 42.5 | H29: BSE
A30: 2021-03-30 | B30: 542850 | C30: GOBLIN | D30: VIJETA BROKING INDIA PRIVATE LIMITED | E30: BUY | F30: 300,000 | G30: 25.23 | H30: BSE
A31: 2021-03-30 | B31: 542850 | C31: GOBLIN | D31: PROFICIENT MERCHANDISE LIMITED | E31: SELL | F31: 300,000 | G31: 25.23 | H31: BSE
A32: 2021-03-30 | B32: 530663 | C32: GOYALASS | D32: PLUTUS CAPITAL MANAGEMENT LLP | E32: BUY | F32: 300,000 | G32: 3.43 | H32: BSE
A33: 2021-03-30 | B33: 540774 | C33: IFGLEXPOR | D33: M/S. PRARTHANA ENTERPRISES | E33: BUY | F33: 180,537 | G33: 321.5 | H33: BSE
A34: 2021-03-30 | B34: 540774 | C34: IFGLEXPOR | D34: MINESH JORMALBHAI MEHTA | E34: SELL | F34: 180,537 | G34: 321.5 | H34: BSE
A35: 2021-03-30 | B35: 533289 | C35: KTIL | D35: AUTHUM INVESTMENT & INFRASTRUCTURE LIMITED | E35: BUY | F35: 212,759 | G35: 32 | H35: BSE
A36: 2021-03-30 | B36: 533289 | C36: KTIL | D36: MENTOR CAPITAL LIMITED | E36: SELL | F36: 212,769 | G36: 32 | H36: BSE
A37: 2021-03-30 | B37: 526869 | C37: KUMPFIN | D37: KUSHAL KUMAR RANKA | E37: SELL | F37: 45,001 | G37: 6.14 | H37: BSE
A38: 2021-03-30 | B38: 526869 | C38: KUMPFIN | D38: RAJESH KUMAR JAIN S | E38: BUY | F38: 45,451 | G38: 6.14 | H38: BSE
A39: 2021-03-30 | B39: 511728 | C39: KZLFIN | D39: ANKIT PRAVINKUMAR PATEL | E39: BUY | F39: 16,480 | G39: 9.7 | H39: BSE
A40: 2021-03-30 | B40: 511728 | C40: KZLFIN | D40: HARDIK FINANCE LTD | E40: SELL | F40: 15,768 | G40: 9.7 | H40: BSE
A41: 2021-03-30 | B41: 530577 | C41: LADDERUP | D41: CASANOSTRA ESTATES PRIVATE LIMITED | E41: SELL | F41: 100,000 | G41: 13.47 | H41: BSE
A42: 2021-03-30 | B42: 530577 | C42: LADDERUP | D42: QUIET ENTERPRISES LLP | E42: BUY | F42: 99,000 | G42: 13.47 | H42: BSE
A43: 2021-03-30 | B43: 507912 | C43: LKPFIN | D43: NISHIL SURENDRABHAI MARFATIA | E43: SELL | F43: 150,000 | G43: 75.5 | H43: BSE
A44: 2021-03-30 | B44: 507912 | C44: LKPFIN | D44: GOENKA BUSINESS & FINANCE LIMITED | E44: BUY | F44: 150,000 | G44: 75.5 | H44: BSE
A45: 2021-03-30 | B45: 507912 | C45: LKPFIN | D45: GOENKA BUSINESS & FINANCE LIMITED | E45: SELL | F45: 150,000 | G45: 75.75 | H45: BSE
A46: 2021-03-30 | B46: 542231 | C46: NILASPACES | D46: M/S. PRARTHANA ENTERPRISES | E46: BUY | F46: 2,936,000 | G46: 1.4 | H46: BSE
A47: 2021-03-30 | B47: 542231 | C47: NILASPACES | D47: MINESH JORMALBHAI MEHTA | E47: SELL | F47: 2,936,000 | G47: 1.4 | H47: BSE
A48: 2021-03-30 | B48: 538537 | C48: OMANSH | D48: GAURAV KUMAR | E48: SELL | F48: 150,000 | G48: 0.33 | H48: BSE
A49: 2021-03-30 | B49: 538537 | C49: OMANSH | D49: KUMAR EXPORTS | E49: BUY | F49: 150,000 | G49: 0.33 | H49: BSE
A50: 2021-03-30 | B50: 523862 | C50: PIFL | D50: MUDDALURI NAVEEN KUMAR RAJU | E50: BUY | F50: 71,000 | G50: 2.42 | H50: BSE
A51: 2021-03-30 | B51: 523862 | C51: PIFL | D51: PADAMCHAND BHAVARLAL DHOOT | E51: SELL | F51: 56,000 | G51: 2.42 | H51: BSE
A52: 2021-03-30 | B52: 531879 | C52: PIONDIST | D52: TANVEER VINIMAY PVT LTD | E52: BUY | F52: 46 | G52: 107.5 | H52: BSE
A53: 2021-03-30 | B53: 531879 | C53: PIONDIST | D53: TANVEER VINIMAY PVT LTD | E53: SELL | F53: 85,000 | G53: 92.05 | H53: BSE
A54: 2021-03-30 | B54: 532011 | C54: POOJAENT | D54: JACKY VASHUDEV BHAGNANI | E54: BUY | F54: 40,000 | G54: 61.6 | H54: BSE
A55: 2021-03-30 | B55: 540404 | C55: PRIMEFRESH | D55: NISHANK JAIN | E55: BUY | F55: 28,000 | G55: 150 | H55: BSE
A56: 2021-03-30 | B56: 538647 | C56: PURSHOTTAM | D56: GEETA AGARWAL . | E56: SELL | F56: 120,000 | G56: 8.29 | H56: BSE
A57: 2021-03-30 | B57: 540175 | C57: REGENCY | D57: INDERJEET KAUR WADHWA | E57: BUY | F57: 40,000 | G57: 11.3 | H57: BSE
A58: 2021-03-30 | B58: 540175 | C58: REGENCY | D58: AMANDEEP SINGH | E58: BUY | F58: 2,405 | G58: 11.42 | H58: BSE
A59: 2021-03-30 | B59: 540175 | C59: REGENCY | D59: AMANDEEP SINGH | E59: SELL | F59: 40,000 | G59: 11.3 | H59: BSE
A60: 2021-03-30 | B60: 542019 | C60: SHUBHAM | D60: ANSU INVESTMENT | E60: BUY | F60: 219,000 | G60: 61.5 | H60: BSE
A61: 2021-03-30 | B61: 542019 | C61: SHUBHAM | D61: SUHAG RAMANLAL VORA | E61: SELL | F61: 171,000 | G61: 61.5 | H61: BSE
A62: 2021-03-30 | B62: 507998 | C62: SIMMOND | D62: ADITYA MALKANI | E62: SELL | F62: 87,591 | G62: 26.55 | H62: BSE
A63: 2021-03-30 | B63: 539026 | C63: SSPNFIN | D63: SANGEETA CHANDU JAIN | E63: SELL | F63: 60,000 | G63: 19.97 | H63: BSE
A64: 2021-03-30 | B64: 539026 | C64: SSPNFIN | D64: ASHOK KUMAR SINGH | E64: SELL | F64: 20,000 | G64: 19.5 | H64: BSE
A65: 2021-03-30 | B65: 539026 | C65: SSPNFIN | D65: SURYA K RAIKWAR | E65: BUY | F65: 24,000 | G65: 17.05 | H65: BSE
A66: 2021-03-30 | B66: 539026 | C66: SSPNFIN | D66: SUBASH RAMASHISH MISHRA | E66: BUY | F66: 80,000 | G66: 19.85 | H66: BSE
A67: 2021-03-30 | B67: 539026 | C67: SSPNFIN | D67: SUBASH RAMASHISH MISHRA | E67: SELL | F67: 24,000 | G67: 17.05 | H67: BSE
A68: 2021-03-30 | B68: 543279 | C68: SURYODAY | D68: PLUTUS WEALTH MANAGEMENT LLP | E68: SELL | F68: 1,310,991 | G68: 258.71 | H68: BSE
A69: 2021-03-30 | B69: 539310 | C69: THINKINK | D69: DARDA KIRAN HUF | E69: BUY | F69: 200,000 | G69: 29.44 | H69: BSE
A70: 2021-03-30 | B70: 539331 | C70: VETO | D70: HARISH D NARWANI | E70: SELL | F70: 100,000 | G70: 115 | H70: BSE
A71: 2021-03-30 | B71: ALKALI | C71: Alkali Metals Limited | D71: PINAKINI ARUNKUMAR SOLANKI | E71: BUY | F71: 82,383 | G71: 50.39 | H71: NSE
A72: 2021-03-30 | B72: ARCHIDPLY | C72: Archidply Industries Limi | D72: ASSAM TIMBER PRODUCTS PVT LTD | E72: BUY | F72: 140,000 | G72: 29.65 | H72: NSE
A73: 2021-03-30 | B73: ARIES | C73: Aries Agro Limited | D73: RAMESH VENKATESHWAR SOMANI | E73: BUY | F73: 32 | G73: 85.4 | H73: NSE
A74: 2021-03-30 | B74: ASIANTILES | C74: Asian Granito India Limit | D74: CLIFF TREXIM PRIVATE LIMITED | E74: BUY | F74: 10,000 | G74: 138.5 | H74: NSE
A75: 2021-03-30 | B75: ASIANTILES | C75: Asian Granito India Limit | D75: CNM FINVEST PRIVATE LIMITED . | E75: BUY | F75: 172,209 | G75: 139.43 | H75: NSE
A76: 2021-03-30 | B76: BCP | C76: B.C. Power Controls Ltd | D76: CHIRAG DILIPKUMAR PAREKH | E76: BUY | F76: 500,000 | G76: 3 | H76: NSE
A77: 2021-03-30 | B77: CENTRUM | C77: Centrum Capital Limited | D77: SAJNEER MANAGEMENT AND CONSULTANCY PRIVATE LIMITED | E77: BUY | F77: 2,422,617 | G77: 28.8 | H77: NSE
A78: 2021-03-30 | B78: EASEMYTRIP | C78: Easy Trip Planners Ltd | D78: GRAVITON RESEARCH CAPITAL LLP | E78: BUY | F78: 572,106 | G78: 212.7 | H78: NSE
A79: 2021-03-30 | B79: KOTARISUG | C79: Kothari Sugars And Chemic | D79: OLGA TRADING PRIVATE LIMITED | E79: BUY | F79: 421,021 | G79: 28.51 | H79: NSE
A80: 2021-03-30 | B80: MAJESCO | C80: Majesco Limited | D80: RAJASTHAN GLOBAL SECURITIES PVT LTD | E80: BUY | F80: 246,504 | G80: 64.96 | H80: NSE
A81: 2021-03-30 | B81: MITCON | C81: MITCON Con & Eng Ser Ltd | D81: BEESLEY CONSULTANCY PRIVATE LIMITED | E81: BUY | F81: 432,000 | G81: 40.8 | H81: NSE
A82: 2021-03-30 | B82: NAZARA | C82: Nazara Technologies Ltd | D82: NK SECURITIES RESEARCH PRIVATE LIMITED | E82: BUY | F82: 189,014 | G82: 1811.17 | H82: NSE
A83: 2021-03-30 | B83: NAZARA | C83: Nazara Technologies Ltd | D83: TWO ROADS TRADING PRIVATE LIMITED | E83: BUY | F83: 173,589 | G83: 1806.66 | H83: NSE
A84: 2021-03-30 | B84: NAZARA | C84: Nazara Technologies Ltd | D84: VAIBHAV STOCK AND DERIVATIVES BROKING PRIVATE LIMITED | E84: BUY | F84: 209,882 | G84: 1769.03 | H84: NSE
A85: 2021-03-30 | B85: NAZARA | C85: Nazara Technologies Ltd | D85: SWAPNIL MEHTA | E85: BUY | F85: 192,169 | G85: 1812.93 | H85: NSE
A86: 2021-03-30 | B86: NAZARA | C86: Nazara Technologies Ltd | D86: NUMIV RESEARCH PRIVATE LIMITED | E86: BUY | F86: 197,789 | G86: 1763.71 | H86: NSE
A87: 2021-03-30 | B87: PERFECT | C87: Perfect Infraengineer Ltd | D87: MANISHA NIMESH MEHTA | E87: BUY | F87: 66,000 | G87: 10.4 | H87: NSE
A88: 2021-03-30 | B88: RMDRIP | C88: R M Drip & Sprink Sys Ltd | D88: RUPAL SHRIKANT SHAH | E88: BUY | F88: 124,000 | G88: 19.96 | H88: NSE
A89: 2021-03-30 | B89: TCIDEVELOP | C89: TCI Developers Limited | D89: JINDAL FUTURES PVT LTD | E89: BUY | F89: 80,703 | G89: 296.75 | H89: NSE
A90: 2021-03-30 | B90: UNITEDPOLY | C90: United Polyfab Guj. Ltd. | D90: DHANSHREE BARTER PVT LTD | E90: BUY | F90: 108,000 | G90: 13.2 | H90: NSE
A91: 2021-03-30 | B91: VERTOZ | C91: Vertoz Advertising Ltd | D91: OLGA TRADING PRIVATE LIMITED | E91: BUY | F91: 185,842 | G91: 270.97 | H91: NSE
A92: 2021-03-30 | B92: VIPCLOTHNG | C92: Vip Clothing Ltd. | D92: FLOWERS VALLEY PVT LTD | E92: BUY | F92: 1,469,716 | G92: 13.1 | H92: NSE
A93: 2021-03-30 | B93: VIPCLOTHNG | C93: Vip Clothing Ltd. | D93: KHAZANA TRADELINKS PVT LTD | E93: BUY | F93: 4,100,000 | G93: 13.07 | H93: NSE
A94: 2021-03-30 | B94: WELENT | C94: Welspun Enterprises Ltd | D94: WELSPUN GROUP MASTER TRUST | E94: BUY | F94: 4,100,000 | G94: 120.48 | H94: NSE
A95: 2021-03-30 | B95: ALKALI | C95: Alkali Metals Limited | D95: SATYANARAYAN J KABRA | E95: SELL | F95: 65,000 | G95: 49.9 | H95: NSE
A96: 2021-03-30 | B96: ALKALI | C96: Alkali Metals Limited | D96: PINAKINI ARUNKUMAR SOLANKI | E96: SELL | F96: 82,383 | G96: 54.27 | H96: NSE
A97: 2021-03-30 | B97: ARCHIDPLY | C97: Archidply Industries Limi | D97: RAJIV DAGA | E97: SELL | F97: 135,158 | G97: 29.65 | H97: NSE
A98: 2021-03-30 | B98: ARIES | C98: Aries Agro Limited | D98: RAMESH VENKATESHWAR SOMANI | E98: SELL | F98: 75,226 | G98: 80.15 | H98: NSE
A99: 2021-03-30 | B99: ASIANTILES | C99: Asian Granito India Limit | D99: CLIFF TREXIM PRIVATE LIMITED | E99: SELL | F99: 260,000 | G99: 139 | H99: NSE
A100: 2021-03-30 | B100: ASIANTILES | C100: Asian Granito India Limit | D100: CNM FINVEST PRIVATE LIMITED . | E100: SELL | F100: 172,209 | G100: 141.32 | H100: NSE
A101: 2021-03-30 | B101: BCP | C101: B.C. Power Controls Ltd | D101: SHAH MUKESHKUMAR BABULAL | E101: SELL | F101: 462,000 | G101: 2.99 | H101: NSE
A102: 2021-03-30 | B102: CENTRUM | C102: Centrum Capital Limited | D102: SAJNEER MANAGEMENT AND CONSULTANCY PRIVATE LIMITED | E102: SELL | F102: 1,383,540 | G102: 28.55 | H102: NSE
A103: 2021-03-30 | B103: EASEMYTRIP | C103: Easy Trip Planners Ltd | D103: GRAVITON RESEARCH CAPITAL LLP | E103: SELL | F103: 572,106 | G103: 212.73 | H103: NSE
A104: 2021-03-30 | B104: KOTARISUG | C104: Kothari Sugars And Chemic | D104: OLGA TRADING PRIVATE LIMITED | E104: SELL | F104: 324,112 | G104: 28.1 | H104: NSE
A105: 2021-03-30 | B105: LUXIND | C105: Lux Industries Limited | D105: MONET SECURITIES PRIVATE LTD | E105: SELL | F105: 287,501 | G105: 1770.01 | H105: NSE
A106: 2021-03-30 | B106: MITCON | C106: MITCON Con & Eng Ser Ltd | D106: MANPHOOL EXPORTS LTD | E106: SELL | F106: 100,000 | G106: 40.8 | H106: NSE
A107: 2021-03-30 | B107: MITCON | C107: MITCON Con & Eng Ser Ltd | D107: PRADEEP RAGHUNATH BAVADEKAR | E107: SELL | F107: 270,000 | G107: 40.8 | H107: NSE
A108: 2021-03-30 | B108: NAZARA | C108: Nazara Technologies Ltd | D108: NUMIV RESEARCH PRIVATE LIMITED | E108: SELL | F108: 197,520 | G108: 1764.62 | H108: NSE
A109: 2021-03-30 | B109: NAZARA | C109: Nazara Technologies Ltd | D109: NK SECURITIES RESEARCH PRIVATE LIMITED | E109: SELL | F109: 189,012 | G109: 1812.13 | H109: NSE
A110: 2021-03-30 | B110: NAZARA | C110: Nazara Technologies Ltd | D110: SWAPNIL MEHTA | E110: SELL | F110: 192,169 | G110: 1754.35 | H110: NSE
A111: 2021-03-30 | B111: NAZARA | C111: Nazara Technologies Ltd | D111: TWO ROADS TRADING PRIVATE LIMITED | E111: SELL | F111: 173,531 | G111: 1807.44 | H111: NSE
A112: 2021-03-30 | B112: NAZARA | C112: Nazara Technologies Ltd | D112: VAIBHAV STOCK AND DERIVATIVES BROKING PRIVATE LIMITED | E112: SELL | F112: 209,866 | G112: 1769.82 | H112: NSE
A113: 2021-03-30 | B113: PERFECT | C113: Perfect Infraengineer Ltd | D113: KEYNOTE CAPITALS LTD. | E113: SELL | F113: 66,000 | G113: 10.4 | H113: NSE
A114: 2021-03-30 | B114: RMDRIP | C114: R M Drip & Sprink Sys Ltd | D114: HARSHIT SHAH | E114: SELL | F114: 112,000 | G114: 19.95 | H114: NSE
A115: 2021-03-30 | B115: TCIDEVELOP | C115: TCI Developers Limited | D115: TRANSPORT CORPORATION OF INDIA LTD | E115: SELL | F115: 82,000 | G115: 296.79 | H115: NSE
A116: 2021-03-30 | B116: VERTOZ | C116: Vertoz Advertising Ltd | D116: OLGA TRADING PRIVATE LIMITED | E116: SELL | F116: 105,783 | G116: 268.57 | H116: NSE
A117: 2021-03-30 | B117: VETO | C117: Veto Switchgear Cable Ltd | D117: HARISH DARSHAN SINGH NARWANI | E117: SELL | F117: 100,000 | G117: 115 | H117: NSE
A118: 2021-03-30 | B118: VIPCLOTHNG | C118: Vip Clothing Ltd. | D118: SUBHKAM PROPERTIES LLP | E118: SELL | F118: 6,000,000 | G118: 13.09 | H118: NSE
A119: 2021-03-30 | B119: WELENT | C119: Welspun Enterprises Ltd | D119: SATYA NARAYAN DHOOT | E119: SELL | F119: 986,901 | G119: 121.16 | H119: NSE

Sheet Call Tracker (Equity & F&O)
M5: Back To Main Page
A6: Retail Research Technical Calls & Fundamental Performance Report for the month of March-2021
M7: =Main!B10 -> 2021-03-31
B8: Positional Call
A9: Sr.no | B9: Date | D9: Company | E9: Rec | F9: Rec Price | G9: Stop Loss*** | H9: Call Closed At | I9: Target | J9: Remark | K9: Profit / Loss per Share | L9: All charges | M9: Net Gain / Loss % | N9: Status | O9: Closed Date
A10: 1 | B10: 2021-02-02 | D10: HINDUNILVR | E10: Buy | F10: 2240 | G10: 2090 | H10: 2370 | I10: 2500-2550 | J10: Profit of Rs.130/- | K10: =H10-F10 -> 130 | L10: =(F10*-0.8)/100 -> -17.92 | M10: =(K10+L10)/F10 -> 5.00% | N10: Successful | O10: 2021-03-23 | R10: H
A11: 2 | B11: 2021-02-09 | D11: PIIND | E11: Buy<> | F11: 2203 | G11: 2070 | H11: 2320 | I11: 2400-2500 | J11: Profit of Rs.117/- | K11: =H11-F11 -> 117 | L11: =(F11*-0.8)/100 -> -17.62 | M11: 4.51% | N11: Successful | O11: 2021-03-26 | R11: H
A12: 3 | B12: 2021-02-26 | D12: IOC | E12: Buy<> | F12: 95.5 | G12: 88.5 | H12: 100 | I12: 107-112 | J12: Part Profit of Rs.4.50/- | K12: =H12-F12 -> 4.5 | L12: =(F12*-0.8)/100 -> -0.76 | M12: 3.91% | N12: Successful | O12: 2021-03-02 | R12: N
A13: 4 | B13: 2021-02-26 | D13: GMMPFAUDLR | E13: Buy | F13: 4110 | G13: 3800 | H13: 4415 | I13: 4600-4700 | J13: Profit of Rs.305/- | K13: =H13-F13 -> 305 | L13: =(F13*-0.8)/100 -> -32.88 | M13: 6.62% | N13: Successful | O13: 2021-03-01 | R13: N
A14: 5 | B14: 2021-03-04 | D14: CSBBANK | E14: Buy | F14: 230.5 | G14: 218 | H14: 255 | I14: 250-255 | J14: Profit of Rs.24.5/- | K14: 24.5 | L14: =(F14*-0.8)/100 -> -1.84 | M14: 9.83% | N14: Successful | O14: 2021-03-05 | R14: H
A15: 6 | B15: 2021-03-04 | D15: GODREJAGRO | E15: Buy | F15: 492.5 | G15: 460 | H15: 515 | I15: 550 | J15: Part Profit of Rs.22.50/- | K15: 22.5 | L15: =(F15*-0.8)/100 -> -3.94 | M15: 3.77% | N15: Successful | O15: 2021-03-30 | R15: N
A16: 7 | B16: 2021-03-09 | D16: ASTERDM | E16: Buy | F16: 142 | G16: 134.5 | H16: 134.5 | I16: 154-158 | J16: Loss of Rs.7.5/- | K16: =H16-F16 -> -7.5 | L16: =(F16*-0.8)/100 -> -1.14 | M16: -6.08% | N16: Unsuccessful | O16: 2021-03-25 | R16: H
A17: 8 | B17: 2021-03-18 | D17: IRCTC | E17: Buy | F17: 1785 | G17: 1670 | H17: 1872.5 | I17: 2000 | J17: Part Profit of Rs.87.50/- | K17: =H17-F17 -> 87.5 | L17: =(F17*-0.8)/100 -> -14.28 | M17: 4.10% | N17: Successful | O17: 2021-03-19 | R17: H
A18: 9 | B18: 2021-03-19 | D18: SUDARSCHEM | E18: Buy | F18: 510 | G18: 477 | H18: 546 | I18: 570-580 | J18: Profit of Rs.36/- | K18: =H18-F18 -> 36 | L18: =(F18*-0.8)/100 -> -4.08 | M18: 6.26% | N18: Successful | O18: 2021-03-23 | R18: H
A19: 10 | B19: 2021-03-19 | D19: GODREJCP | E19: Buy | F19: 655 | G19: 615 | H19: 699 | I19: 730-750 | J19: Profit of Rs.44/- | K19: =H19-F19 -> 44 | L19: =(F19*-0.8)/100 -> -5.24 | M19: 5.92% | N19: Successful | O19: 2021-03-23 | R19: N
A20: 11 | B20: 2021-03-19 | D20: HDFCAMC | E20: Buy | F20: 2840-2860 | G20: 2650 | I20: 3050-3250 | J20: Open | R20: N
A21: 12 | B21: 2021-03-19 | D21: SRF | E21: Buy | F21: 5250-5300 | G21: 4950 | I21: 5700-5800 | J21: Open | R21: N
A22: 13 | B22: 2021-03-22 | D22: WHIRLPOOL | E22: Buy | F22: 2320 | G22: 2170 | H22: 2170 | I22: 2500-2600 | J22: Loss of Rs.150/- | K22: =H22-F22 -> -150 | L22: =(F22*-0.8)/100 -> -18.56 | M22: =(K22+L22)/F22 -> -7.27% | N22: Unsuccessful | O22: 2021-03-25 | R22: H
A23: 14 | B23: 2021-03-22 | D23: RELIANCE | E23: Buy | F23: 2040-2060 | G23: 1940 | I23: 2300-2400 | J23: Open | R23: H
A24: 15 | B24: 2021-03-22 | D24: IGL | E24: Buy | F24: 505-509 | G24: 478 | I24: 545-564 | J24: Open | R24: H
A25: 16 | B25: 2021-03-26 | D25: PIDILITIND | E25: Buy | F25: 1780-1790 | G25: 1675 | I25: 2000-2050 | J25: Open | R25: N
B26: 2021-03-30 | D26: SUDARSCHEM | E26: Buy | F26: 513-519 | G26: 477 | I26: 560-580 | J26: Open
A33: CLBS = Closing Basis ***
A34: Dividend adjusted <> | F34: Reinitiated $
A35: Part book {} | F35: Revised stoploss #
B37: Momentum Call
A38: Sr.no | B38: Date | D38: Company | E38: Rec | F38: Rec Price | G38: Stop Loss | H38: Call Closed At | I38: Target | J38: Remark | K38: Profit / Loss per Share/Lot | L38: All charges | M38: Net Gain / Loss % | N38: Status | O38: Closed Date
A39: 1 | B39: 2021-02-25 | D39: CADILAHC | E39: Buy | F39: 440 | G39: 427 | H39: 452 | I39: 465 | J39: Profit of Rs.12/- | K39: =H39-F39 -> 12 | L39: =(F39*-0.7)/100 -> -3.08 | M39: =(K39+L39)/F39 -> 2.03% | N39: Successful | O39: 2021-03-04 | R39: N
A40: 2 | B40: 2021-02-26 | D40: LTI | E40: Buy | F40: 3630 | G40: 3540 | H40: 3745 | I40: 3780-3820 | J40: Profit of Rs.115/- | K40: =H40-F40 -> 115 | L40: =(F40*-0.7)/100 -> -25.41 | M40: =(K40+L40)/F40 -> 2.47% | N40: Successful | O40: 2021-03-02 | R40: H
A41: 3 | B41: 2021-02-26 | D41: BHARTIARTL | E41: Buy | F41: 567 | G41: 549 | H41: 549 | I41: 590-600 | J41: Loss of Rs.18/- | K41: =H41-F41 -> -18 | L41: =(F41*-0.7)/100 -> -3.97 | M41: =(K41+L41)/F41 -> -3.87% | N41: Unsuccessful | O41: 2021-03-01 | R41: H
A42: 4 | B42: 2021-02-01 | D42: PERSISTENT | E42: Buy | F42: 1640 | G42: 1590 | H42: 1687 | I42: 1720-1750 | J42: Profit of Rs.47/- | K42: =H42-F42 -> 47 | L42: =(F42*-0.07)/100 -> -1.15 | M42: =(K42+L42)/F42 -> 2.80% | N42: Successful | O42: 2021-03-01 | R42: N
A43: 5 | B43: 2021-02-01 | D43: ALKEM | E43: Buy | F43: 2722.5 | G43: 2640 | H43: 2775.5 | I43: 2850 | J43: Profit of Rs.53/- | K43: =H43-F43 -> 53 | L43: =(F43*-0.07)/100 -> -1.91 | M43: =(K43+L43)/F43 -> 1.88% | N43: Successful | O43: 2021-03-01 | R43: N
A44: 6 | B44: 2021-02-02 | D44: APLLTD | E44: Buy | F44: 928 | G44: 900 | H44: 900 | I44: 980 | J44: Loss of Rs.28/- | K44: -28 | L44: =(F44*-0.7)/100 -> -6.50 | M44: -3.72% | N44: Unsuccessful | O44: 2021-03-18 | R44: N
A45: 7 | B45: 2021-02-03 | D45: CHAMBLFERT | E45: Buy | F45: 249.5 | G45: 242 | H45: 255.5 | I45: 270 | J45: Profit of Rs.6/- | K45: =H45-F45 -> 6 | L45: =(F45*-0.07)/100 -> -0.17 | M45: =(K45+L45)/F45 -> 2.33% | N45: Successful | O45: 2021-03-03 | R45: N
A46: 8 | B46: 2021-02-03 | D46: GUJGASLTD | E46: Buy | F46: 539.5 | G46: 521 | H46: 553.5 | I46: 570 | J46: Profit of Rs.14/- | K46: =H46-F46 -> 14 | L46: =(F46*-0.07)/100 -> -0.38 | M46: =(K46+L46)/F46 -> 2.52% | N46: Successful | O46: 2021-03-03 | R46: N
A47: 9 | B47: 2021-02-03 | D47: JAICORPLTD | E47: Buy | F47: 102.25 | G47: 99 | H47: 104.55 | I47: 107-110 | J47: Profit of Rs.2.3/- | K47: =H47-F47 -> 2.3 | L47: =(F47*-0.07)/100 -> -0.07 | M47: =(K47+L47)/F47 -> 2.18% | N47: Successful | O47: 2021-03-03 | R47: H
A48: 10 | B48: 2021-03-04 | D48: UPL | E48: Buy | F48: 602 | G48: 584 | H48: 613.5 | I48: 625-640 | J48: Profit of Rs.11.5/- | K48: =H48-F48 -> 11.5 | L48: =(F48*-0.07)/100 -> -0.42 | M48: =(K48+L48)/F48 -> 1.84% | N48: Successful | O48: 2021-03-04 | R48: H
A49: 11 | B49: 2021-03-04 | D49: RELIANCE | E49: Buy | F49: 2162.5 | G49: 2095 | H49: 2220 | I49: 2250-2270 | J49: Profit of Rs.57.5/- | K49: 57.5 | L49: =(F49*-0.7)/100 -> -15.14 | M49: 1.96% | N49: Successful | O49: 2021-03-08 | R49: H
A50: 12 | B50: 2021-03-05 | D50: CHAMBLFERT | E50: Buy | F50: 245.5 | G50: 238 | H50: 238 | I50: 260 | J50: Loss of Rs.7.5/- | K50: =H50-F50 -> -7.5 | L50: =(F50*-0.07)/100 -> -0.17 | M50: =(K50+L50)/F50 -> -3.12% | N50: Unsuccessful | O50: 2021-03-05 | R50: N
A51: 13 | B51: 2021-03-05 | D51: AMBUJACEM | E51: Buy | F51: 295 | G51: 288 | H51: 287 | I51: 305-310 | J51: Loss of Rs.8/- | K51: =H51-F51 -> -8 | L51: =(F51*-0.07)/100 -> -0.21 | M51: =(K51+L51)/F51 -> -2.78% | N51: Unsuccessful | O51: 2021-03-05 | R51: H
A52: 14 | B52: 2021-03-05 | D52: SBIN | E52: Sell | F52: 385 | G52: 396 | H52: 379 | I52: 370-365 | J52: Profit of Rs.6/- | K52: =F52-H52 -> 6 | L52: =(F52*-0.07)/100 -> -0.27 | M52: 1.49% | N52: Successful | O52: 2021-03-05 | R52: H
A53: 15 | B53: 2021-03-08 | D53: HDFC | E53: Buy | F53: 2542.5 | G53: 2470 | H53: 2662.5 | I53: 2650-2670 | J53: Profit of Rs.120/- | K53: =H53-F53 -> 120 | L53: =(F53*-0.7)/100 -> -17.80 | M53: 4.02% | N53: Successful | O53: 2021-03-12 | R53: H
A54: 16 | B54: 2021-03-08 | D54: ALKEM | E54: Buy | F54: 2775 | G54: 2685 | H54: 2685 | I54: 2900-2930 | J54: Loss of Rs.90/- | K54: -90 | L54: -19.43 | M54: -3.94% | N54: Unsuccessful | O54: 2021-03-15 | R54: H
A55: 17 | B55: 2021-03-08 | D55: JAICORPLTD | E55: Buy | F55: 101.3 | G55: 98 | H55: 104.5 | I55: 105-107 | J55: Profit of Rs.3.2/- | K55: =H55-F55 -> 3.2 | L55: =(F55*-0.07)/100 -> -0.07 | M55: =(K55+L55)/F55 -> 3.09% | N55: Successful | O55: 2021-03-08 | R55: H
A56: 18 | B56: 2021-03-09 | D56: JAICORPLTD | E56: Buy | F56: 102.3 | G56: 98.5 | H56: 104.25 | I56: 105-107 | J56: Profit of Rs.1.95/- | K56: =H56-F56 -> 1.95 | L56: =(F56*-0.07)/100 -> -0.07 | M56: =(K56+L56)/F56 -> 1.84% | N56: Successful | O56: 2021-03-09 | R56: H
A57: 19 | B57: 2021-03-09 | D57: JAICORPLTD | E57: Buy | F57: 101.5 | G57: 98.5 | H57: 98.5 | I57: 105-107 | J57: Loss of Rs.3/- | K57: -3 | L57: =(F57*-0.7)/100 -> -0.71 | M57: -3.66% | N57: Unsuccessful | O57: 2021-03-12 | R57: H
A58: 20 | B58: 2021-03-10 | D58: NMDC | E58: Sell | F58: 132.75 | G58: 137 | H58: 130.25 | I58: 125 | J58: Profit of Rs.2.50/- | K58: =F58-H58 -> 2.5 | L58: =(F58*-0.07)/100 -> -0.09 | M58: =(K58+L58)/F58 -> 1.81% | N58: Successful | O58: 2021-03-10 | R58: H
A59: 21 | B59: 2021-03-10 | D59: SBIN | E59: Sell | F59: 388 | G59: 398 | H59: 378.5 | I59: 370-365 | J59: Profit of Rs.9.5/- | K59: =F59-H59 -> 9.5 | L59: =(F59*-0.7)/100 -> -2.72 | M59: 1.75% | N59: Successful | O59: 2021-03-12 | R59: H
A60: 22 | B60: 2021-03-12 | D60: WELCORP | E60: Buy | F60: 135.5 | G60: 131.5 | H60: 131.5 | I60: 145 | J60: Loss of Rs.4/- | K60: =H60-F60 -> -4 | L60: =(F60*-0.7)/100 -> -0.95 | M60: -3.65% | N60: Unsuccessful | O60: 2021-03-15 | R60: N
A61: 23 | B61: 2021-03-12 | D61: WELSPUNIND | E61: Buy | F61: 78.6 | G61: 75.8 | H61: 80.45 | I61: 82-83 | J61: Profit of Rs.1.85/- | K61: =H61-F61 -> 1.85 | L61: =(F61*-0.07)/100 -> -0.06 | M61: =(K61+L61)/F61 -> 2.28% | N61: Successful | O61: 2021-03-12 | R61: H
A62: 24 | B62: 2021-03-16 | D62: CIPLA | E62: Buy | F62: 800 | G62: 780 | H62: 774 | I62: 830-840 | J62: Loss of Rs.26/- | K62: -26 | L62: =(F62*-0.7)/100 -> -5.60 | M62: -3.95% | N62: Unsuccessful | O62: 2021-03-18 | R62: H
A63: 25 | B63: 2021-03-17 | D63: ICICIBANK | E63: Buy | F63: 593.5 | G63: 579 | H63: 572.5 | I63: 630-635 | J63: Loss of Rs.21/- | K63: =H63-F63 -> -21 | L63: =(F63*-0.07)/100 -> -0.42 | M63: =(K63+L63)/F63 -> -3.61% | N63: Unsuccessful | O63: 2021-03-19 | R63: H
A64: 26 | B64: 2021-03-18 | D64: PETRONET | E64: Sell | F64: 230 | G64: 236 | H64: 225.75 | I64: 220-218 | J64: Profit of Rs.4.25/- | K64: =F64-H64 -> 4.25 | L64: =(F64*-0.07)/100 -> -0.16 | M64: =(K64+L64)/F64 -> 1.78% | N64: Successful | O64: 2021-03-18 | R64: H
A65: 27 | B65: 2021-03-18 | D65: TVSMOTOR | E65: Sell | F65: 582.5 | G65: 601 | H65: 571.5 | I65: 550-545 | J65: Profit of Rs.11/- | K65: =F65-H65 -> 11 | L65: =(F65*-0.07)/100 -> -0.41 | M65: =(K65+L65)/F65 -> 1.82% | N65: Successful | O65: 2021-03-18 | R65: H
A66: 28 | B66: 2021-03-18 | D66: WELSPUNIND | E66: Buy | F66: 79.7 | G66: 77 | H66: 77 | I66: 85 | J66: Loss of Rs.2.7/- | K66: =H66-F66 -> -2.7 | L66: =(F66*-0.07)/100 -> -0.06 | M66: -3.46% | N66: Unsuccessful | O66: 2021-03-18 | R66: H
A67: 29 | B67: 2021-03-22 | D67: HDFCLIFE | E67: Buy | F67: 687-690 | G67: 668 | I67: 715-725 | J67: Open | R67: H
A68: 30 | B68: 2021-03-22 | D68: PETRONET | E68: Sell | F68: 230 | G68: 236 | H68: 225 | I68: 220-218 | J68: Profit of Rs.5/- | K68: =F68-H68 -> 5 | L68: =(F68*-0.7)/100 -> -1.61 | M68: =(K68+L68)/F68 -> 1.47% | N68: Successful | O68: 2021-03-24 | R68: H
A69: 31 | B69: 2021-03-22 | D69: ICICIBANK | E69: Buy | F69: 582 | G69: 567 | H69: 562.5 | I69: 600-610 | J69: Loss of Rs.19.5/- | K69: =H69-F69 -> -19.5 | L69: =(F69*-0.07)/100 -> -0.41 | M69: -3.42% | N69: Unsuccessful | O69: 2021-03-25 | R69: H
A70: 32 | B70: 2021-03-22 | D70: MANAPPURAM | E70: Buy | F70: 156.4 | G70: 152 | H70: 152 | I70: 164-167 | J70: Loss of Rs.4.4/- | K70: -4.4 | L70: =(F70*-0.7)/100 -> -1.09 | M70: -3.51% | N70: Unsuccessful | O70: 2021-03-25 | R70: H
A71: 33 | B71: 44279 | D71: RVNL | E71: Buy | F71: 28.2 | G71: 27.35 | H71: 28.7 | I71: 29-29.5 | J71: Profit of Rs.0.5/- | K71: 0.5 | L71: -0.20 | M71: 1.07% | N71: Successful | O71: 2021-03-26 | R71: H
A72: 34 | B72: 2021-03-24 | D72: CUMMINSIND | E72: Buy | F72: 875 | G72: 848 | H72: 848 | I72: 925 | J72: Loss of Rs.27/- | K72: =H72-F72 -> -27 | L72: =(F72*-0.7)/100 -> -6.13 | M72: =(K72+L72)/F72 -> -3.79% | N72: Unsuccessful | O72: 2021-03-25 | R72: N
A73: 35 | B73: 2021-03-26 | D73: TVSMOTOR | E73: Sell | F73: 563-567 | G73: 581 | I73: 530-520 | J73: Open | R73: H
B74: 2021-03-30 | D74: DHANUKA | E74: Buy | F74: 679-683 | G74: 660 | I74: 710-720 | J74: Open
B75: 2021-03-30 | D75: CSBBANK | E75: Buy | F75: 234 | G75: 227.5 | H75: 240.5 | I75: 245-250 | J75: Profit of Rs.6.5/- | K75: =H75-F75 -> 6.5 | L75: =(F75*-0.07)/100 -> -0.16 | M75: =(K75+L75)/F75 -> 2.71% | N75: Successful | O75: 2021-03-30
A78: CLBS = Closing Basis *** | H78: *
A79: Dividend adjusted <> | F79: Reinitiated $
F80: Revised stoploss #
A82: Master Trade High Risk
A83: Sr.no | B83: Date | D83: Company | E83: Rec | F83: Rec Price | G83: Stop Loss | H83: Call Closed At | I83: Target | J83: Remark | K83: Profit / Loss per share | L83: All charges | M83: Gain / Loss per Lot | N83: Lot | O83: Status | P83: Closed Date
A84: 1 | B84: 2021-02-25 | D84: DRREDDY MAR FUT | E84: Buy | F84: 4530 | G84: 4425 | H84: 4430 | I84: 4730 | J84: Loss of Rs.100/- | K84: =H84-F84 -> -100 | L84: =(H84*N84)*0.035% -> 193.81 | M84: =(K84*N84)-L84 -> -12693.8 | N84: 125 | O84: Unsuccessful | P84: 2021-03-01 | R84: N
A85: 2 | B85: 2021-02-26 | D85: ESCORTS MAR FUT | E85: Buy | F85: 1313 | G85: 1287 | H85: 1342 | I85: 1360 | J85: Profit of Rs.29/- | K85: =H85-F85 -> 29 | L85: =(H85*N85)*0.035% -> 258.34 | M85: =(K85*N85)-L85 -> 15691.7 | N85: 550 | O85: Successful | P85: 2021-03-01 | R85: N
A86: 3 | B86: 2021-03-01 | D86: NIFTY MAR FUT | E86: Sell | F86: 14705 | G86: 14900 | H86: 14900 | I86: 14500 | J86: Loss of Rs.110/- | K86: =F86-G86 -> -195.00 | L86: 391.13 | M86: -8741 | N86: 75 | O86: Unsuccessful | P86: 2021-03-02 | R86: H
D87: NIFTY 14600 PE 4-MAR | E87: Sell | F87: 112.5 | H87: 27.5 | K87: =F87-H87 -> 85.00 | L87: 100.00 | R87: H
A88: 4 | B88: 2021-03-01 | D88: AXISBANK MAR FUT | E88: Sell | F88: 736 | G88: 746 | H88: 729 | I88: 715 | J88: Profit of Rs.7/- | K88: =F88-H88 -> 7 | L88: =(H88*N88)*0.035% -> 306.18 | M88: =(K88*N88)-L88 -> 8093.8 | N88: 1200 | O88: Successful | P88: 2021-03-01 | R88: H
A89: 5 | B89: 2021-03-01 | D89: COLPAL MAR FUT | E89: Buy | F89: 1576.5 | G89: 1559 | H89: 1589 | I89: 1610 | J89: Profit of Rs.12.5/- | K89: =H89-F89 -> 12.5 | L89: 389.31 | M89: 8360.7 | N89: 700 | O89: Successful | P89: 2021-03-01 | R89: N
A90: 6 | B90: 2021-03-01 | D90: PIIND MAR FUT | E90: Buy | F90: 2190 | G90: 2140 | H90: 2224 | I90: 2290 | J90: Profit of Rs.34/- | K90: 34 | L90: 194.60 | M90: 8305.4 | N90: 250 | O90: Successful | P90: 2021-03-02 | R90: N
A91: 7 | B91: 2021-03-02 | D91: CONCOR MAR FUT | E91: Buy | F91: 577.5 | G91: 570 | H91: 585.5 | I91: 598 | J91: Profit of Rs.8/- | K91: =H91-F91 -> 8 | L91: =(H91*N91)*0.035% -> 320.30 | M91: =(K91*N91)-L91 -> 12183.7 | N91: 1563 | O91: Successful | P91: 2021-03-02 | R91: N
A92: 8 | B92: 2021-03-02 | D92: SIEMENS MAR FUT | E92: Buy | F92: 1918 | G92: 1892 | H92: 1935.5 | I92: 1960 | J92: Profit of Rs.17.5/- | K92: =H92-F92 -> 17.5 | L92: =(H92*N92)*0.035% -> 372.58 | M92: =(K92*N92)-L92 -> 9252.4 | N92: 550 | O92: Successful | P92: 2021-03-02 | R92: N
A93: 9 | B93: 2021-03-03 | D93: NIFTY MAR FUT | E93: Sell | F93: 15075 | G93: 15180 | H93: 15180 | I93: 14850 | J93: Loss of Rs. 105/- | K93: =F93-H93 -> -105 | L93: =(H93*N93)*0.035% -> 398.48 | M93: =(K93*N93)-L93 -> -8273.5 | N93: 75 | O93: Unsuccessful | P93: 2021-03-03 | R93: H
A94: 10 | B94: 2021-03-03 | D94: AXISBANK MAR FUT | E94: Sell | F94: 744 | G94: 755 | H94: 754 | I94: 725 | J94: Loss of Rs. 10/- | K94: =F94-H94 -> -10 | L94: =(H94*N94)*0.035% -> 316.68 | M94: =(K94*N94)-L94 -> -12316.7 | N94: 1200 | O94: Unsuccessful | P94: 2021-03-03 | R94: H
A95: 11 | B95: 2021-03-05 | D95: MARUTI MAR FUT | E95: Sell | F95: 7175 | G95: 7280 | H95: 7280 | I95: 6950 | J95: Loss of Rs. 105/- | K95: =F95-H95 -> -105 | L95: =(H95*N95)*0.035% -> 254.80 | M95: =(K95*N95)-L95 -> -10754.8 | N95: 100 | O95: Unsuccessful | P95: 2021-03-05 | R95: H
A96: 12 | B96: 2021-03-08 | D96: COLPAL MAR FUT | E96: Buy | F96: 1635 | G96: 1617 | H96: 1648 | I96: 1665 | J96: Profit of Rs.13/- | K96: =H96-F96 -> 13 | L96: 403.76 | M96: 8696.2 | N96: 700 | O96: Successful | P96: 2021-03-08 | R96: N
A97: 13 | B97: 2021-03-08 | D97: SIEMENS MAR FUT | E97: Buy | F97: 1905 | G97: 1883 | H97: 1926.5 | I97: 1950 | J97: Profit of Rs.21.5/- | K97: =H97-F97 -> 21.5 | L97: =(H97*N97)*0.035% -> 370.85 | M97: =(K97*N97)-L97 -> 11454.1 | N97: 550 | O97: Successful | P97: 2021-03-08 | R97: N
A98: 14 | B98: 2021-03-08 | D98: GRANULES MAR FUT | E98: Buy | F98: 348.5 | G98: 340 | H98: 353.5 | I98: 365 | J98: Profit of Rs.5/- | K98: =H98-F98 -> 5 | L98: =(H98*N98)*0.035% -> 191.77 | M98: =(K98*N98)-L98 -> 7558.2 | N98: 1550 | O98: Successful | P98: 2021-03-08 | R98: H
A99: 15 | B99: 2021-03-08 | D99: AMARAJABAT MAR FUT | E99: Buy | F99: 910 | G99: 898 | H99: 898 | I99: 930 | J99: Loss of Rs.12/- | K99: -12 | L99: 314.30 | M99: -12314.3 | N99: 1000 | O99: Unsuccessful | P99: 2021-03-09 | R99: N
A100: 16 | B100: 2021-03-09 | D100: GRANULES MAR FUT | E100: Buy | F100: 347.5 | G100: 339.5 | H100: 339.5 | I100: 365 | J100: Loss of Rs.8/- | K100: =H100-F100 -> -8 | L100: =(H100*N100)*0.035% -> 184.18 | M100: =(K100*N100)-L100 -> -12584.2 | N100: 1550 | O100: Unsuccessful | P100: 2021-03-09 | R100: H
A101: 17 | B101: 2021-03-09 | D101: COLPAL MAR FUT | E101: Buy | F101: 1631.5 | G101: 1614 | H101: 1644 | I101: 1665 | J101: Profit of Rs.12.50/- | K101: 12.5 | L101: 402.78 | M101: 8347.2 | N101: 700 | O101: Successful | P101: 2021-03-09 | R101: N
A102: 18 | B102: 2021-03-09 | D102: SIEMENS MAR FUT | E102: Buy | F102: 1902 | G102: 1877 | H102: 1922.5 | I102: 1950 | J102: Profit of Rs.20.50/- | K102: =H102-F102 -> 20.5 | L102: =(H102*N102)*0.035% -> 370.08 | M102: =(K102*N102)-L102 -> 10904.9 | N102: 550 | O102: Successful | P102: 2021-03-10 | R102: N
A103: 19 | B103: 2021-03-10 | D103: AUROPHARMA MAR FUT | E103: Buy | F103: 860 | G103: 840 | H103: 840 | I103: 900 | J103: Loss of Rs.20/- | K103: -20 | L103: 191.10 | M103: -13191.1 | N103: 650 | O103: Unsuccessful | P103: 2021-03-15 | R103: N
A104: 20 | B104: 2021-03-10 | D104: DRREDDY MAR FUT | E104: Buy | F104: 4505 | G104: 4395 | H104: 4405 | I104: 4700 | J104: Loss of Rs.100/- | K104: =H104-F104 -> -100 | L104: =(H104*N104)*0.035% -> 192.72 | M104: =(K104*N104)-L104 -> -12692.7 | N104: 125 | O104: Unsuccessful | P104: 2021-03-15 | R104: H
A105: 21 | B105: 2021-03-10 | D105: INFY MAR FUT | E105: Buy | F105: 1371 | G105: 1349 | H105: 1390.5 | I105: 1410 | J105: Profit of Rs.19.50/- | K105: =H105-F105 -> 19.5 | L105: =(H105*N105)*0.035% -> 292.01 | M105: =(K105*N105)-L105 -> 11408.0 | N105: 600 | O105: Successful | P105: 2021-03-12 | R105: H
A106: 22 | B106: 2021-03-12 | D106: COLPAL MAR FUT | E106: Buy | F106: 1633.5 | G106: 1615 | H106: 1615 | I106: 1665 | J106: Loss of Rs.18.5/- | K106: -18.5 | L106: 395.68 | M106: -13345.7 | N106: 700 | O106: Unsuccessful | P106: 2021-03-15 | R106: N
A107: 23 | B107: 2021-03-12 | D107: BRITANNIA MAR FUT | E107: Buy | F107: 3450 | G107: 3385 | H107: 3487.5 | I107: 3550-3570 | J107: Profit of Rs.37.50/- | K107: =H107-F107 -> 37.5 | L107: =(H107*N107)*0.035% -> 244.13 | M107: =(K107*N107)-L107 -> 7255.9 | N107: 200 | O107: Successful | P107: 2021-03-16 | R107: H
A108: 24 | B108: 2021-03-12 | D108: SIEMENS MAR FUT | E108: Buy | F108: 1920 | G108: 1895 | H108: 1895 | I108: 1970 | J108: Loss of Rs.25/- | K108: =H108-F108 -> -25 | L108: =(H108*N108)*0.035% -> 364.79 | M108: =(K108*N108)-L108 -> -14114.8 | N108: 550 | O108: Unsuccessful | P108: 2021-03-15 | R108: N
A109: 25 | B109: 2021-03-16 | D109: SBIN MAR FUT | E109: Buy | F109: 382.25 | G109: 377 | H109: 378 | I109: 390 | J109: Loss of Rs.4.25/- | K109: =H109-F109 -> -4.25 | L109: =(H109*N109)*0.035% -> 396.90 | M109: =(K109*N109)-L109 -> -13146.9 | N109: 3000 | O109: Unsuccessful | P109: 2021-03-16 | R109: H
A110: 26 | B110: 2021-03-16 | D110: ICICIBANK MAR FUT | E110: Buy | F110: 607 | G110: 597 | H110: 597.5 | I110: 620-625 | J110: Loss of Rs.9.5/- | K110: =H110-F110 -> -9.5 | L110: =(H110*N110)*0.035% -> 282.32 | M110: =(K110*N110)-L110 -> -13107.3 | N110: 1350 | O110: Unsuccessful | P110: 2021-03-16 | R110: H
A111: 27 | B111: 2021-03-16 | D111: SIEMENS MAR FUT | E111: Buy | F111: 1863 | G111: 1838 | H111: 1877.5 | I111: 1900-1910 | J111: Profit of Rs.14.50/- | K111: 14.5 | L111: 361.42 | M111: 7613.6 | N111: 550 | O111: Successful | P111: 2021-03-16 | R111: N
A112: 28 | B112: 2021-03-16 | D112: PIIND MAR FUT | E112: Buy | F112: 2245 | G112: 2190 | H112: 2190 | I112: 2350 | J112: Loss of Rs.55/- | K112: =H112-F112 -> -55 | L112: =(H112*N112)*0.035% -> 191.63 | M112: =(K112*N112)-L112 -> -13941.6 | N112: 250 | O112: Unsuccessful | P112: 2021-03-18 | R112: N
A113: 29 | B113: 2021-03-16 | D113: AXISBANK MAR FUT | E113: Buy | F113: 743 | G113: 732 | H113: 733 | I113: 764 | J113: Loss of Rs.10/- | K113: =H113-F113 -> -10 | L113: =(H113*N113)*0.035% -> 307.86 | M113: =(K113*N113)-L113 -> -12307.9 | N113: 1200 | O113: Unsuccessful | P113: 2021-03-17 | R113: N
A114: 30 | B114: 2021-03-17 | D114: BRITANNIA MAR FUT | E114: Buy | F114: 3452.5 | G114: 3385 | H114: 3490 | I114: 3550-3570 | J114: Profit of Rs.37.50/- | K114: 37.5 | L114: 244.30 | M114: 7255.7 | N114: 200 | O114: Successful | P114: 2021-03-17 | R114: H
A115: 31 | B115: 2021-03-17 | D115: NIFTY MAR FUT | E115: Buy | F115: 14860 | G115: 14750 | H115: 14770 | I115: 15000-15050 | J115: Loss of Rs.90/- | K115: =H115-F115 -> -90 | L115: =(H115*N115)*0.035% -> 387.71 | M115: =(K115*N115)-L115 -> -7137.7 | N115: 75 | O115: Unsuccessful | P115: 2021-03-17 | R115: H
A116: 32 | B116: 2021-03-18 | D116: NIFTY MAR FUT | E116: Sell | F116: 14890 | G116: 15030 | H116: 14835 | I116: 14700 | J116: Profit of Rs. 55/- | K116: =F116-H116 -> 55 | L116: 389.42 | M116: 3735.6 | N116: 75 | O116: Successful | P116: 2021-03-18 | R116: H
A117: 33 | B117: 2021-03-18 | D117: BRITANNIA MAR FUT | E117: Buy | F117: 3446.5 | G117: 3385 | H117: 3481.5 | I117: 3550-3570 | J117: Profit of Rs.35/- | K117: =H117-F117 -> 35 | L117: 243.71 | M117: 6756.3 | N117: 200 | O117: Successful | P117: 2021-03-19 | R117: H
A118: 34 | B118: 2021-03-18 | D118: HDFCBANK MAR FUT | E118: Sell | F118: 1517 | G118: 1538 | H118: 1503 | I118: 1470 | J118: Profit of Rs.14/- | K118: =F118-H118 -> 14 | L118: =(H118*N118)*0.035% -> 289.33 | M118: =(K118*N118)-L118 -> 7410.7 | N118: 550 | O118: Successful | P118: 2021-03-18 | R118: H
A119: 35 | B119: 2021-03-19 | D119: COLPAL APR FUT | E119: Buy | F119: 1587 | G119: 1570 | H119: 1570 | I119: 1625 | J119: Loss of Rs.17/- | K119: =H119-F119 -> -17 | L119: 384.65 | M119: -12284.7 | N119: 700 | O119: Unsuccessful | P119: 2021-03-22 | R119: N
A120: 36 | B120: 2021-03-23 | D120: HINDUNILVR APRIL FUT | E120: Buy | F120: 2355.5 | G120: 2315 | H120: 2315 | I120: 2420-2440 | J120: Loss of Rs.40.5/- | K120: =H120-F120 -> -40.5 | L120: =(H120*N120)*0.035% -> 243.08 | M120: =(K120*N120)-L120 -> -12393.1 | N120: 300 | O120: Unsuccessful | P120: 2021-03-25 | R120: H
A121: 37 | B121: 2021-03-26 | D121: NIFTY APRIL FUT | E121: Sell | F121: 14570 | G121: 14710 | H121: 14710 | I121: 14400 | J121: Loss of Rs. 140/- | K121: =F121-H121 -> -140 | L121: 386.14 | M121: -10886.1 | N121: 75 | O121: Unsuccessful | P121: 2021-03-30 | R121: H
A122: 38 | B122: 2021-03-26 | D122: PIIND APRIL FUT | E122: Buy | F122: 2285 | G122: 2238 | H122: 2307.5 | I122: 2350-2370 | J122: Profit of Rs.22,5/- | K122: =H122-F122 -> 22.5 | L122: 201.91 | M122: 5423.1 | N122: 250 | O122: Successful | P122: 2021-03-30 | R122: H
B123: 2021-03-30 | D123: SBIN APRIL FUT | E123: Buy | F123: 363.5-364.5 | G123: 359 | I123: 370-372 | J123: Open
A128: Master Trade Medium Risk
A129: Sr.no | B129: Date | D129: Company | E129: Rec | F129: Rec Price | G129: Stop Loss | H129: Call Closed At | I129: Target | J129: Remark | K129: Profit/ Loss per lot | L129: All charges | M129: Gain / Loss per Lot | N129: Lot | O129: Status | P129: Closed Date
A130: 1 | B130: 2021-03-01 | D130: BANKNIFTY 35000 PE 4-MAR | E130: Buy | F130: 350 | G130: 190 | H130: 470 | I130: 700 | J130: Profit of Rs.120/- | K130: =H130-F130 -> 120 | L130: 100 | M130: =(K130*N130)-L130 -> 2900.0 | N130: 25 | O130: Successful | P130: 2021-03-01 | R130: H
A131: 2 | B131: 2021-03-01 | D131: BANKNIFTY 35000 PE 4-MAR | E131: Buy | F131: 340 | G131: 190 | H131: 430 | I131: 700 | J131: Profit of Rs.90/- | K131: =H131-F131 -> 90 | L131: 100 | M131: =(K131*N131)-L131 -> 2150.0 | N131: 25 | O131: Successful | P131: 2021-03-01 | R131: H
A132: 3 | B132: 2021-03-02 | D132: BANKNIFTY 35400 PE 4-MAR | E132: Buy | F132: 320 | G132: 170 | H132: 405 | I132: 700 | J132: Profit of Rs.85/- | K132: =H132-F132 -> 85 | L132: 100 | M132: =(K132*N132)-L132 -> 2025.0 | N132: 25 | O132: Successful | P132: 2021-03-02 | R132: N
A133: 4 | B133: 2021-03-02 | D133: NIFTY 14800 PE 4-MAR | E133: Buy | F133: 73.5 | G133: 25 | H133: 96 | I133: 150 | J133: Profit of Rs.22.5/- | K133: =H133-F133 -> 22.5 | L133: 100 | M133: =(K133*N133)-L133 -> 1587.5 | N133: 75 | O133: Successful | P133: 2021-03-02 | R133: N
A134: 5 | B134: 2021-03-02 | D134: NIFTY 14800 PE 4-MAR | E134: Buy | F134: 73.5 | G134: 25 | H134: 25 | I134: 150 | J134: Loss of Rs.48.5/- | K134: =H134-F134 -> -48.5 | L134: 100 | M134: =(K134*N134)-L134 -> -3737.5 | N134: 75 | O134: Unsuccessful | P134: 2021-03-03 | R134: N
A135: 6 | B135: 2021-03-03 | D135: BANKNIFTY 35000 PE 10-MAR | E135: Buy | F135: 295 | G135: 145 | H135: 375 | I135: 600 | J135: Profit of Rs.80/- | K135: 80 | L135: 100 | M135: 1900.0 | N135: 25 | O135: Successful | P135: 2021-03-04 | R135: H
A136: 7 | B136: 2021-03-04 | D136: NIFTY 15150 PE 4-MAR | E136: Buy | F136: 30 | H136: 43 | I136: 80 | J136: Profit of Rs.13/- | K136: =H136-F136 -> 13 | L136: 100 | M136: =(K136*N136)-L136 -> 875.0 | N136: 75 | O136: Successful | P136: 2021-03-04 | R136: N
A137: 8 | B137: 2021-03-04 | D137: BANKNIFTY 35500 PE 10-MAR | E137: Buy | F137: 305 | G137: 145 | H137: 365 | I137: 600 | J137: Profit of Rs.60/- | K137: 60 | L137: 100 | M137: 1400.0 | N137: 25 | O137: Successful | P137: 2021-03-04 | R137: H
A138: 9 | B138: 2021-03-05 | D138: NIFTY 14500 PE 10-MAR | E138: Buy | F138: 75 | G138: 30 | H138: 30 | I138: 150 | J138: Loss of Rs.45/- | K138: -45 | L138: 100 | M138: -3475.0 | N138: 75 | O138: Unsuccessful | P138: 2021-03-08 | R138: H
A139: 10 | B139: 2021-03-05 | D139: COALINDIA 150 CE MAR | E139: Buy | F139: 5.4 | G139: 0 | H139: 0 | J139: Loss of Rs.1.30/- | K139: =F139-H139 -> 5.40 | L139: 100.00 | M139: =(-4100*1.3)+200 -> -5130 | N139: 4100.0 | O139: Unsuccessful | P139: 25-Mar | R139: H
D140: COALINDIA 155 CE MAR | E140: Sell | F140: 4.1 | G140: 0 | H140: 0 | K140: -8.00 | L140: 100.00 | R140: H
A141: 11 | B141: 2021-03-08 | D141: NIFTY 14900 PE 10-MAR | E141: Buy | F141: 81 | G141: 40 | H141: 97 | I141: 160 | J141: Profit of Rs.16/- | K141: =H141-F141 -> 16 | L141: 100 | M141: =(K141*N141)-L141 -> 1100.0 | N141: 75 | O141: Successful | P141: 2021-03-08 | R141: N
A142: 12 | B142: 2021-03-09 | D142: NIFTY 15000 PE 10-MAR | E142: Buy | F142: 61 | G142: 20 | H142: 73 | I142: 140 | J142: Profit of Rs.12/- | K142: =H142-F142 -> 12 | L142: 100 | M142: =(K142*N142)-L142 -> 800.0 | N142: 75 | O142: Successful | P142: 2021-03-09 | R142: N
A143: 13 | B143: 2021-03-09 | D143: BANKNIFTY 35500 PE 10-MAR | E143: Buy | F143: 200 | G143: 70 | H143: 260 | I143: 500 | J143: Profit of Rs.60/- | K143: =H143-F143 -> 60 | L143: 100 | M143: =(K143*N143)-L143 -> 1400.0 | N143: 25 | O143: Successful | P143: 2021-03-09 | R143: H
A144: 14 | B144: 2021-03-09 | D144: BANKNIFTY 35500 PE 10-MAR | E144: Buy | F144: 175 | G144: 70 | H144: 225 | I144: 500 | J144: Profit of Rs.50/- | K144: 50 | L144: 100 | M144: 1150.0 | N144: 25 | O144: Successful | P144: 2021-03-09 | R144: H
A145: 15 | B145: 2021-03-09 | D145: NIFTY 15000 PE 10-MAR | E145: Buy | F145: 61 | G145: 20 | H145: 74 | I145: 140 | J145: Profit of Rs.13/- | K145: =H145-F145 -> 13 | L145: 100 | M145: =(K145*N145)-L145 -> 875.0 | N145: 75 | O145: Successful | P145: 2021-03-09 | R145: N
A146: 16 | B146: 2021-03-09 | D146: BANKNIFTY 35600 PE 10-MAR | E146: Buy | F146: 210 | G146: 70 | H146: 275 | I146: 500 | J146: Profit of Rs.65/- | K146: 65 | L146: 100 | M146: 1525.0 | N146: 25 | O146: Successful | P146: 2021-03-09 | R146: H
A147: 17 | B147: 2021-03-10 | D147: NIFTY 15200 PE 10-MAR | E147: Buy | F147: 50 | H147: 65 | I147: 100 | J147: Profit of Rs.15/- | K147: =H147-F147 -> 15 | L147: 100 | M147: =(K147*N147)-L147 -> 1025.0 | N147: 75 | O147: Successful | P147: 2021-03-10 | R147: N
A148: 18 | B148: 2021-03-10 | D148: BANKNIFTY 35500 PE 18-MAR | E148: Buy | F148: 350 | G148: 170 | H148: 405 | I148: 600 | J148: Profit of Rs.55/- | K148: 55 | L148: 100 | M148: 1275.0 | N148: 25 | O148: Successful | P148: 2021-03-10 | R148: H
A149: 19 | B149: 2021-03-10 | D149: NIFTY 15150 PE 10-MAR | E149: Buy | F149: 21.5 | H149: 0 | I149: 50 | J149: Loss of Rs.21.5/- | K149: -21.5 | L149: 100 | M149: -1712.5 | N149: 75 | O149: Unsuccessful | P149: 2021-03-10 | R149: N
A150: 20 | B150: 2021-03-10 | D150: ZEEL 240 CE 25-MAR | E150: Buy | F150: 4.2 | G150: 2.5 | H150: 5 | I150: 7 | J150: Profit of Rs.0.80/- | K150: 0.8 | L150: 100 | M150: 2300.0 | N150: 3000 | O150: Successful | P150: 2021-03-12 | R150: H
A151: 21 | B151: 2021-03-12 | D151: BANKNIFTY 35800 PE 18-MAR | E151: Buy | F151: 335 | G151: 160 | H151: 390 | I151: 600-700 | J151: Profit of Rs.55/- | K151: =H151-F151 -> 55 | L151: 100 | M151: =(K151*N151)-L151 -> 1275.0 | N151: 25 | O151: Successful | P151: 2021-03-12 | R151: H
A152: 22 | B152: 2021-03-12 | D152: NIFTY 15000 PE 18-MAR | E152: Buy | F152: 52 | G152: 18 | H152: 65 | I152: 90-110 | J152: Profit of Rs.13/- | K152: 13 | L152: 100 | M152: 875.0 | N152: 75 | O152: Successful | P152: 2021-03-12 | R152: H
A153: 23 | B153: 2021-03-15 | D153: TVSMOTOR 570 PE 25-MAR | E153: Buy | F153: 9.6 | G153: 6.5 | H153: 6.5 | I153: 15-17 | J153: Loss of Rs.3.10/- | K153: -3.1 | L153: 100 | M153: -4440.0 | N153: 1400 | O153: Unsuccessful | P153: 2021-03-16 | R153: N
A154: 24 | B154: 2021-03-15 | D154: VOLTAS 1020 PE 25-MAR | E154: Buy | F154: 17 | G154: 12 | H154: 17.5 | I154: 28-30 | J154: Profit of Rs.0.50/- | K154: 0.5 | L154: 100 | M154: 400.0 | N154: 1000 | O154: Neutral | P154: 2021-03-16 | R154: N
A155: 25 | B155: 2021-03-15 | D155: NIFTY 14800 PE 18-MAR | E155: Buy | F155: 93.5 | G155: 55 | H155: 55 | I155: 150 | J155: Loss of Rs.38.5/- | K155: =H155-F155 -> -38.5 | L155: 100 | M155: =(K155*N155)-L155 -> -2987.5 | N155: 75 | O155: Unsuccessful | P155: 2021-03-16 | R155: N
A156: 26 | B156: 2021-03-16 | D156: HDFCBANK 1560 CE 25-MAR | E156: Buy | F156: 25.5 | G156: 17 | H156: 17 | I156: 33-35 | J156: Loss of Rs.8.5/- | K156: -8.5 | L156: 100 | M156: -4775.0 | N156: 550 | O156: Unsuccessful | P156: 2021-03-16 | R156: H
A157: 27 | B157: 2021-03-16 | D157: BANKNIFTY 35400 CE 18-MAR | E157: Buy | F157: 295 | G157: 75 | H157: 355 | I157: 500-600 | J157: Profit of Rs.60/- | K157: 60 | L157: 100 | M157: 1400.0 | N157: 25 | O157: Successful | P157: 2021-03-16 | R157: H
A158: 28 | B158: 2021-03-16 | D158: BANKNIFTY 35400 CE 18-MAR | E158: Buy | F158: 250 | G158: 75 | H158: 340 | I158: 500-600 | J158: Profit of Rs.90/- | K158: =H158-F158 -> 90 | L158: 100 | M158: =(K158*N158)-L158 -> 2150.0 | N158: 25 | O158: Successful | P158: 2021-03-16 | R158: H
A159: 29 | B159: 2021-03-16 | D159: BANKNIFTY 35400 CE 18-MAR | E159: Buy | F159: 280 | G159: 75 | H159: 60 | I159: 500-600 | J159: Loss of Rs.220/- | K159: -220 | L159: 100 | M159: -5600.0 | N159: 25 | O159: Unsuccessful | P159: 2021-03-17 | R159: H
A160: 30 | B160: 2021-03-16 | D160: SBIN 400 CE MAR | E160: Buy | F160: 4.1 | G160: 2.8 | H160: 2.7 | I160: 6 | J160: Loss of Rs.1.40/- | K160: -1.4 | L160: 100 | M160: -4300.0 | N160: 3000 | O160: Unsuccessful | P160: 2021-03-17 | R160: H
A161: 31 | B161: 2021-03-18 | D161: NIFTY 14700 PE 18-MAR | E161: Buy | F161: 22 | H161: 44 | I161: 70 | J161: Profit of Rs.22/- | K161: 22 | L161: 100 | M161: 1550.0 | N161: 75 | O161: Successful | P161: 2021-03-18 | R161: N
A162: 32 | B162: 2021-03-18 | D162: BANKNIFTY 33000 PE 25-MAR | E162: Buy | F162: 280 | G162: 80 | H162: 335 | I162: 600 | J162: Profit of Rs.55/- | K162: 55 | L162: 100 | M162: =(K162*N162)-L162 -> 1275.0 | N162: 25 | O162: Successful | P162: 2021-03-18 | R162: H
A163: 33 | B163: 2021-03-18 | D163: NIFTY 14550 PE 18-MAR | E163: Buy | F163: 20 | H163: 37.5 | I163: 50 | J163: Profit of Rs.17.5/- | K163: =H163-F163 -> 17.5 | L163: 100 | M163: 1212.5 | N163: 75 | O163: Successful | P163: 2021-03-18 | R163: N
A164: 34 | B164: 2021-03-18 | D164: BANKNIFTY 33000 PE 25-MAR | E164: Buy | F164: 280 | G164: 80 | H164: 335 | I164: 600 | J164: Profit of Rs.55/- | K164: =H164-F164 -> 55 | L164: 100 | M164: =(K164*N164)-L164 -> 1275.0 | N164: 25 | O164: Successful | P164: 2021-03-18 | R164: H
A165: 35 | B165: 2021-03-18 | D165: BANKNIFTY 33000 PE 25-MAR | E165: Buy | F165: 280 | G165: 80 | H165: 395 | I165: 600 | J165: Profit of Rs.115/- | K165: =H165-F165 -> 115 | L165: 100 | M165: =(K165*N165)-L165 -> 2775.0 | N165: 25 | O165: Successful | P165: 2021-03-19 | R165: H
A166: 36 | B166: 2021-03-19 | D166: NIFTY 14200 PE 01-APR | E166: Buy | F166: 105.5 | G166: 60 | H166: 123.5 | I166: 190 | J166: Profit of Rs.18/- | K166: 18 | L166: 100 | M166: 1250.0 | N166: 75 | O166: Successful | P166: 2021-03-19 | R166: N
A167: 37 | B167: 2021-03-19 | D167: NIFTY 14200 PE 01-APR | E167: Buy | F167: 105 | G167: 60 | H167: 60 | I167: 190 | J167: Loss of Rs.45/- | K167: -45 | L167: 100 | M167: -3475.0 | N167: 75 | O167: Unsuccessful | P167: 2021-03-22 | R167: H
A168: 38 | B168: 2021-03-19 | D168: BANKNIFTY 33000 PE 25-MAR | E168: Buy | F168: 265 | G168: 70 | H168: 325 | I168: 600 | J168: Profit of Rs.60/- | K168: =H168-F168 -> 60 | L168: 100 | M168: =(K168*N168)-L168 -> 1400.0 | N168: 25 | O168: Successful | P168: 2021-03-22 | R168: N
A169: 39 | B169: 2021-03-22 | D169: VOLTAS 1000 CE MAR | E169: Buy | F169: 11.5 | H169: 16.5 | J169: Profit of Rs. 2.25/- | K169: =H169-F169 -> 5.00 | L169: 100.00 | M169: 2225 | N169: 1000.0 | O169: Successful | P169: 23-Mar | R169: N
D170: VOLTAS 1010 CE MAR | E170: Sell | F170: 8.5 | H170: 11.25 | K170: =F170-H170 -> -2.75 | L170: 100.00 | R170: N
A171: 40 | B171: 2021-03-23 | D171: HDFCBANK 1500 CE MAR | E171: Buy | F171: 14.5 | H171: 0.9 | J171: Loss of Rs.5.6/- | K171: =F171-H171 -> 13.60 | L171: 100.00 | M171: =(550*-5.6)-200 -> -3280 | N171: 550.0 | O171: Unsuccessful | P171: 25-Mar | R171: H
D172: HDFCBANK 1500 CE MAR | E172: Sell | F172: 8 | H172: 0 | K172: -8.00 | L172: 100.00 | R172: H
A173: 41 | B173: 2021-03-23 | D173: BANKNIFTY 33400 PE 25-MAR | E173: Buy | F173: 285 | G173: 80 | H173: 340 | I173: 600 | J173: Profit of Rs.55/- | K173: =H173-F173 -> 55 | L173: 100 | M173: =(K173*N173)-L173 -> 1275.0 | N173: 25 | O173: Successful | P173: 2021-03-23 | R173: H
A174: 42 | B174: 2021-03-23 | D174: PIDILITIND 1820 CE 25-MAR | E174: Buy | F174: 12 | G174: 3 | H174: 2 | I174: 20-25 | J174: Loss of Rs.45/- | K174: -10 | L174: 100 | M174: -5100.0 | N174: 500 | O174: Unsuccessful | P174: 2021-03-25 | R174: N
A175: 43 | B175: 2021-03-23 | D175: BANKNIFTY 33600 PE 25-MAR | E175: Buy | F175: 260 | G175: 70 | H175: 310 | I175: 600 | J175: Profit of Rs.50/- | K175: =H175-F175 -> 50 | L175: 100 | M175: =(K175*N175)-L175 -> 1150.0 | N175: 25 | O175: Successful | P175: 2021-03-24 | R175: N
A176: 44 | B176: 2021-03-24 | D176: NIFTY 14700 CE 25-MAR | E176: Buy | F176: 52 | G176: 18 | H176: 70 | I176: 100-110 | J176: Profit of Rs.18/- | K176: 18 | L176: 100 | M176: 1250.0 | N176: 75 | O176: Successful | P176: 2021-03-24 | R176: N
A177: 45 | B177: 2021-03-24 | D177: NIFTY 14700 CE 25-MAR | E177: Buy | F177: 31 | H177: 0 | I177: 80 | J177: Loss of Rs.31/- | K177: -31 | L177: 100 | M177: -2425.0 | N177: 75 | O177: Unsuccessful | P177: 2021-03-25 | R177: N
A178: 46 | B178: 2021-03-25 | D178: BANKNIFTY 32000 PE 01-APR | E178: Buy | F178: 320 | G178: 90 | H178: 365 | I178: 600 | J178: Profit of Rs.45/- | K178: =H178-F178 -> 45 | L178: 100 | M178: =(K178*N178)-L178 -> 1025.0 | N178: 25 | O178: Successful | P178: 2021-03-25 | R178: N
A179: 47 | B179: 2021-03-25 | D179: BANKNIFTY 32000 PE 01-APR | E179: Buy | F179: 200 | G179: 50 | H179: 250 | I179: 500 | J179: Profit of Rs.50/- | K179: 50 | L179: 100 | M179: 1150.0 | N179: 25 | O179: Successful | P179: 2021-03-25 | R179: N
A180: 48 | B180: 2021-03-25 | D180: BANKNIFTY 32500 PE 01-APR | E180: Buy | F180: 260 | G180: 70 | H180: 315 | I180: 600 | J180: Profit of Rs.55- | K180: =H180-F180 -> 55 | L180: 100 | M180: =(K180*N180)-L180 -> 1275.0 | N180: 25 | O180: Successful | P180: 2021-03-25 | R180: N
A181: 40 | B181: 2021-03-25 | D181: NIFTY 14400 PE 01-APR | E181: Buy | F181: 160-165 | J181: Open | R181: H
D182: NIFTY 14200 PE 01-APR | E182: Sell | F182: 90-95 | R182: H
A183: 41 | B183: 2021-03-26 | D183: BANKNIFTY 32500 PE 01-APR | E183: Buy | F183: 270 | G183: 70 | H183: 325 | I183: 600 | J183: Profit of Rs.55/- | K183: =H183-F183 -> 55 | L183: 100 | M183: =(K183*N183)-L183 -> 1275.0 | N183: 25 | O183: Successful | P183: 2021-03-26 | R183: H
A184: 42 | B184: 2021-03-26 | D184: BANKNIFTY 32700 PE 01-APR | E184: Buy | F184: 290 | G184: 70 | H184: 355 | I184: 600 | J184: Profit of Rs.65/- | K184: =H184-F184 -> 65 | L184: 100 | M184: =(K184*N184)-L184 -> 1525.0 | N184: 25 | O184: Successful | P184: 2021-03-26 | R184: N
A185: 43 | B185: 2021-03-26 | D185: BANKNIFTY 32700 PE 01-APR | E185: Buy | F185: 280 | G185: 70 | H185: 305 | I185: 600 | J185: Profit of Rs.25/- | K185: 25 | L185: 100 | M185: 525.0 | N185: 25 | O185: Successful | P185: 2021-03-26 | R185: H
B186: 2021-03-30 | D186: NIFTY 14800 CE 01-APR | E186: Sell | F186: 85 | G186: 133 | H186: 120 | I186: 10-5.0 | J186: Loss of Rs.35/- | K186: =F186-H186 -> -35 | L186: 100 | M186: =(K186*N186)-L186 -> -2725.0 | N186: 75 | O186: Unsuccessful | P186: 2021-03-26
A195: Techno -Funda (positional)
A196: Sr.no | B196: Date | D196: Company | E196: Rec | F196: Rec Price | G196: Stop Loss*** | H196: Call Closed At | I196: Target | J196: Remark | K196: Profit / Loss per Share/Lot | L196: All charges | M196: Net Gain / Loss % | N196: Status | O196: Closed Date
A197: 1 | B197: 2021-01-07 | D197: SIS | E197: Buy<> | F197: 422 | G197: 385 | H197: 455 | I197: 500-520 | J197: Part profit of Rs.33/- | K197: =H197-F197 -> 33 | L197: =(F197*-0.8)/100 -> -3.38 | M197: =(K197+L197)/F197 -> 7.02% | N197: Successful | O197: 2021-02-16 | R197: H
A198: 2 | B198: 2021-02-11 | D198: MCX | E198: Buy | F198: 1515 | G198: 1390 | H198: 1595 | I198: 1800-1850 | J198: Part profit of Rs.80/- | K198: =H198-F198 -> 80 | L198: =(F198*-0.8)/100 -> -12.12 | M198: =(K198+L198)/F198 -> 4.48% | N198: Successful | O198: 2021-03-16 | R198: H
A199: 3 | B199: 2021-03-19 | D199: GMMPFAUDLR | E199: Buy | F199: 4070 | G199: 3750 | H199: 4315 | I199: 4800 | J199: Part profit of Rs.245/- | K199: =H199-F199 -> 245 | L199: =(F199*-0.8)/100 -> -32.56 | M199: =(K199+L199)/F199 -> 5.22% | N199: Successful | O199: 2021-03-23 | R199: H
A202: CLBS = Closing Basis *** | F202: Reinitiated $
A203: Dividend adjusted <> | F203: Revised stoploss #
B205: Intrday Call
A206: Sr.no | B206: Date | D206: Company | E206: Rec | F206: Rec Price | G206: Stop Loss | H206: Call Closed At | I206: Target | J206: Remark | K206: Profit / Loss per Share/Lot | L206: Gain / Loss per Lot | M206: Lot | N206: All charges | O206: Net Gain / Loss % | P206: Status | Q206: Closed Date
B219: Investment Idea
A220: Sr.no | B220: Date | D220: Company | E220: Rec | F220: Rec Price | G220: Point of Review | H220: Close Rate | I220: Target | J220: Remark | K220: Profit / Loss per Share | L220: Gain / Loss % | M220: Status | N220: Closed Date
A221: 1 | B221: 2013-11-01 | D221: L&T Finance Holding | E221: Accu | F221: 82.00 | G221: - | H221: 100 | I221: 100.00 | J221: Target Achieved | K221: =H221-F221 -> 18.00 | L221: =K221/F221 -> 21.95% | M221: Successful | N221: 2016-10-14
A222: 2 | B222: 2014-06-04 | D222: Finolex Inds | E222: Buy | F222: 257.00 | G222: - | H222: 300 | I222: 300.00 | J222: Target Achieved | K222: 43.00 | L222: 16.73% | M222: Successful | N222: 2014-07-02
A223: 3 | B223: 2014-07-08 | D223: JK Cement | E223: Buy | F223: 393.00 | G223: - | H223: 468 | I223: 468.00 | J223: Target Achieved | K223: 75.00 | L223: 19.08% | M223: Successful | N223: 2014-08-12
A224: 4 | B224: 2014-08-06 | D224: Finolex Cables | E224: Buy | F224: 205.00 | G224: - | H224: 275 | I224: 250.00 | J224: Target Achieved | K224: 70.00 | L224: 34.15% | M224: Successful | N224: 2014-11-19
A225: 5 | B225: 2014-09-04 | D225: Exide Inds | E225: Buy | F225: 162.00 | G225: - | H225: 190 | I225: 190.00 | J225: Target Achieved | K225: 28.00 | L225: 17.28% | M225: Successful | N225: 2015-01-02
A226: 6 | B226: 2014-09-04 | D226: Deepak Nitrite | E226: Buy | F226: 75.00 | G226: - | H226: 91.5 | I226: 95-100 | J226: Profit of Rs.16.50/- | K226: 16.50 | L226: 22.00% | M226: Successful | N226: 2014-11-11
A227: 7 | B227: 2014-10-01 | D227: Mercks | E227: Buy | F227: 850.00 | G227: - | H227: 982.5 | I227: 1050.00 | J227: Profit of Rs.132.50/- | K227: 132.50 | L227: 15.59% | M227: Successful | N227: 2015-02-04
A228: 8 | B228: 2014-10-01 | D228: Grindwell Norton | E228: Buy | F228: 475.00 | G228: - | H228: 515 | I228: 600.00 | J228: Profit of Rs.40/- | K228: 40.00 | L228: 8.42% | M228: Successful | N228: 2014-10-27
A229: 9 | B229: 2014-10-01 | D229: Snowman Logistics | E229: Buy | F229: 86.00 | G229: - | H229: 99 | I229: 140.00 | J229: Profit of Rs.13.00/- | K229: 13.00 | L229: 15.12% | M229: Successful | N229: 2014-10-27
A230: 10 | B230: 2014-10-14 | D230: Birla Corp | E230: Buy | F230: 496.60 | G230: - | H230: 621 | I230: 580.00 | J230: Target Achieved | K230: 124.40 | L230: 25.05% | M230: Successful | N230: 2016-08-23
A231: 11 | B231: 2014-10-14 | D231: Ultratech Cem | E231: Buy | F231: 2481.90 | G231: - | H231: 2840 | I231: 2870.00 | J231: Profit of Rs.358.10/- | K231: 358.10 | L231: 14.43% | M231: Successful | N231: 2015-01-13
A232: 12 | B232: 2014-10-16 | D232: Sintex Inds | E232: Buy | F232: 84.50 | G232: - | H232: 93 | I232: 110.00 | J232: Profit of Rs.8.50/- | K232: 8.50 | L232: 10.06% | M232: Successful | N232: 2014-10-27
A233: 13 | B233: 2014-10-16 | D233: HSIL | E233: Buy | F233: 401.00 | G233: - | H233: 428 | I233: 450.00 | J233: Profit of Rs.27.00/- | K233: 27.00 | L233: 6.73% | M233: Successful | N233: 2015-01-16
A234: 14 | B234: 2014-10-16 | D234: Eveready Inds | E234: Buy | F234: 101.00 | G234: - | H234: 112 | I234: 120.00 | J234: Profit of Rs.11.00/- | K234: 11.00 | L234: 10.89% | M234: Successful | N234: 2014-10-27
A235: 15 | B235: 2014-11-11 | D235: Pennar Inds | E235: Buy | F235: 59.00 | G235: - | H235: 76 | I235: 76.00 | J235: Target Achieved | K235: 17.00 | L235: 28.81% | M235: Successful | N235: 2017-10-24
A236: 16 | B236: 2014-11-11 | D236: Snowman Logistics | E236: Buy | F236: 99.00 | G236: - | H236: 120 | I236: 120.00 | J236: Profit of Rs.21/- | K236: 21.00 | L236: 21.21% | M236: Successful | N236: 2014-11-17
A237: 17 | B237: 2014-11-13 | D237: Dharamsi Morarji Chem | E237: Buy | F237: 22.00 | G237: - | H237: 33.55 | I237: 32.00 | J237: Profit of Rs 11.55/- | K237: 11.55 | L237: 52.50% | M237: Successful | N237: 2015-07-03
A238: 18 | B238: 2014-12-03 | D238: Tatachem | E238: Buy | F238: 440.00 | G238: - | H238: 520 | I238: 520.00 | J238: Profit of Rs 80.00/- | K238: 80.00 | L238: 18.18% | M238: Successful | N238: 2015-07-23
A239: 19 | B239: 2014-12-03 | D239: Advanta | E239: Buy | F239: 360.00 | G239: - | H239: 427 | I239: 425.00 | J239: Profit of Rs.67.00/- | K239: 67.00 | L239: 18.61% | M239: Successful | N239: 2015-02-23
A240: 20 | B240: 2015-01-08 | D240: GDL | E240: Buy | F240: 360.00 | G240: - | H240: 455 | I240: 420.00 | J240: Profit of Rs.95.00/- | K240: 95.00 | L240: 26.39% | M240: Successful | N240: 2015-01-20
A241: 21 | B241: 2015-01-08 | D241: NRB Bearing | E241: Buy | F241: 130.00 | H241: 175.5 | I241: 165.00 | J241: Profit of Rs 45.50/- | K241: 45.50 | L241: 35.00% | M241: Successful | N241: 2017-12-19
... 143 more rows
